{"text_format":"1","workbook":"xlsx","n_sheets":5,"sheets":["Front Sheet","Summary Information","Project Assessment","Simplified Data Sheet","InfoSheet"],"not_rendered":{"charts":0,"images":0,"macros":1,"external_links":0,"defined_names":7,"comments":0,"pivot_tables":0},"unopened":[],"bounds":{"document_bytes":16777216,"sheet_cells":100000,"rows_first":2000,"rows_last":500,"rows_between":2000,"halvings":0,"cell_chars":16384,"cell_head_chars":4096},"cells_cut":0,"cells_raw":0,"read":"whole","date_system":"1900"}

{"sheet":"Front Sheet","index":0,"n_rows":1,"n_cols":1,"rows_kept":1,"cut":false,"hidden":false,"merged":[[0,0,0,28]]}
["World Bank Citizen Engagement Assessment Tool (WB-CEAT) Version 4.0"]

{"sheet":"Summary Information","index":1,"n_rows":125,"n_cols":104,"rows_kept":125,"cut":false,"hidden":false,"merged":[[119,1,121,1],[122,1,124,1],[112,0,114,0],[119,0,124,0],[103,0,105,0],[106,0,108,0],[109,0,111,0],[115,0,117,0],[103,1,105,1],[106,1,108,1],[109,1,111,1],[112,1,114,1],[115,1,117,1],[99,0,101,0],[73,1,75,1],[76,1,78,1],[79,1,81,1],[82,1,84,1],[85,1,87,1],[88,1,90,1],[92,1,94,1],[95,1,97,1],[73,0,75,0],[76,0,78,0],[79,0,81,0],[82,0,84,0],[85,0,87,0],[88,0,90,0],[99,1,101,1],[69,0,71,0],[50,1,52,1],[53,1,55,1],[56,1,58,1],[59,1,61,1],[62,1,64,1],[65,1,67,1],[69,1,71,1],[50,0,52,0],[53,0,55,0],[56,0,58,0],[59,0,61,0],[62,0,64,0],[65,0,67,0],[32,1,34,1],[36,1,38,1],[39,1,41,1],[42,1,44,1],[46,0,48,0],[46,1,48,1],[36,0,44,0],[92,0,97,0],[14,0,14,10],[15,0,15,10],[0,0,0,10],[1,0,1,10],[17,1,19,1],[20,1,22,1],[17,0,19,0],[20,0,22,0],[23,0,25,0],[23,1,25,1],[26,0,28,0],[26,1,28,1],[29,0,31,0],[29,1,31,1],[32,0,34,0],[88,2,89,2],[85,2,86,2],[82,2,83,2],[79,2,80,2],[76,2,77,2],[106,2,107,2],[103,2,104,2],[99,2,100,2],[95,2,96,2],[92,2,93,2],[122,2,123,2],[119,2,120,2],[115,2,116,2],[112,2,113,2],[109,2,110,2],[73,2,74,2],[69,2,70,2],[65,2,66,2],[62,2,63,2],[59,2,60,2],[56,2,57,2],[53,2,54,2],[50,2,51,2],[46,2,47,2],[42,2,43,2],[23,2,24,2],[20,2,21,2],[17,2,18,2],[39,2,40,2],[36,2,37,2],[32,2,33,2],[29,2,30,2],[26,2,27,2]]}
["World Bank Citizen Engagement Assessment Tool (WB-CEAT) Version 4.0"]
["Summary Information"]
[]
["Country:",""]
["Project Name:",""]
["PID: ",""]
["Approval Date:",""]
["Fiscal Year:"]
["Commitment Amount:",""]
["Status:"]
["Team Leader:",""]
["Project Link:",""]
["Are any projects documents posted in national languages besides English?"]
["If Yes, which documents and in what languages?","",null,"",null,"",null,""]
[""]
[]
["Citizen Engagement Activities",null,"Yes/No/Unclear","Project Appraisal Document (PAD) Description/Details (please include page numbers)","Page No.",{"$f":"'Project Assessment'!F36","v":" Description/Details Description/Details"},"Page No.",{"$f":"'Project Assessment'!H19","v":" Description/Details"},"Page No.",{"$f":"'Project Assessment'!J19","v":" Description/Details"},"Page No."]
["\"Consultation\"","Project identifies third party (external to the World Bank or government) that had a role in overseeing these activities (If yes, please explain)?",null,{"$f":"'Project Assessment'!D74","v":""},{"$f":"'Project Assessment'!E74","v":""},{"$f":"'Project Assessment'!F74","v":0},{"$f":"'Project Assessment'!G74","v":0},{"$f":"'Project Assessment'!H74","v":0},{"$f":"'Project Assessment'!I74","v":0},{"$f":"'Project Assessment'!J74","v":0},{"$f":"'Project Assessment'!K74","v":0},null,null,null,null,null,null,null,null,null,null,null,null,null,null,null,null,null,null,null,null,null,null,null,null,null,null,null,null,null,null,null,null,null,null,null,null,null,null,null,null,null,null,null,null,null,null,null,null,null,null,null,null,null,null,null,null,null,null,null,null,null,null,null,null,null,null,null,null,null,null,null,null,null,null,null,null,null,null,null,null,null,null,null,null,null,null,null,null,null,null,null,null,{"$f":"B18","v":"Project identifies third party (external to the World Bank or government) that had a role in overseeing these activities (If yes, please explain)?"}]
[null,null,null,{"$f":"'Project Assessment'!D75","v":""},{"$f":"'Project Assessment'!E75","v":""},{"$f":"'Project Assessment'!F75","v":0},{"$f":"'Project Assessment'!G75","v":0},{"$f":"'Project Assessment'!H75","v":0},{"$f":"'Project Assessment'!I75","v":0},{"$f":"'Project Assessment'!J75","v":0},{"$f":"'Project Assessment'!K75","v":0},null,null,null,null,null,null,null,null,null,null,null,null,null,null,null,null,null,null,null,null,null,null,null,null,null,null,null,null,null,null,null,null,null,null,null,null,null,null,null,null,null,null,null,null,null,null,null,null,null,null,null,null,null,null,null,null,null,null,null,null,null,null,null,null,null,null,null,null,null,null,null,null,null,null,null,null,null,null,null,null,null,null,null,null,null,null,null,null,null,null,null,null,{"$f":"B18","v":"Project identifies third party (external to the World Bank or government) that had a role in overseeing these activities (If yes, please explain)?"}]
[null,null,{"$f":"'Project Assessment'!C76","v":0},{"$f":"'Project Assessment'!D76","v":""},{"$f":"'Project Assessment'!E76","v":""},{"$f":"'Project Assessment'!F76","v":0},{"$f":"'Project Assessment'!G76","v":0},{"$f":"'Project Assessment'!H76","v":0},{"$f":"'Project Assessment'!I76","v":0},{"$f":"'Project Assessment'!J76","v":0},{"$f":"'Project Assessment'!K76","v":0},null,null,null,null,null,null,null,null,null,null,null,null,null,null,null,null,null,null,null,null,null,null,null,null,null,null,null,null,null,null,null,null,null,null,null,null,null,null,null,null,null,null,null,null,null,null,null,null,null,null,null,null,null,null,null,null,null,null,null,null,null,null,null,null,null,null,null,null,null,null,null,null,null,null,null,null,null,null,null,null,null,null,null,null,null,null,null,null,null,null,null,null,{"$f":"B18","v":"Project identifies third party (external to the World Bank or government) that had a role in overseeing these activities (If yes, please explain)?"}]
["\"Collaboration in Decision Making\"","Project identifies third party (external to the World Bank or government) that will have a role in overseeing these activities (If yes, please explain)?",null,{"$f":"'Project Assessment'!D130","v":""},{"$f":"'Project Assessment'!E130","v":""},{"$f":"'Project Assessment'!F130","v":0},{"$f":"'Project Assessment'!G130","v":0},{"$f":"'Project Assessment'!H130","v":0},{"$f":"'Project Assessment'!I130","v":0},{"$f":"'Project Assessment'!J130","v":0},{"$f":"'Project Assessment'!K130","v":0},null,null,null,null,null,null,null,null,null,null,null,null,null,null,null,null,null,null,null,null,null,null,null,null,null,null,null,null,null,null,null,null,null,null,null,null,null,null,null,null,null,null,null,null,null,null,null,null,null,null,null,null,null,null,null,null,null,null,null,null,null,null,null,null,null,null,null,null,null,null,null,null,null,null,null,null,null,null,null,null,null,null,null,null,null,null,null,null,null,null,null,null,{"$f":"B21","v":"Project identifies third party (external to the World Bank or government) that will have a role in overseeing these activities (If yes, please explain)?"}]
[null,null,null,{"$f":"'Project Assessment'!D131","v":""},{"$f":"'Project Assessment'!E131","v":""},{"$f":"'Project Assessment'!F131","v":0},{"$f":"'Project Assessment'!G131","v":0},{"$f":"'Project Assessment'!H131","v":0},{"$f":"'Project Assessment'!I131","v":0},{"$f":"'Project Assessment'!J131","v":0},{"$f":"'Project Assessment'!K131","v":0},null,null,null,null,null,null,null,null,null,null,null,null,null,null,null,null,null,null,null,null,null,null,null,null,null,null,null,null,null,null,null,null,null,null,null,null,null,null,null,null,null,null,null,null,null,null,null,null,null,null,null,null,null,null,null,null,null,null,null,null,null,null,null,null,null,null,null,null,null,null,null,null,null,null,null,null,null,null,null,null,null,null,null,null,null,null,null,null,null,null,null,null,{"$f":"B21","v":"Project identifies third party (external to the World Bank or government) that will have a role in overseeing these activities (If yes, please explain)?"}]
[null,null,{"$f":"'Project Assessment'!C132","v":0},{"$f":"'Project Assessment'!D132","v":""},{"$f":"'Project Assessment'!E132","v":""},{"$f":"'Project Assessment'!F132","v":0},{"$f":"'Project Assessment'!G132","v":0},{"$f":"'Project Assessment'!H132","v":0},{"$f":"'Project Assessment'!I132","v":0},{"$f":"'Project Assessment'!J132","v":0},{"$f":"'Project Assessment'!K132","v":0},null,null,null,null,null,null,null,null,null,null,null,null,null,null,null,null,null,null,null,null,null,null,null,null,null,null,null,null,null,null,null,null,null,null,null,null,null,null,null,null,null,null,null,null,null,null,null,null,null,null,null,null,null,null,null,null,null,null,null,null,null,null,null,null,null,null,null,null,null,null,null,null,null,null,null,null,null,null,null,null,null,null,null,null,null,null,null,null,null,null,null,null,{"$f":"B21","v":"Project identifies third party (external to the World Bank or government) that will have a role in overseeing these activities (If yes, please explain)?"}]
["\"Collecting, Recording, and Reporting on Inputs from Citizens\"","Project identifies third party (external to the World Bank or government) that will have a role in overseeing these activities (If yes, please explain)?",null,{"$f":"'Project Assessment'!D170","v":""},{"$f":"'Project Assessment'!E170","v":""},{"$f":"'Project Assessment'!F170","v":""},{"$f":"'Project Assessment'!G170","v":""},{"$f":"'Project Assessment'!H170","v":""},{"$f":"'Project Assessment'!I170","v":""},{"$f":"'Project Assessment'!J170","v":""},{"$f":"'Project Assessment'!K170","v":""},null,null,null,null,null,null,null,null,null,null,null,null,null,null,null,null,null,null,null,null,null,null,null,null,null,null,null,null,null,null,null,null,null,null,null,null,null,null,null,null,null,null,null,null,null,null,null,null,null,null,null,null,null,null,null,null,null,null,null,null,null,null,null,null,null,null,null,null,null,null,null,null,null,null,null,null,null,null,null,null,null,null,null,null,null,null,null,null,null,null,null,null,{"$f":"B24","v":"Project identifies third party (external to the World Bank or government) that will have a role in overseeing these activities (If yes, please explain)?"}]
[null,null,null,{"$f":"'Project Assessment'!D171","v":""},{"$f":"'Project Assessment'!E171","v":""},{"$f":"'Project Assessment'!F171","v":""},{"$f":"'Project Assessment'!G171","v":""},{"$f":"'Project Assessment'!H171","v":""},{"$f":"'Project Assessment'!I171","v":""},{"$f":"'Project Assessment'!J171","v":""},{"$f":"'Project Assessment'!K171","v":""},null,null,null,null,null,null,null,null,null,null,null,null,null,null,null,null,null,null,null,null,null,null,null,null,null,null,null,null,null,null,null,null,null,null,null,null,null,null,null,null,null,null,null,null,null,null,null,null,null,null,null,null,null,null,null,null,null,null,null,null,null,null,null,null,null,null,null,null,null,null,null,null,null,null,null,null,null,null,null,null,null,null,null,null,null,null,null,null,null,null,null,null,{"$f":"B24","v":"Project identifies third party (external to the World Bank or government) that will have a role in overseeing these activities (If yes, please explain)?"}]
[null,null,{"$f":"'Project Assessment'!C172","v":0},{"$f":"'Project Assessment'!D172","v":""},{"$f":"'Project Assessment'!E172","v":""},{"$f":"'Project Assessment'!F172","v":""},{"$f":"'Project Assessment'!G172","v":""},{"$f":"'Project Assessment'!H172","v":""},{"$f":"'Project Assessment'!I172","v":""},{"$f":"'Project Assessment'!J172","v":""},{"$f":"'Project Assessment'!K172","v":""},null,null,null,null,null,null,null,null,null,null,null,null,null,null,null,null,null,null,null,null,null,null,null,null,null,null,null,null,null,null,null,null,null,null,null,null,null,null,null,null,null,null,null,null,null,null,null,null,null,null,null,null,null,null,null,null,null,null,null,null,null,null,null,null,null,null,null,null,null,null,null,null,null,null,null,null,null,null,null,null,null,null,null,null,null,null,null,null,null,null,null,null,{"$f":"B24","v":"Project identifies third party (external to the World Bank or government) that will have a role in overseeing these activities (If yes, please explain)?"}]
["\"Grievance Redress Mechanism\"","Project identifies third party (external to the World Bank or government) that will have a role in overseeing these activities (If yes, please explain)?",null,{"$f":"'Project Assessment'!D194","v":""},{"$f":"'Project Assessment'!E194","v":""},{"$f":"'Project Assessment'!F194","v":0},{"$f":"'Project Assessment'!G194","v":0},{"$f":"'Project Assessment'!H194","v":0},{"$f":"'Project Assessment'!I194","v":0},{"$f":"'Project Assessment'!J194","v":0},{"$f":"'Project Assessment'!K194","v":0},null,null,null,null,null,null,null,null,null,null,null,null,null,null,null,null,null,null,null,null,null,null,null,null,null,null,null,null,null,null,null,null,null,null,null,null,null,null,null,null,null,null,null,null,null,null,null,null,null,null,null,null,null,null,null,null,null,null,null,null,null,null,null,null,null,null,null,null,null,null,null,null,null,null,null,null,null,null,null,null,null,null,null,null,null,null,null,null,null,null,null,null,{"$f":"B27","v":"Project identifies third party (external to the World Bank or government) that will have a role in overseeing these activities (If yes, please explain)?"}]
[null,null,null,{"$f":"'Project Assessment'!D195","v":""},{"$f":"'Project Assessment'!E195","v":""},{"$f":"'Project Assessment'!F195","v":0},{"$f":"'Project Assessment'!G195","v":0},{"$f":"'Project Assessment'!H195","v":0},{"$f":"'Project Assessment'!I195","v":0},{"$f":"'Project Assessment'!J195","v":0},{"$f":"'Project Assessment'!K195","v":0},null,null,null,null,null,null,null,null,null,null,null,null,null,null,null,null,null,null,null,null,null,null,null,null,null,null,null,null,null,null,null,null,null,null,null,null,null,null,null,null,null,null,null,null,null,null,null,null,null,null,null,null,null,null,null,null,null,null,null,null,null,null,null,null,null,null,null,null,null,null,null,null,null,null,null,null,null,null,null,null,null,null,null,null,null,null,null,null,null,null,null,null,{"$f":"B27","v":"Project identifies third party (external to the World Bank or government) that will have a role in overseeing these activities (If yes, please explain)?"}]
[null,null,{"$f":"'Project Assessment'!C196","v":0},{"$f":"'Project Assessment'!D196","v":""},{"$f":"'Project Assessment'!E196","v":""},{"$f":"'Project Assessment'!F196","v":0},{"$f":"'Project Assessment'!G196","v":0},{"$f":"'Project Assessment'!H196","v":0},{"$f":"'Project Assessment'!I196","v":0},{"$f":"'Project Assessment'!J196","v":0},{"$f":"'Project Assessment'!K196","v":0},null,null,null,null,null,null,null,null,null,null,null,null,null,null,null,null,null,null,null,null,null,null,null,null,null,null,null,null,null,null,null,null,null,null,null,null,null,null,null,null,null,null,null,null,null,null,null,null,null,null,null,null,null,null,null,null,null,null,null,null,null,null,null,null,null,null,null,null,null,null,null,null,null,null,null,null,null,null,null,null,null,null,null,null,null,null,null,null,null,null,null,null,{"$f":"B27","v":"Project identifies third party (external to the World Bank or government) that will have a role in overseeing these activities (If yes, please explain)?"}]
["\"Citizen monitoring,  evaluation and oversight\"","Project identifies third party (external to the World Bank or government) that will have a role in overseeing these activities (If yes, please explain)?",null,{"$f":"'Project Assessment'!D260","v":""},{"$f":"'Project Assessment'!E260","v":""},{"$f":"'Project Assessment'!F260","v":0},{"$f":"'Project Assessment'!G260","v":0},{"$f":"'Project Assessment'!H260","v":0},{"$f":"'Project Assessment'!I260","v":0},{"$f":"'Project Assessment'!J260","v":0},{"$f":"'Project Assessment'!K260","v":0},null,null,null,null,null,null,null,null,null,null,null,null,null,null,null,null,null,null,null,null,null,null,null,null,null,null,null,null,null,null,null,null,null,null,null,null,null,null,null,null,null,null,null,null,null,null,null,null,null,null,null,null,null,null,null,null,null,null,null,null,null,null,null,null,null,null,null,null,null,null,null,null,null,null,null,null,null,null,null,null,null,null,null,null,null,null,null,null,null,null,null,null,{"$f":"B30","v":"Project identifies third party (external to the World Bank or government) that will have a role in overseeing these activities (If yes, please explain)?"}]
[null,null,null,{"$f":"'Project Assessment'!D261","v":""},{"$f":"'Project Assessment'!E261","v":""},{"$f":"'Project Assessment'!F261","v":0},{"$f":"'Project Assessment'!G261","v":0},{"$f":"'Project Assessment'!H261","v":0},{"$f":"'Project Assessment'!I261","v":0},{"$f":"'Project Assessment'!J261","v":0},{"$f":"'Project Assessment'!K261","v":0},null,null,null,null,null,null,null,null,null,null,null,null,null,null,null,null,null,null,null,null,null,null,null,null,null,null,null,null,null,null,null,null,null,null,null,null,null,null,null,null,null,null,null,null,null,null,null,null,null,null,null,null,null,null,null,null,null,null,null,null,null,null,null,null,null,null,null,null,null,null,null,null,null,null,null,null,null,null,null,null,null,null,null,null,null,null,null,null,null,null,null,null,{"$f":"B30","v":"Project identifies third party (external to the World Bank or government) that will have a role in overseeing these activities (If yes, please explain)?"}]
[null,null,{"$f":"'Project Assessment'!C262","v":0},{"$f":"'Project Assessment'!D262","v":""},{"$f":"'Project Assessment'!E262","v":""},{"$f":"'Project Assessment'!F262","v":0},{"$f":"'Project Assessment'!G262","v":0},{"$f":"'Project Assessment'!H262","v":0},{"$f":"'Project Assessment'!I262","v":0},{"$f":"'Project Assessment'!J262","v":0},{"$f":"'Project Assessment'!K262","v":0},null,null,null,null,null,null,null,null,null,null,null,null,null,null,null,null,null,null,null,null,null,null,null,null,null,null,null,null,null,null,null,null,null,null,null,null,null,null,null,null,null,null,null,null,null,null,null,null,null,null,null,null,null,null,null,null,null,null,null,null,null,null,null,null,null,null,null,null,null,null,null,null,null,null,null,null,null,null,null,null,null,null,null,null,null,null,null,null,null,null,null,null,{"$f":"B30","v":"Project identifies third party (external to the World Bank or government) that will have a role in overseeing these activities (If yes, please explain)?"}]
["\"Capacity Building for Citizen Engagement(CE Training)\"","Project identifies third party (external to the World Bank or government) that will have a role in overseeing these activities (If yes, please explain)?",null,{"$f":"'Project Assessment'!D291","v":""},{"$f":"'Project Assessment'!E291","v":""},{"$f":"'Project Assessment'!F291","v":0},{"$f":"'Project Assessment'!G291","v":0},{"$f":"'Project Assessment'!H291","v":0},{"$f":"'Project Assessment'!I291","v":0},{"$f":"'Project Assessment'!J291","v":0},{"$f":"'Project Assessment'!K291","v":0},null,null,null,null,null,null,null,null,null,null,null,null,null,null,null,null,null,null,null,null,null,null,null,null,null,null,null,null,null,null,null,null,null,null,null,null,null,null,null,null,null,null,null,null,null,null,null,null,null,null,null,null,null,null,null,null,null,null,null,null,null,null,null,null,null,null,null,null,null,null,null,null,null,null,null,null,null,null,null,null,null,null,null,null,null,null,null,null,null,null,null,null,{"$f":"B33","v":"Project identifies third party (external to the World Bank or government) that will have a role in overseeing these activities (If yes, please explain)?"}]
[null,null,null,{"$f":"'Project Assessment'!D292","v":""},{"$f":"'Project Assessment'!E292","v":""},{"$f":"'Project Assessment'!F292","v":0},{"$f":"'Project Assessment'!G292","v":0},{"$f":"'Project Assessment'!H292","v":0},{"$f":"'Project Assessment'!I292","v":0},{"$f":"'Project Assessment'!J292","v":0},{"$f":"'Project Assessment'!K292","v":0},null,null,null,null,null,null,null,null,null,null,null,null,null,null,null,null,null,null,null,null,null,null,null,null,null,null,null,null,null,null,null,null,null,null,null,null,null,null,null,null,null,null,null,null,null,null,null,null,null,null,null,null,null,null,null,null,null,null,null,null,null,null,null,null,null,null,null,null,null,null,null,null,null,null,null,null,null,null,null,null,null,null,null,null,null,null,null,null,null,null,null,null,{"$f":"B33","v":"Project identifies third party (external to the World Bank or government) that will have a role in overseeing these activities (If yes, please explain)?"}]
[null,null,{"$f":"'Project Assessment'!C293","v":0},{"$f":"'Project Assessment'!D293","v":""},{"$f":"'Project Assessment'!E293","v":""},{"$f":"'Project Assessment'!F293","v":0},{"$f":"'Project Assessment'!G293","v":0},{"$f":"'Project Assessment'!H293","v":0},{"$f":"'Project Assessment'!I293","v":0},{"$f":"'Project Assessment'!J293","v":0},{"$f":"'Project Assessment'!K293","v":0},null,null,null,null,null,null,null,null,null,null,null,null,null,null,null,null,null,null,null,null,null,null,null,null,null,null,null,null,null,null,null,null,null,null,null,null,null,null,null,null,null,null,null,null,null,null,null,null,null,null,null,null,null,null,null,null,null,null,null,null,null,null,null,null,null,null,null,null,null,null,null,null,null,null,null,null,null,null,null,null,null,null,null,null,null,null,null,null,null,null,null,null,{"$f":"B33","v":"Project identifies third party (external to the World Bank or government) that will have a role in overseeing these activities (If yes, please explain)?"}]
["Monitoring Systems within World Bank Projects",null,"Yes/No/Unclear","Project Appraisal Document (PAD) Description/Details (please include page numbers)","Page No.",{"$f":"'Project Assessment'!F36","v":" Description/Details Description/Details"},"Page No.",{"$f":"'Project Assessment'!H19","v":" Description/Details"},"Page No.",{"$f":"'Project Assessment'!J19","v":" Description/Details"},"Page No."]
[null," If so, is that entity external to the unit implementing the project (i.e. a third party, a citizen organization etc.)?",null,{"$f":"'Project Assessment'!D318","v":""},{"$f":"'Project Assessment'!E318","v":""},{"$f":"'Project Assessment'!F318","v":""},{"$f":"'Project Assessment'!G318","v":""},{"$f":"'Project Assessment'!H318","v":""},{"$f":"'Project Assessment'!I318","v":""},{"$f":"'Project Assessment'!J318","v":""},{"$f":"'Project Assessment'!K318","v":""},null,null,null,null,null,null,null,null,null,null,null,null,null,null,null,null,null,null,null,null,null,null,null,null,null,null,null,null,null,null,null,null,null,null,null,null,null,null,null,null,null,null,null,null,null,null,null,null,null,null,null,null,null,null,null,null,null,null,null,null,null,null,null,null,null,null,null,null,null,null,null,null,null,null,null,null,null,null,null,null,null,null,null,null,null,null,null,null,null,null,null,null,{"$f":"B37","v":" If so, is that entity external to the unit implementing the project (i.e. a third party, a citizen organization etc.)?"}]
[null,null,null,{"$f":"'Project Assessment'!D319","v":""},{"$f":"'Project Assessment'!E319","v":""},{"$f":"'Project Assessment'!F319","v":""},{"$f":"'Project Assessment'!G319","v":""},{"$f":"'Project Assessment'!H319","v":""},{"$f":"'Project Assessment'!I319","v":""},{"$f":"'Project Assessment'!J319","v":""},{"$f":"'Project Assessment'!K319","v":""},null,null,null,null,null,null,null,null,null,null,null,null,null,null,null,null,null,null,null,null,null,null,null,null,null,null,null,null,null,null,null,null,null,null,null,null,null,null,null,null,null,null,null,null,null,null,null,null,null,null,null,null,null,null,null,null,null,null,null,null,null,null,null,null,null,null,null,null,null,null,null,null,null,null,null,null,null,null,null,null,null,null,null,null,null,null,null,null,null,null,null,null,{"$f":"B37","v":" If so, is that entity external to the unit implementing the project (i.e. a third party, a citizen organization etc.)?"}]
[null,null,{"$f":"'Project Assessment'!C320","v":0},{"$f":"'Project Assessment'!D320","v":""},{"$f":"'Project Assessment'!E320","v":""},{"$f":"'Project Assessment'!F320","v":""},{"$f":"'Project Assessment'!G320","v":""},{"$f":"'Project Assessment'!H320","v":""},{"$f":"'Project Assessment'!I320","v":""},{"$f":"'Project Assessment'!J320","v":""},{"$f":"'Project Assessment'!K320","v":""},null,null,null,null,null,null,null,null,null,null,null,null,null,null,null,null,null,null,null,null,null,null,null,null,null,null,null,null,null,null,null,null,null,null,null,null,null,null,null,null,null,null,null,null,null,null,null,null,null,null,null,null,null,null,null,null,null,null,null,null,null,null,null,null,null,null,null,null,null,null,null,null,null,null,null,null,null,null,null,null,null,null,null,null,null,null,null,null,null,null,null,null,{"$f":"B37","v":" If so, is that entity external to the unit implementing the project (i.e. a third party, a citizen organization etc.)?"}]
[null,"If so, is the government office responsible for tracking Results Framework indicators different from the office(s) tasked with project implementation/an external actor?",null,{"$f":"'Project Assessment'!D327","v":""},{"$f":"'Project Assessment'!E327","v":""},{"$f":"'Project Assessment'!F327","v":""},{"$f":"'Project Assessment'!G327","v":""},{"$f":"'Project Assessment'!H327","v":""},{"$f":"'Project Assessment'!I327","v":""},{"$f":"'Project Assessment'!J327","v":""},{"$f":"'Project Assessment'!K327","v":""},null,null,null,null,null,null,null,null,null,null,null,null,null,null,null,null,null,null,null,null,null,null,null,null,null,null,null,null,null,null,null,null,null,null,null,null,null,null,null,null,null,null,null,null,null,null,null,null,null,null,null,null,null,null,null,null,null,null,null,null,null,null,null,null,null,null,null,null,null,null,null,null,null,null,null,null,null,null,null,null,null,null,null,null,null,null,null,null,null,null,null,null,{"$f":"B40","v":"If so, is the government office responsible for tracking Results Framework indicators different from the office(s) tasked with project implementation/an external actor?"}]
[null,null,null,{"$f":"'Project Assessment'!D328","v":""},{"$f":"'Project Assessment'!E328","v":""},{"$f":"'Project Assessment'!F328","v":""},{"$f":"'Project Assessment'!G328","v":""},{"$f":"'Project Assessment'!H328","v":""},{"$f":"'Project Assessment'!I328","v":""},{"$f":"'Project Assessment'!J328","v":""},{"$f":"'Project Assessment'!K328","v":""},null,null,null,null,null,null,null,null,null,null,null,null,null,null,null,null,null,null,null,null,null,null,null,null,null,null,null,null,null,null,null,null,null,null,null,null,null,null,null,null,null,null,null,null,null,null,null,null,null,null,null,null,null,null,null,null,null,null,null,null,null,null,null,null,null,null,null,null,null,null,null,null,null,null,null,null,null,null,null,null,null,null,null,null,null,null,null,null,null,null,null,null,{"$f":"B40","v":"If so, is the government office responsible for tracking Results Framework indicators different from the office(s) tasked with project implementation/an external actor?"}]
[null,null,{"$f":"'Project Assessment'!C329","v":0},{"$f":"'Project Assessment'!D329","v":""},{"$f":"'Project Assessment'!E329","v":""},{"$f":"'Project Assessment'!F329","v":""},{"$f":"'Project Assessment'!G329","v":""},{"$f":"'Project Assessment'!H329","v":""},{"$f":"'Project Assessment'!I329","v":""},{"$f":"'Project Assessment'!J329","v":""},{"$f":"'Project Assessment'!K329","v":""},null,null,null,null,null,null,null,null,null,null,null,null,null,null,null,null,null,null,null,null,null,null,null,null,null,null,null,null,null,null,null,null,null,null,null,null,null,null,null,null,null,null,null,null,null,null,null,null,null,null,null,null,null,null,null,null,null,null,null,null,null,null,null,null,null,null,null,null,null,null,null,null,null,null,null,null,null,null,null,null,null,null,null,null,null,null,null,null,null,null,null,null,{"$f":"B40","v":"If so, is the government office responsible for tracking Results Framework indicators different from the office(s) tasked with project implementation/an external actor?"}]
[null,"If so, is a third party evaluation using these indicators currently available on the \"Documents\" tab of the World Bank's project page?",null,{"$f":"'Project Assessment'!D336","v":""},{"$f":"'Project Assessment'!E336","v":""},{"$f":"'Project Assessment'!F336","v":""},{"$f":"'Project Assessment'!G336","v":""},{"$f":"'Project Assessment'!H336","v":""},{"$f":"'Project Assessment'!I336","v":""},{"$f":"'Project Assessment'!J336","v":""},{"$f":"'Project Assessment'!K336","v":""},null,null,null,null,null,null,null,null,null,null,null,null,null,null,null,null,null,null,null,null,null,null,null,null,null,null,null,null,null,null,null,null,null,null,null,null,null,null,null,null,null,null,null,null,null,null,null,null,null,null,null,null,null,null,null,null,null,null,null,null,null,null,null,null,null,null,null,null,null,null,null,null,null,null,null,null,null,null,null,null,null,null,null,null,null,null,null,null,null,null,null,null,{"$f":"B43","v":"If so, is a third party evaluation using these indicators currently available on the \"Documents\" tab of the World Bank's project page?"}]
[null,null,null,{"$f":"'Project Assessment'!D337","v":""},{"$f":"'Project Assessment'!E337","v":""},{"$f":"'Project Assessment'!F337","v":""},{"$f":"'Project Assessment'!G337","v":""},{"$f":"'Project Assessment'!H337","v":""},{"$f":"'Project Assessment'!I337","v":""},{"$f":"'Project Assessment'!J337","v":""},{"$f":"'Project Assessment'!K337","v":""},null,null,null,null,null,null,null,null,null,null,null,null,null,null,null,null,null,null,null,null,null,null,null,null,null,null,null,null,null,null,null,null,null,null,null,null,null,null,null,null,null,null,null,null,null,null,null,null,null,null,null,null,null,null,null,null,null,null,null,null,null,null,null,null,null,null,null,null,null,null,null,null,null,null,null,null,null,null,null,null,null,null,null,null,null,null,null,null,null,null,null,null,{"$f":"B43","v":"If so, is a third party evaluation using these indicators currently available on the \"Documents\" tab of the World Bank's project page?"}]
[null,null,{"$f":"'Project Assessment'!C338","v":0},{"$f":"'Project Assessment'!D338","v":""},{"$f":"'Project Assessment'!E338","v":""},{"$f":"'Project Assessment'!F338","v":""},{"$f":"'Project Assessment'!G338","v":""},{"$f":"'Project Assessment'!H338","v":""},{"$f":"'Project Assessment'!I338","v":""},{"$f":"'Project Assessment'!J338","v":""},{"$f":"'Project Assessment'!K338","v":""},null,null,null,null,null,null,null,null,null,null,null,null,null,null,null,null,null,null,null,null,null,null,null,null,null,null,null,null,null,null,null,null,null,null,null,null,null,null,null,null,null,null,null,null,null,null,null,null,null,null,null,null,null,null,null,null,null,null,null,null,null,null,null,null,null,null,null,null,null,null,null,null,null,null,null,null,null,null,null,null,null,null,null,null,null,null,null,null,null,null,null,null,{"$f":"B43","v":"If so, is a third party evaluation using these indicators currently available on the \"Documents\" tab of the World Bank's project page?"}]
["Implementation Status Results Reports (ISRs)",null,"Yes/No/Unclear","Project Appraisal Document (PAD) Description/Details (please include page numbers)","Page No.",{"$f":"'Project Assessment'!F36","v":" Description/Details Description/Details"},"Page No.",{"$f":"'Project Assessment'!H19","v":" Description/Details"},"Page No.",{"$f":"'Project Assessment'!J19","v":" Description/Details"},"Page No."]
[null,"ISR or Aide Memoire provide any other information about third party monitoring (i.e. products, results, about the external monitor, etc.)",null,{"$f":"'Project Assessment'!D364","v":""},{"$f":"'Project Assessment'!E364","v":""},{"$f":"'Project Assessment'!F364","v":""},{"$f":"'Project Assessment'!G364","v":""},{"$f":"'Project Assessment'!H364","v":""},{"$f":"'Project Assessment'!I364","v":""},{"$f":"'Project Assessment'!J364","v":""},{"$f":"'Project Assessment'!K364","v":""},null,null,null,null,null,null,null,null,null,null,null,null,null,null,null,null,null,null,null,null,null,null,null,null,null,null,null,null,null,null,null,null,null,null,null,null,null,null,null,null,null,null,null,null,null,null,null,null,null,null,null,null,null,null,null,null,null,null,null,null,null,null,null,null,null,null,null,null,null,null,null,null,null,null,null,null,null,null,null,null,null,null,null,null,null,null,null,null,null,null,null,null,{"$f":"B47","v":"ISR or Aide Memoire provide any other information about third party monitoring (i.e. products, results, about the external monitor, etc.)"}]
[null,null,null,{"$f":"'Project Assessment'!D365","v":""},{"$f":"'Project Assessment'!E365","v":""},{"$f":"'Project Assessment'!F365","v":""},{"$f":"'Project Assessment'!G365","v":""},{"$f":"'Project Assessment'!H365","v":""},{"$f":"'Project Assessment'!I365","v":""},{"$f":"'Project Assessment'!J365","v":""},{"$f":"'Project Assessment'!K365","v":""},null,null,null,null,null,null,null,null,null,null,null,null,null,null,null,null,null,null,null,null,null,null,null,null,null,null,null,null,null,null,null,null,null,null,null,null,null,null,null,null,null,null,null,null,null,null,null,null,null,null,null,null,null,null,null,null,null,null,null,null,null,null,null,null,null,null,null,null,null,null,null,null,null,null,null,null,null,null,null,null,null,null,null,null,null,null,null,null,null,null,null,null,{"$f":"B47","v":"ISR or Aide Memoire provide any other information about third party monitoring (i.e. products, results, about the external monitor, etc.)"}]
[null,null,{"$f":"'Project Assessment'!C366","v":0},{"$f":"'Project Assessment'!D366","v":""},{"$f":"'Project Assessment'!E366","v":""},{"$f":"'Project Assessment'!F366","v":""},{"$f":"'Project Assessment'!G366","v":""},{"$f":"'Project Assessment'!H366","v":""},{"$f":"'Project Assessment'!I366","v":""},{"$f":"'Project Assessment'!J366","v":""},{"$f":"'Project Assessment'!K366","v":""},null,null,null,null,null,null,null,null,null,null,null,null,null,null,null,null,null,null,null,null,null,null,null,null,null,null,null,null,null,null,null,null,null,null,null,null,null,null,null,null,null,null,null,null,null,null,null,null,null,null,null,null,null,null,null,null,null,null,null,null,null,null,null,null,null,null,null,null,null,null,null,null,null,null,null,null,null,null,null,null,null,null,null,null,null,null,null,null,null,null,null,null,{"$f":"B47","v":"ISR or Aide Memoire provide any other information about third party monitoring (i.e. products, results, about the external monitor, etc.)"}]
["Citizen Engagement Activities",null,"Yes/No/Unclear","Project Appraisal Document (PAD) Description/Details (please include page numbers)","Page No.",{"$f":"'Project Assessment'!F36","v":" Description/Details Description/Details"},"Page No.",{"$f":"'Project Assessment'!H19","v":" Description/Details"},"Page No.",{"$f":"'Project Assessment'!J19","v":" Description/Details"},"Page No."]
["\"Consultation\"","Were proactive social (i. gender, ethnic, disability, youth, migrant and/or other) inclusion measures described related to the make up of the consultations? Please specify what and for which populations",null,{"$f":"'Project Assessment'!D65","v":""},{"$f":"'Project Assessment'!E65","v":""},{"$f":"'Project Assessment'!F65","v":0},{"$f":"'Project Assessment'!G65","v":0},{"$f":"'Project Assessment'!H65","v":0},{"$f":"'Project Assessment'!I65","v":0},{"$f":"'Project Assessment'!J65","v":0},{"$f":"'Project Assessment'!K65","v":0},null,null,null,null,null,null,null,null,null,null,null,null,null,null,null,null,null,null,null,null,null,null,null,null,null,null,null,null,null,null,null,null,null,null,null,null,null,null,null,null,null,null,null,null,null,null,null,null,null,null,null,null,null,null,null,null,null,null,null,null,null,null,null,null,null,null,null,null,null,null,null,null,null,null,null,null,null,null,null,null,null,null,null,null,null,null,null,null,null,null,null,null,{"$f":"B51","v":"Were proactive social (i. gender, ethnic, disability, youth, migrant and/or other) inclusion measures described related to the make up of the consultations? Please specify what and for which populations"}]
[null,null,null,{"$f":"'Project Assessment'!D66","v":""},{"$f":"'Project Assessment'!E66","v":""},{"$f":"'Project Assessment'!F66","v":0},{"$f":"'Project Assessment'!G66","v":0},{"$f":"'Project Assessment'!H66","v":0},{"$f":"'Project Assessment'!I66","v":0},{"$f":"'Project Assessment'!J66","v":0},{"$f":"'Project Assessment'!K66","v":0},null,null,null,null,null,null,null,null,null,null,null,null,null,null,null,null,null,null,null,null,null,null,null,null,null,null,null,null,null,null,null,null,null,null,null,null,null,null,null,null,null,null,null,null,null,null,null,null,null,null,null,null,null,null,null,null,null,null,null,null,null,null,null,null,null,null,null,null,null,null,null,null,null,null,null,null,null,null,null,null,null,null,null,null,null,null,null,null,null,null,null,null,{"$f":"B51","v":"Were proactive social (i. gender, ethnic, disability, youth, migrant and/or other) inclusion measures described related to the make up of the consultations? Please specify what and for which populations"}]
[null,null,{"$f":"'Project Assessment'!C67","v":0},{"$f":"'Project Assessment'!D67","v":""},{"$f":"'Project Assessment'!E67","v":""},{"$f":"'Project Assessment'!F67","v":0},{"$f":"'Project Assessment'!G67","v":0},{"$f":"'Project Assessment'!H67","v":0},{"$f":"'Project Assessment'!I67","v":0},{"$f":"'Project Assessment'!J67","v":0},{"$f":"'Project Assessment'!K67","v":0},null,null,null,null,null,null,null,null,null,null,null,null,null,null,null,null,null,null,null,null,null,null,null,null,null,null,null,null,null,null,null,null,null,null,null,null,null,null,null,null,null,null,null,null,null,null,null,null,null,null,null,null,null,null,null,null,null,null,null,null,null,null,null,null,null,null,null,null,null,null,null,null,null,null,null,null,null,null,null,null,null,null,null,null,null,null,null,null,null,null,null,null,{"$f":"B51","v":"Were proactive social (i. gender, ethnic, disability, youth, migrant and/or other) inclusion measures described related to the make up of the consultations? Please specify what and for which populations"}]
["\"Collaboration in Decision Making\"","Were proactive social (gender, ethnic, disability, youth, migrant and/or other) inclusion measures described? Please specify what and for which populations",null,{"$f":"'Project Assessment'!D118","v":""},{"$f":"'Project Assessment'!E118","v":""},{"$f":"'Project Assessment'!F118","v":0},{"$f":"'Project Assessment'!G118","v":0},{"$f":"'Project Assessment'!H118","v":0},{"$f":"'Project Assessment'!I118","v":0},{"$f":"'Project Assessment'!J118","v":0},{"$f":"'Project Assessment'!K118","v":0},null,null,null,null,null,null,null,null,null,null,null,null,null,null,null,null,null,null,null,null,null,null,null,null,null,null,null,null,null,null,null,null,null,null,null,null,null,null,null,null,null,null,null,null,null,null,null,null,null,null,null,null,null,null,null,null,null,null,null,null,null,null,null,null,null,null,null,null,null,null,null,null,null,null,null,null,null,null,null,null,null,null,null,null,null,null,null,null,null,null,null,null,{"$f":"B54","v":"Were proactive social (gender, ethnic, disability, youth, migrant and/or other) inclusion measures described? Please specify what and for which populations"}]
[null,null,null,{"$f":"'Project Assessment'!D119","v":""},{"$f":"'Project Assessment'!E119","v":""},{"$f":"'Project Assessment'!F119","v":0},{"$f":"'Project Assessment'!G119","v":0},{"$f":"'Project Assessment'!H119","v":0},{"$f":"'Project Assessment'!I119","v":0},{"$f":"'Project Assessment'!J119","v":0},{"$f":"'Project Assessment'!K119","v":0},null,null,null,null,null,null,null,null,null,null,null,null,null,null,null,null,null,null,null,null,null,null,null,null,null,null,null,null,null,null,null,null,null,null,null,null,null,null,null,null,null,null,null,null,null,null,null,null,null,null,null,null,null,null,null,null,null,null,null,null,null,null,null,null,null,null,null,null,null,null,null,null,null,null,null,null,null,null,null,null,null,null,null,null,null,null,null,null,null,null,null,null,{"$f":"B54","v":"Were proactive social (gender, ethnic, disability, youth, migrant and/or other) inclusion measures described? Please specify what and for which populations"}]
[null,null,{"$f":"'Project Assessment'!C120","v":0},{"$f":"'Project Assessment'!D120","v":""},{"$f":"'Project Assessment'!E120","v":""},{"$f":"'Project Assessment'!F120","v":0},{"$f":"'Project Assessment'!G120","v":0},{"$f":"'Project Assessment'!H120","v":0},{"$f":"'Project Assessment'!I120","v":0},{"$f":"'Project Assessment'!J120","v":0},{"$f":"'Project Assessment'!K120","v":0},null,null,null,null,null,null,null,null,null,null,null,null,null,null,null,null,null,null,null,null,null,null,null,null,null,null,null,null,null,null,null,null,null,null,null,null,null,null,null,null,null,null,null,null,null,null,null,null,null,null,null,null,null,null,null,null,null,null,null,null,null,null,null,null,null,null,null,null,null,null,null,null,null,null,null,null,null,null,null,null,null,null,null,null,null,null,null,null,null,null,null,null,{"$f":"B54","v":"Were proactive social (gender, ethnic, disability, youth, migrant and/or other) inclusion measures described? Please specify what and for which populations"}]
["\"Collecting, Recording, and Reporting on Inputs from Citizens\"","Were proactive social (gender, ethnic, disability, youth, migrant and/or other) inclusion measures described? Please specify what and for which populations",null,{"$f":"'Project Assessment'!D164","v":""},{"$f":"'Project Assessment'!E164","v":""},{"$f":"'Project Assessment'!F164","v":""},{"$f":"'Project Assessment'!G164","v":""},{"$f":"'Project Assessment'!H164","v":""},{"$f":"'Project Assessment'!I164","v":""},{"$f":"'Project Assessment'!J164","v":""},{"$f":"'Project Assessment'!K164","v":""},null,null,null,null,null,null,null,null,null,null,null,null,null,null,null,null,null,null,null,null,null,null,null,null,null,null,null,null,null,null,null,null,null,null,null,null,null,null,null,null,null,null,null,null,null,null,null,null,null,null,null,null,null,null,null,null,null,null,null,null,null,null,null,null,null,null,null,null,null,null,null,null,null,null,null,null,null,null,null,null,null,null,null,null,null,null,null,null,null,null,null,null,{"$f":"B57","v":"Were proactive social (gender, ethnic, disability, youth, migrant and/or other) inclusion measures described? Please specify what and for which populations"}]
[null,null,null,{"$f":"'Project Assessment'!D165","v":""},{"$f":"'Project Assessment'!E165","v":""},{"$f":"'Project Assessment'!F165","v":""},{"$f":"'Project Assessment'!G165","v":""},{"$f":"'Project Assessment'!H165","v":""},{"$f":"'Project Assessment'!I165","v":""},{"$f":"'Project Assessment'!J165","v":""},{"$f":"'Project Assessment'!K165","v":""},null,null,null,null,null,null,null,null,null,null,null,null,null,null,null,null,null,null,null,null,null,null,null,null,null,null,null,null,null,null,null,null,null,null,null,null,null,null,null,null,null,null,null,null,null,null,null,null,null,null,null,null,null,null,null,null,null,null,null,null,null,null,null,null,null,null,null,null,null,null,null,null,null,null,null,null,null,null,null,null,null,null,null,null,null,null,null,null,null,null,null,null,{"$f":"B57","v":"Were proactive social (gender, ethnic, disability, youth, migrant and/or other) inclusion measures described? Please specify what and for which populations"}]
[null,null,{"$f":"'Project Assessment'!C166","v":0},{"$f":"'Project Assessment'!D166","v":""},{"$f":"'Project Assessment'!E166","v":""},{"$f":"'Project Assessment'!F166","v":""},{"$f":"'Project Assessment'!G166","v":""},{"$f":"'Project Assessment'!H166","v":""},{"$f":"'Project Assessment'!I166","v":""},{"$f":"'Project Assessment'!J166","v":""},{"$f":"'Project Assessment'!K166","v":""},null,null,null,null,null,null,null,null,null,null,null,null,null,null,null,null,null,null,null,null,null,null,null,null,null,null,null,null,null,null,null,null,null,null,null,null,null,null,null,null,null,null,null,null,null,null,null,null,null,null,null,null,null,null,null,null,null,null,null,null,null,null,null,null,null,null,null,null,null,null,null,null,null,null,null,null,null,null,null,null,null,null,null,null,null,null,null,null,null,null,null,null,{"$f":"B57","v":"Were proactive social (gender, ethnic, disability, youth, migrant and/or other) inclusion measures described? Please specify what and for which populations"}]
["\"Grievance Redress Mechanism\"","Were proactive social (gender, ethnic, disability, youth, migrant and/or other) inclusion measures described? Please specify what and for which populationss",null,{"$f":"'Project Assessment'!D203","v":""},{"$f":"'Project Assessment'!E203","v":""},{"$f":"'Project Assessment'!F203","v":0},{"$f":"'Project Assessment'!G203","v":0},{"$f":"'Project Assessment'!H203","v":0},{"$f":"'Project Assessment'!I203","v":0},{"$f":"'Project Assessment'!J203","v":0},{"$f":"'Project Assessment'!K203","v":0},null,null,null,null,null,null,null,null,null,null,null,null,null,null,null,null,null,null,null,null,null,null,null,null,null,null,null,null,null,null,null,null,null,null,null,null,null,null,null,null,null,null,null,null,null,null,null,null,null,null,null,null,null,null,null,null,null,null,null,null,null,null,null,null,null,null,null,null,null,null,null,null,null,null,null,null,null,null,null,null,null,null,null,null,null,null,null,null,null,null,null,null,{"$f":"B60","v":"Were proactive social (gender, ethnic, disability, youth, migrant and/or other) inclusion measures described? Please specify what and for which populationss"}]
[null,null,null,{"$f":"'Project Assessment'!D204","v":""},{"$f":"'Project Assessment'!E204","v":""},{"$f":"'Project Assessment'!F204","v":0},{"$f":"'Project Assessment'!G204","v":0},{"$f":"'Project Assessment'!H204","v":0},{"$f":"'Project Assessment'!I204","v":0},{"$f":"'Project Assessment'!J204","v":0},{"$f":"'Project Assessment'!K204","v":0},null,null,null,null,null,null,null,null,null,null,null,null,null,null,null,null,null,null,null,null,null,null,null,null,null,null,null,null,null,null,null,null,null,null,null,null,null,null,null,null,null,null,null,null,null,null,null,null,null,null,null,null,null,null,null,null,null,null,null,null,null,null,null,null,null,null,null,null,null,null,null,null,null,null,null,null,null,null,null,null,null,null,null,null,null,null,null,null,null,null,null,null,{"$f":"B60","v":"Were proactive social (gender, ethnic, disability, youth, migrant and/or other) inclusion measures described? Please specify what and for which populationss"}]
[null,null,{"$f":"'Project Assessment'!C205","v":0},{"$f":"'Project Assessment'!D205","v":""},{"$f":"'Project Assessment'!E205","v":""},{"$f":"'Project Assessment'!F205","v":0},{"$f":"'Project Assessment'!G205","v":0},{"$f":"'Project Assessment'!H205","v":0},{"$f":"'Project Assessment'!I205","v":0},{"$f":"'Project Assessment'!J205","v":0},{"$f":"'Project Assessment'!K205","v":0},null,null,null,null,null,null,null,null,null,null,null,null,null,null,null,null,null,null,null,null,null,null,null,null,null,null,null,null,null,null,null,null,null,null,null,null,null,null,null,null,null,null,null,null,null,null,null,null,null,null,null,null,null,null,null,null,null,null,null,null,null,null,null,null,null,null,null,null,null,null,null,null,null,null,null,null,null,null,null,null,null,null,null,null,null,null,null,null,null,null,null,null,{"$f":"B60","v":"Were proactive social (gender, ethnic, disability, youth, migrant and/or other) inclusion measures described? Please specify what and for which populationss"}]
["\"Citizen monitoring,  evaluation and oversight\"","Were proactive social (gender, ethnic, disability, youth, migrant and/or other) inclusion measures described? Please specify what and for which populations",null,{"$f":"'Project Assessment'!D263","v":""},{"$f":"'Project Assessment'!E263","v":""},{"$f":"'Project Assessment'!F263","v":0},{"$f":"'Project Assessment'!G263","v":0},{"$f":"'Project Assessment'!H263","v":0},{"$f":"'Project Assessment'!I263","v":0},{"$f":"'Project Assessment'!J263","v":0},{"$f":"'Project Assessment'!K263","v":0},null,null,null,null,null,null,null,null,null,null,null,null,null,null,null,null,null,null,null,null,null,null,null,null,null,null,null,null,null,null,null,null,null,null,null,null,null,null,null,null,null,null,null,null,null,null,null,null,null,null,null,null,null,null,null,null,null,null,null,null,null,null,null,null,null,null,null,null,null,null,null,null,null,null,null,null,null,null,null,null,null,null,null,null,null,null,null,null,null,null,null,null,{"$f":"B63","v":"Were proactive social (gender, ethnic, disability, youth, migrant and/or other) inclusion measures described? Please specify what and for which populations"}]
[null,null,null,{"$f":"'Project Assessment'!D264","v":""},{"$f":"'Project Assessment'!E264","v":""},{"$f":"'Project Assessment'!F264","v":0},{"$f":"'Project Assessment'!G264","v":0},{"$f":"'Project Assessment'!H264","v":0},{"$f":"'Project Assessment'!I264","v":0},{"$f":"'Project Assessment'!J264","v":0},{"$f":"'Project Assessment'!K264","v":0},null,null,null,null,null,null,null,null,null,null,null,null,null,null,null,null,null,null,null,null,null,null,null,null,null,null,null,null,null,null,null,null,null,null,null,null,null,null,null,null,null,null,null,null,null,null,null,null,null,null,null,null,null,null,null,null,null,null,null,null,null,null,null,null,null,null,null,null,null,null,null,null,null,null,null,null,null,null,null,null,null,null,null,null,null,null,null,null,null,null,null,null,{"$f":"B63","v":"Were proactive social (gender, ethnic, disability, youth, migrant and/or other) inclusion measures described? Please specify what and for which populations"}]
[null,null,{"$f":"'Project Assessment'!C265","v":0},{"$f":"'Project Assessment'!D265","v":""},{"$f":"'Project Assessment'!E265","v":""},{"$f":"'Project Assessment'!F265","v":0},{"$f":"'Project Assessment'!G265","v":0},{"$f":"'Project Assessment'!H265","v":0},{"$f":"'Project Assessment'!I265","v":0},{"$f":"'Project Assessment'!J265","v":0},{"$f":"'Project Assessment'!K265","v":0},null,null,null,null,null,null,null,null,null,null,null,null,null,null,null,null,null,null,null,null,null,null,null,null,null,null,null,null,null,null,null,null,null,null,null,null,null,null,null,null,null,null,null,null,null,null,null,null,null,null,null,null,null,null,null,null,null,null,null,null,null,null,null,null,null,null,null,null,null,null,null,null,null,null,null,null,null,null,null,null,null,null,null,null,null,null,null,null,null,null,null,null,{"$f":"B63","v":"Were proactive social (gender, ethnic, disability, youth, migrant and/or other) inclusion measures described? Please specify what and for which populations"}]
["\"Capacity Building for Citizen Engagement(CE Training)\"","Were proactive gender, ethnic, disability, youth, migrant and/or other inclusion  measures described? Please specify what and for which populations",null,{"$f":"'Project Assessment'!D294","v":""},{"$f":"'Project Assessment'!E294","v":""},{"$f":"'Project Assessment'!F294","v":0},{"$f":"'Project Assessment'!G294","v":0},{"$f":"'Project Assessment'!H294","v":0},{"$f":"'Project Assessment'!I294","v":0},{"$f":"'Project Assessment'!J294","v":0},{"$f":"'Project Assessment'!K294","v":0},null,null,null,null,null,null,null,null,null,null,null,null,null,null,null,null,null,null,null,null,null,null,null,null,null,null,null,null,null,null,null,null,null,null,null,null,null,null,null,null,null,null,null,null,null,null,null,null,null,null,null,null,null,null,null,null,null,null,null,null,null,null,null,null,null,null,null,null,null,null,null,null,null,null,null,null,null,null,null,null,null,null,null,null,null,null,null,null,null,null,null,null,{"$f":"B66","v":"Were proactive gender, ethnic, disability, youth, migrant and/or other inclusion  measures described? Please specify what and for which populations"}]
[null,null,null,{"$f":"'Project Assessment'!D295","v":""},{"$f":"'Project Assessment'!E295","v":""},{"$f":"'Project Assessment'!F295","v":0},{"$f":"'Project Assessment'!G295","v":0},{"$f":"'Project Assessment'!H295","v":0},{"$f":"'Project Assessment'!I295","v":0},{"$f":"'Project Assessment'!J295","v":0},{"$f":"'Project Assessment'!K295","v":0},null,null,null,null,null,null,null,null,null,null,null,null,null,null,null,null,null,null,null,null,null,null,null,null,null,null,null,null,null,null,null,null,null,null,null,null,null,null,null,null,null,null,null,null,null,null,null,null,null,null,null,null,null,null,null,null,null,null,null,null,null,null,null,null,null,null,null,null,null,null,null,null,null,null,null,null,null,null,null,null,null,null,null,null,null,null,null,null,null,null,null,null,{"$f":"B66","v":"Were proactive gender, ethnic, disability, youth, migrant and/or other inclusion  measures described? Please specify what and for which populations"}]
[null,null,{"$f":"'Project Assessment'!C296","v":0},{"$f":"'Project Assessment'!D296","v":""},{"$f":"'Project Assessment'!E296","v":""},{"$f":"'Project Assessment'!F296","v":0},{"$f":"'Project Assessment'!G296","v":0},{"$f":"'Project Assessment'!H296","v":0},{"$f":"'Project Assessment'!I296","v":0},{"$f":"'Project Assessment'!J296","v":0},{"$f":"'Project Assessment'!K296","v":0},null,null,null,null,null,null,null,null,null,null,null,null,null,null,null,null,null,null,null,null,null,null,null,null,null,null,null,null,null,null,null,null,null,null,null,null,null,null,null,null,null,null,null,null,null,null,null,null,null,null,null,null,null,null,null,null,null,null,null,null,null,null,null,null,null,null,null,null,null,null,null,null,null,null,null,null,null,null,null,null,null,null,null,null,null,null,null,null,null,null,null,null,{"$f":"B66","v":"Were proactive gender, ethnic, disability, youth, migrant and/or other inclusion  measures described? Please specify what and for which populations"}]
["Implementation Status Results Reports (ISRs)",null,"Yes/No/Unclear","Project Appraisal Document (PAD) Description/Details (please include page numbers)","Page No.",{"$f":"'Project Assessment'!F36","v":" Description/Details Description/Details"},"Page No.",{"$f":"'Project Assessment'!H19","v":" Description/Details"},"Page No.",{"$f":"'Project Assessment'!J19","v":" Description/Details"},"Page No."]
[null,"ISR or Aide Memoire provide any information and/or updates on proactive social inclusion",null,{"$f":"'Project Assessment'!D361","v":""},{"$f":"'Project Assessment'!E361","v":""},{"$f":"'Project Assessment'!F361","v":""},{"$f":"'Project Assessment'!G361","v":""},{"$f":"'Project Assessment'!H361","v":""},{"$f":"'Project Assessment'!I361","v":""},{"$f":"'Project Assessment'!J361","v":""},{"$f":"'Project Assessment'!K361","v":""},null,null,null,null,null,null,null,null,null,null,null,null,null,null,null,null,null,null,null,null,null,null,null,null,null,null,null,null,null,null,null,null,null,null,null,null,null,null,null,null,null,null,null,null,null,null,null,null,null,null,null,null,null,null,null,null,null,null,null,null,null,null,null,null,null,null,null,null,null,null,null,null,null,null,null,null,null,null,null,null,null,null,null,null,null,null,null,null,null,null,null,null,{"$f":"B70","v":"ISR or Aide Memoire provide any information and/or updates on proactive social inclusion"}]
[null,null,null,{"$f":"'Project Assessment'!D362","v":""},{"$f":"'Project Assessment'!E362","v":""},{"$f":"'Project Assessment'!F362","v":""},{"$f":"'Project Assessment'!G362","v":""},{"$f":"'Project Assessment'!H362","v":""},{"$f":"'Project Assessment'!I362","v":""},{"$f":"'Project Assessment'!J362","v":""},{"$f":"'Project Assessment'!K362","v":""},null,null,null,null,null,null,null,null,null,null,null,null,null,null,null,null,null,null,null,null,null,null,null,null,null,null,null,null,null,null,null,null,null,null,null,null,null,null,null,null,null,null,null,null,null,null,null,null,null,null,null,null,null,null,null,null,null,null,null,null,null,null,null,null,null,null,null,null,null,null,null,null,null,null,null,null,null,null,null,null,null,null,null,null,null,null,null,null,null,null,null,null,{"$f":"B70","v":"ISR or Aide Memoire provide any information and/or updates on proactive social inclusion"}]
[null,null,{"$f":"'Project Assessment'!C363","v":0},{"$f":"'Project Assessment'!D363","v":""},{"$f":"'Project Assessment'!E363","v":""},{"$f":"'Project Assessment'!F363","v":""},{"$f":"'Project Assessment'!G363","v":""},{"$f":"'Project Assessment'!H363","v":""},{"$f":"'Project Assessment'!I363","v":""},{"$f":"'Project Assessment'!J363","v":""},{"$f":"'Project Assessment'!K363","v":""},null,null,null,null,null,null,null,null,null,null,null,null,null,null,null,null,null,null,null,null,null,null,null,null,null,null,null,null,null,null,null,null,null,null,null,null,null,null,null,null,null,null,null,null,null,null,null,null,null,null,null,null,null,null,null,null,null,null,null,null,null,null,null,null,null,null,null,null,null,null,null,null,null,null,null,null,null,null,null,null,null,null,null,null,null,null,null,null,null,null,null,null,{"$f":"B70","v":"ISR or Aide Memoire provide any information and/or updates on proactive social inclusion"}]
["Citizen Engagement Activities",null,"Yes/No/Unclear","Project Appraisal Document (PAD) Description/Details (please include page numbers)","Page No.",{"$f":"'Project Assessment'!F36","v":" Description/Details Description/Details"},"Page No.",{"$f":"'Project Assessment'!H19","v":" Description/Details"},"Page No.",{"$f":"'Project Assessment'!J19","v":" Description/Details"},"Page No."]
["\"Consultation\"","Project commits to public disclosure of  consultation results  meeting minutes, any resulting reports, etc.)",null,{"$f":"'Project Assessment'!D77","v":""},{"$f":"'Project Assessment'!E77","v":""},{"$f":"'Project Assessment'!F77","v":0},{"$f":"'Project Assessment'!G77","v":0},{"$f":"'Project Assessment'!H77","v":0},{"$f":"'Project Assessment'!I77","v":0},{"$f":"'Project Assessment'!J77","v":0},{"$f":"'Project Assessment'!K77","v":0},null,null,null,null,null,null,null,null,null,null,null,null,null,null,null,null,null,null,null,null,null,null,null,null,null,null,null,null,null,null,null,null,null,null,null,null,null,null,null,null,null,null,null,null,null,null,null,null,null,null,null,null,null,null,null,null,null,null,null,null,null,null,null,null,null,null,null,null,null,null,null,null,null,null,null,null,null,null,null,null,null,null,null,null,null,null,null,null,null,null,null,null,{"$f":"B74","v":"Project commits to public disclosure of  consultation results  meeting minutes, any resulting reports, etc.)"}]
[null,null,null,{"$f":"'Project Assessment'!D78","v":""},{"$f":"'Project Assessment'!E78","v":""},{"$f":"'Project Assessment'!F78","v":0},{"$f":"'Project Assessment'!G78","v":0},{"$f":"'Project Assessment'!H78","v":0},{"$f":"'Project Assessment'!I78","v":0},{"$f":"'Project Assessment'!J78","v":0},{"$f":"'Project Assessment'!K78","v":0},null,null,null,null,null,null,null,null,null,null,null,null,null,null,null,null,null,null,null,null,null,null,null,null,null,null,null,null,null,null,null,null,null,null,null,null,null,null,null,null,null,null,null,null,null,null,null,null,null,null,null,null,null,null,null,null,null,null,null,null,null,null,null,null,null,null,null,null,null,null,null,null,null,null,null,null,null,null,null,null,null,null,null,null,null,null,null,null,null,null,null,null,{"$f":"B74","v":"Project commits to public disclosure of  consultation results  meeting minutes, any resulting reports, etc.)"}]
[null,null,{"$f":"'Project Assessment'!C79","v":0},{"$f":"'Project Assessment'!D79","v":""},{"$f":"'Project Assessment'!E79","v":""},{"$f":"'Project Assessment'!F79","v":0},{"$f":"'Project Assessment'!G79","v":0},{"$f":"'Project Assessment'!H79","v":0},{"$f":"'Project Assessment'!I79","v":0},{"$f":"'Project Assessment'!J79","v":0},{"$f":"'Project Assessment'!K79","v":0},null,null,null,null,null,null,null,null,null,null,null,null,null,null,null,null,null,null,null,null,null,null,null,null,null,null,null,null,null,null,null,null,null,null,null,null,null,null,null,null,null,null,null,null,null,null,null,null,null,null,null,null,null,null,null,null,null,null,null,null,null,null,null,null,null,null,null,null,null,null,null,null,null,null,null,null,null,null,null,null,null,null,null,null,null,null,null,null,null,null,null,null,{"$f":"B74","v":"Project commits to public disclosure of  consultation results  meeting minutes, any resulting reports, etc.)"}]
["\"Collaboration in Decision Making\"","Project commits to public disclosure of results or products (i.e. meeting minutes, decisions) from collaboration activities?  ",null,{"$f":"'Project Assessment'!D133","v":""},{"$f":"'Project Assessment'!E133","v":""},{"$f":"'Project Assessment'!F133","v":0},{"$f":"'Project Assessment'!G133","v":0},{"$f":"'Project Assessment'!H133","v":0},{"$f":"'Project Assessment'!I133","v":0},{"$f":"'Project Assessment'!J133","v":0},{"$f":"'Project Assessment'!K133","v":0},null,null,null,null,null,null,null,null,null,null,null,null,null,null,null,null,null,null,null,null,null,null,null,null,null,null,null,null,null,null,null,null,null,null,null,null,null,null,null,null,null,null,null,null,null,null,null,null,null,null,null,null,null,null,null,null,null,null,null,null,null,null,null,null,null,null,null,null,null,null,null,null,null,null,null,null,null,null,null,null,null,null,null,null,null,null,null,null,null,null,null,null,{"$f":"B77","v":"Project commits to public disclosure of results or products (i.e. meeting minutes, decisions) from collaboration activities?  "}]
[null,null,null,{"$f":"'Project Assessment'!D134","v":""},{"$f":"'Project Assessment'!E134","v":""},{"$f":"'Project Assessment'!F134","v":0},{"$f":"'Project Assessment'!G134","v":0},{"$f":"'Project Assessment'!H134","v":0},{"$f":"'Project Assessment'!I134","v":0},{"$f":"'Project Assessment'!J134","v":0},{"$f":"'Project Assessment'!K134","v":0},null,null,null,null,null,null,null,null,null,null,null,null,null,null,null,null,null,null,null,null,null,null,null,null,null,null,null,null,null,null,null,null,null,null,null,null,null,null,null,null,null,null,null,null,null,null,null,null,null,null,null,null,null,null,null,null,null,null,null,null,null,null,null,null,null,null,null,null,null,null,null,null,null,null,null,null,null,null,null,null,null,null,null,null,null,null,null,null,null,null,null,null,{"$f":"B77","v":"Project commits to public disclosure of results or products (i.e. meeting minutes, decisions) from collaboration activities?  "}]
[null,null,{"$f":"'Project Assessment'!C135","v":0},{"$f":"'Project Assessment'!D135","v":""},{"$f":"'Project Assessment'!E135","v":""},{"$f":"'Project Assessment'!F135","v":0},{"$f":"'Project Assessment'!G135","v":0},{"$f":"'Project Assessment'!H135","v":0},{"$f":"'Project Assessment'!I135","v":0},{"$f":"'Project Assessment'!J135","v":0},{"$f":"'Project Assessment'!K135","v":0},null,null,null,null,null,null,null,null,null,null,null,null,null,null,null,null,null,null,null,null,null,null,null,null,null,null,null,null,null,null,null,null,null,null,null,null,null,null,null,null,null,null,null,null,null,null,null,null,null,null,null,null,null,null,null,null,null,null,null,null,null,null,null,null,null,null,null,null,null,null,null,null,null,null,null,null,null,null,null,null,null,null,null,null,null,null,null,null,null,null,null,null,{"$f":"B77","v":"Project commits to public disclosure of results or products (i.e. meeting minutes, decisions) from collaboration activities?  "}]
["\"Collecting, Recording, and Reporting on Inputs from Citizens\"","Project commits to public disclosure of citizen feedback results?",null,{"$f":"'Project Assessment'!D173","v":""},{"$f":"'Project Assessment'!E173","v":""},{"$f":"'Project Assessment'!F173","v":""},{"$f":"'Project Assessment'!G173","v":""},{"$f":"'Project Assessment'!H173","v":""},{"$f":"'Project Assessment'!I173","v":""},{"$f":"'Project Assessment'!J173","v":""},{"$f":"'Project Assessment'!K173","v":""},null,null,null,null,null,null,null,null,null,null,null,null,null,null,null,null,null,null,null,null,null,null,null,null,null,null,null,null,null,null,null,null,null,null,null,null,null,null,null,null,null,null,null,null,null,null,null,null,null,null,null,null,null,null,null,null,null,null,null,null,null,null,null,null,null,null,null,null,null,null,null,null,null,null,null,null,null,null,null,null,null,null,null,null,null,null,null,null,null,null,null,null,{"$f":"B80","v":"Project commits to public disclosure of citizen feedback results?"}]
[null,null,null,{"$f":"'Project Assessment'!D174","v":""},{"$f":"'Project Assessment'!E174","v":""},{"$f":"'Project Assessment'!F174","v":""},{"$f":"'Project Assessment'!G174","v":""},{"$f":"'Project Assessment'!H174","v":""},{"$f":"'Project Assessment'!I174","v":""},{"$f":"'Project Assessment'!J174","v":""},{"$f":"'Project Assessment'!K174","v":""},null,null,null,null,null,null,null,null,null,null,null,null,null,null,null,null,null,null,null,null,null,null,null,null,null,null,null,null,null,null,null,null,null,null,null,null,null,null,null,null,null,null,null,null,null,null,null,null,null,null,null,null,null,null,null,null,null,null,null,null,null,null,null,null,null,null,null,null,null,null,null,null,null,null,null,null,null,null,null,null,null,null,null,null,null,null,null,null,null,null,null,null,{"$f":"B80","v":"Project commits to public disclosure of citizen feedback results?"}]
[null,null,{"$f":"'Project Assessment'!C175","v":0},{"$f":"'Project Assessment'!D175","v":""},{"$f":"'Project Assessment'!E175","v":""},{"$f":"'Project Assessment'!F175","v":""},{"$f":"'Project Assessment'!G175","v":""},{"$f":"'Project Assessment'!H175","v":""},{"$f":"'Project Assessment'!I175","v":""},{"$f":"'Project Assessment'!J175","v":""},{"$f":"'Project Assessment'!K175","v":""},null,null,null,null,null,null,null,null,null,null,null,null,null,null,null,null,null,null,null,null,null,null,null,null,null,null,null,null,null,null,null,null,null,null,null,null,null,null,null,null,null,null,null,null,null,null,null,null,null,null,null,null,null,null,null,null,null,null,null,null,null,null,null,null,null,null,null,null,null,null,null,null,null,null,null,null,null,null,null,null,null,null,null,null,null,null,null,null,null,null,null,null,{"$f":"B80","v":"Project commits to public disclosure of citizen feedback results?"}]
["\"Grievance Redress Mechanism\"","Project commits to public disclosure of GRM data (i.e. number of complaints received, resolved; content of complaints; resolution strategies?)",null,{"$f":"'Project Assessment'!D239","v":""},{"$f":"'Project Assessment'!E239","v":""},{"$f":"'Project Assessment'!F239","v":0},{"$f":"'Project Assessment'!G239","v":0},{"$f":"'Project Assessment'!H239","v":0},{"$f":"'Project Assessment'!I239","v":0},{"$f":"'Project Assessment'!J239","v":0},{"$f":"'Project Assessment'!K239","v":0},null,null,null,null,null,null,null,null,null,null,null,null,null,null,null,null,null,null,null,null,null,null,null,null,null,null,null,null,null,null,null,null,null,null,null,null,null,null,null,null,null,null,null,null,null,null,null,null,null,null,null,null,null,null,null,null,null,null,null,null,null,null,null,null,null,null,null,null,null,null,null,null,null,null,null,null,null,null,null,null,null,null,null,null,null,null,null,null,null,null,null,null,{"$f":"B83","v":"Project commits to public disclosure of GRM data (i.e. number of complaints received, resolved; content of complaints; resolution strategies?)"}]
[null,null,null,{"$f":"'Project Assessment'!D240","v":""},{"$f":"'Project Assessment'!E240","v":""},{"$f":"'Project Assessment'!F240","v":0},{"$f":"'Project Assessment'!G240","v":0},{"$f":"'Project Assessment'!H240","v":0},{"$f":"'Project Assessment'!I240","v":0},{"$f":"'Project Assessment'!J240","v":0},{"$f":"'Project Assessment'!K240","v":0},null,null,null,null,null,null,null,null,null,null,null,null,null,null,null,null,null,null,null,null,null,null,null,null,null,null,null,null,null,null,null,null,null,null,null,null,null,null,null,null,null,null,null,null,null,null,null,null,null,null,null,null,null,null,null,null,null,null,null,null,null,null,null,null,null,null,null,null,null,null,null,null,null,null,null,null,null,null,null,null,null,null,null,null,null,null,null,null,null,null,null,null,{"$f":"B83","v":"Project commits to public disclosure of GRM data (i.e. number of complaints received, resolved; content of complaints; resolution strategies?)"}]
[null,null,{"$f":"'Project Assessment'!C241","v":0},{"$f":"'Project Assessment'!D241","v":""},{"$f":"'Project Assessment'!E241","v":""},{"$f":"'Project Assessment'!F241","v":0},{"$f":"'Project Assessment'!G241","v":0},{"$f":"'Project Assessment'!H241","v":0},{"$f":"'Project Assessment'!I241","v":0},{"$f":"'Project Assessment'!J241","v":0},{"$f":"'Project Assessment'!K241","v":0},null,null,null,null,null,null,null,null,null,null,null,null,null,null,null,null,null,null,null,null,null,null,null,null,null,null,null,null,null,null,null,null,null,null,null,null,null,null,null,null,null,null,null,null,null,null,null,null,null,null,null,null,null,null,null,null,null,null,null,null,null,null,null,null,null,null,null,null,null,null,null,null,null,null,null,null,null,null,null,null,null,null,null,null,null,null,null,null,null,null,null,null,{"$f":"B83","v":"Project commits to public disclosure of GRM data (i.e. number of complaints received, resolved; content of complaints; resolution strategies?)"}]
["\"Citizen monitoring,  evaluation and oversight\"","Project commits to public disclosure of citizen-led monitoring results?",null,{"$f":"'Project Assessment'!D266","v":""},{"$f":"'Project Assessment'!E266","v":""},{"$f":"'Project Assessment'!F266","v":0},{"$f":"'Project Assessment'!G266","v":0},{"$f":"'Project Assessment'!H266","v":0},{"$f":"'Project Assessment'!I266","v":0},{"$f":"'Project Assessment'!J266","v":0},{"$f":"'Project Assessment'!K266","v":0},null,null,null,null,null,null,null,null,null,null,null,null,null,null,null,null,null,null,null,null,null,null,null,null,null,null,null,null,null,null,null,null,null,null,null,null,null,null,null,null,null,null,null,null,null,null,null,null,null,null,null,null,null,null,null,null,null,null,null,null,null,null,null,null,null,null,null,null,null,null,null,null,null,null,null,null,null,null,null,null,null,null,null,null,null,null,null,null,null,null,null,null,{"$f":"B86","v":"Project commits to public disclosure of citizen-led monitoring results?"}]
[null,null,null,{"$f":"'Project Assessment'!D267","v":""},{"$f":"'Project Assessment'!E267","v":""},{"$f":"'Project Assessment'!F267","v":0},{"$f":"'Project Assessment'!G267","v":0},{"$f":"'Project Assessment'!H267","v":0},{"$f":"'Project Assessment'!I267","v":0},{"$f":"'Project Assessment'!J267","v":0},{"$f":"'Project Assessment'!K267","v":0},null,null,null,null,null,null,null,null,null,null,null,null,null,null,null,null,null,null,null,null,null,null,null,null,null,null,null,null,null,null,null,null,null,null,null,null,null,null,null,null,null,null,null,null,null,null,null,null,null,null,null,null,null,null,null,null,null,null,null,null,null,null,null,null,null,null,null,null,null,null,null,null,null,null,null,null,null,null,null,null,null,null,null,null,null,null,null,null,null,null,null,null,{"$f":"B86","v":"Project commits to public disclosure of citizen-led monitoring results?"}]
[null,null,{"$f":"'Project Assessment'!C268","v":0},{"$f":"'Project Assessment'!D268","v":""},{"$f":"'Project Assessment'!E268","v":""},{"$f":"'Project Assessment'!F268","v":0},{"$f":"'Project Assessment'!G268","v":0},{"$f":"'Project Assessment'!H268","v":0},{"$f":"'Project Assessment'!I268","v":0},{"$f":"'Project Assessment'!J268","v":0},{"$f":"'Project Assessment'!K268","v":0},null,null,null,null,null,null,null,null,null,null,null,null,null,null,null,null,null,null,null,null,null,null,null,null,null,null,null,null,null,null,null,null,null,null,null,null,null,null,null,null,null,null,null,null,null,null,null,null,null,null,null,null,null,null,null,null,null,null,null,null,null,null,null,null,null,null,null,null,null,null,null,null,null,null,null,null,null,null,null,null,null,null,null,null,null,null,null,null,null,null,null,null,{"$f":"B86","v":"Project commits to public disclosure of citizen-led monitoring results?"}]
["\"Capacity Building for Citizen Engagement(CE Training)\"","Project commits to public disclosure of  CE capacity building attendees and results?",null,{"$f":"'Project Assessment'!D300","v":""},{"$f":"'Project Assessment'!E300","v":""},{"$f":"'Project Assessment'!F300","v":0},{"$f":"'Project Assessment'!G300","v":0},{"$f":"'Project Assessment'!H300","v":0},{"$f":"'Project Assessment'!I300","v":0},{"$f":"'Project Assessment'!J300","v":0},{"$f":"'Project Assessment'!K300","v":0},null,null,null,null,null,null,null,null,null,null,null,null,null,null,null,null,null,null,null,null,null,null,null,null,null,null,null,null,null,null,null,null,null,null,null,null,null,null,null,null,null,null,null,null,null,null,null,null,null,null,null,null,null,null,null,null,null,null,null,null,null,null,null,null,null,null,null,null,null,null,null,null,null,null,null,null,null,null,null,null,null,null,null,null,null,null,null,null,null,null,null,null,{"$f":"B89","v":"Project commits to public disclosure of  CE capacity building attendees and results?"}]
[null,null,null,{"$f":"'Project Assessment'!D301","v":""},{"$f":"'Project Assessment'!E301","v":""},{"$f":"'Project Assessment'!F301","v":0},{"$f":"'Project Assessment'!G301","v":0},{"$f":"'Project Assessment'!H301","v":0},{"$f":"'Project Assessment'!I301","v":0},{"$f":"'Project Assessment'!J301","v":0},{"$f":"'Project Assessment'!K301","v":0},null,null,null,null,null,null,null,null,null,null,null,null,null,null,null,null,null,null,null,null,null,null,null,null,null,null,null,null,null,null,null,null,null,null,null,null,null,null,null,null,null,null,null,null,null,null,null,null,null,null,null,null,null,null,null,null,null,null,null,null,null,null,null,null,null,null,null,null,null,null,null,null,null,null,null,null,null,null,null,null,null,null,null,null,null,null,null,null,null,null,null,null,{"$f":"B89","v":"Project commits to public disclosure of  CE capacity building attendees and results?"}]
[null,null,{"$f":"'Project Assessment'!C302","v":0},{"$f":"'Project Assessment'!D302","v":""},{"$f":"'Project Assessment'!E302","v":""},{"$f":"'Project Assessment'!F302","v":0},{"$f":"'Project Assessment'!G302","v":0},{"$f":"'Project Assessment'!H302","v":0},{"$f":"'Project Assessment'!I302","v":0},{"$f":"'Project Assessment'!J302","v":0},{"$f":"'Project Assessment'!K302","v":0},null,null,null,null,null,null,null,null,null,null,null,null,null,null,null,null,null,null,null,null,null,null,null,null,null,null,null,null,null,null,null,null,null,null,null,null,null,null,null,null,null,null,null,null,null,null,null,null,null,null,null,null,null,null,null,null,null,null,null,null,null,null,null,null,null,null,null,null,null,null,null,null,null,null,null,null,null,null,null,null,null,null,null,null,null,null,null,null,null,null,null,null,{"$f":"B89","v":"Project commits to public disclosure of  CE capacity building attendees and results?"}]
["Monitoring Systems within World Bank Projects",null,"Yes/No/Unclear","Project Appraisal Document (PAD) Description/Details (please include page numbers)","Page No.",{"$f":"'Project Assessment'!F36","v":" Description/Details Description/Details"},"Page No.",{"$f":"'Project Assessment'!H19","v":" Description/Details"},"Page No.",{"$f":"'Project Assessment'!J19","v":" Description/Details"},"Page No."]
[null,"Is there a commitment to pro-active disclosure for M&E findings (beyond  mandatory reporting  on results framework indicators)",null,{"$f":"'Project Assessment'!D321","v":""},{"$f":"'Project Assessment'!E321","v":""},{"$f":"'Project Assessment'!F321","v":""},{"$f":"'Project Assessment'!G321","v":""},{"$f":"'Project Assessment'!H321","v":""},{"$f":"'Project Assessment'!I321","v":""},{"$f":"'Project Assessment'!J321","v":""},{"$f":"'Project Assessment'!K321","v":""},null,null,null,null,null,null,null,null,null,null,null,null,null,null,null,null,null,null,null,null,null,null,null,null,null,null,null,null,null,null,null,null,null,null,null,null,null,null,null,null,null,null,null,null,null,null,null,null,null,null,null,null,null,null,null,null,null,null,null,null,null,null,null,null,null,null,null,null,null,null,null,null,null,null,null,null,null,null,null,null,null,null,null,null,null,null,null,null,null,null,null,null,{"$f":"B93","v":"Is there a commitment to pro-active disclosure for M&E findings (beyond  mandatory reporting  on results framework indicators)"}]
[null,null,null,{"$f":"'Project Assessment'!D322","v":""},{"$f":"'Project Assessment'!E322","v":""},{"$f":"'Project Assessment'!F322","v":""},{"$f":"'Project Assessment'!G322","v":""},{"$f":"'Project Assessment'!H322","v":""},{"$f":"'Project Assessment'!I322","v":""},{"$f":"'Project Assessment'!J322","v":""},{"$f":"'Project Assessment'!K322","v":""},null,null,null,null,null,null,null,null,null,null,null,null,null,null,null,null,null,null,null,null,null,null,null,null,null,null,null,null,null,null,null,null,null,null,null,null,null,null,null,null,null,null,null,null,null,null,null,null,null,null,null,null,null,null,null,null,null,null,null,null,null,null,null,null,null,null,null,null,null,null,null,null,null,null,null,null,null,null,null,null,null,null,null,null,null,null,null,null,null,null,null,null,{"$f":"B93","v":"Is there a commitment to pro-active disclosure for M&E findings (beyond  mandatory reporting  on results framework indicators)"}]
[null,null,{"$f":"'Project Assessment'!C323","v":0},{"$f":"'Project Assessment'!D323","v":""},{"$f":"'Project Assessment'!E323","v":""},{"$f":"'Project Assessment'!F323","v":""},{"$f":"'Project Assessment'!G323","v":""},{"$f":"'Project Assessment'!H323","v":""},{"$f":"'Project Assessment'!I323","v":""},{"$f":"'Project Assessment'!J323","v":""},{"$f":"'Project Assessment'!K323","v":""},null,null,null,null,null,null,null,null,null,null,null,null,null,null,null,null,null,null,null,null,null,null,null,null,null,null,null,null,null,null,null,null,null,null,null,null,null,null,null,null,null,null,null,null,null,null,null,null,null,null,null,null,null,null,null,null,null,null,null,null,null,null,null,null,null,null,null,null,null,null,null,null,null,null,null,null,null,null,null,null,null,null,null,null,null,null,null,null,null,null,null,null,{"$f":"B93","v":"Is there a commitment to pro-active disclosure for M&E findings (beyond  mandatory reporting  on results framework indicators)"}]
[null,"Does the project commit to disclosing Results Framework indicators in any national languages besides English?",null,{"$f":"'Project Assessment'!D330","v":""},{"$f":"'Project Assessment'!E330","v":""},{"$f":"'Project Assessment'!F330","v":""},{"$f":"'Project Assessment'!G330","v":""},{"$f":"'Project Assessment'!H330","v":""},{"$f":"'Project Assessment'!I330","v":""},{"$f":"'Project Assessment'!J330","v":""},{"$f":"'Project Assessment'!K330","v":""},null,null,null,null,null,null,null,null,null,null,null,null,null,null,null,null,null,null,null,null,null,null,null,null,null,null,null,null,null,null,null,null,null,null,null,null,null,null,null,null,null,null,null,null,null,null,null,null,null,null,null,null,null,null,null,null,null,null,null,null,null,null,null,null,null,null,null,null,null,null,null,null,null,null,null,null,null,null,null,null,null,null,null,null,null,null,null,null,null,null,null,null,{"$f":"B96","v":"Does the project commit to disclosing Results Framework indicators in any national languages besides English?"}]
[null,null,null,{"$f":"'Project Assessment'!D331","v":""},{"$f":"'Project Assessment'!E331","v":""},{"$f":"'Project Assessment'!F331","v":""},{"$f":"'Project Assessment'!G331","v":""},{"$f":"'Project Assessment'!H331","v":""},{"$f":"'Project Assessment'!I331","v":""},{"$f":"'Project Assessment'!J331","v":""},{"$f":"'Project Assessment'!K331","v":""},null,null,null,null,null,null,null,null,null,null,null,null,null,null,null,null,null,null,null,null,null,null,null,null,null,null,null,null,null,null,null,null,null,null,null,null,null,null,null,null,null,null,null,null,null,null,null,null,null,null,null,null,null,null,null,null,null,null,null,null,null,null,null,null,null,null,null,null,null,null,null,null,null,null,null,null,null,null,null,null,null,null,null,null,null,null,null,null,null,null,null,null,{"$f":"B96","v":"Does the project commit to disclosing Results Framework indicators in any national languages besides English?"}]
[null,null,{"$f":"'Project Assessment'!C332","v":0},{"$f":"'Project Assessment'!D332","v":""},{"$f":"'Project Assessment'!E332","v":""},{"$f":"'Project Assessment'!F332","v":""},{"$f":"'Project Assessment'!G332","v":""},{"$f":"'Project Assessment'!H332","v":""},{"$f":"'Project Assessment'!I332","v":""},{"$f":"'Project Assessment'!J332","v":""},{"$f":"'Project Assessment'!K332","v":""},null,null,null,null,null,null,null,null,null,null,null,null,null,null,null,null,null,null,null,null,null,null,null,null,null,null,null,null,null,null,null,null,null,null,null,null,null,null,null,null,null,null,null,null,null,null,null,null,null,null,null,null,null,null,null,null,null,null,null,null,null,null,null,null,null,null,null,null,null,null,null,null,null,null,null,null,null,null,null,null,null,null,null,null,null,null,null,null,null,null,null,null,{"$f":"B96","v":"Does the project commit to disclosing Results Framework indicators in any national languages besides English?"}]
["Implementation Status Results Reports (ISRs)",null,"Yes/No/Unclear","Project Appraisal Document (PAD) Description/Details (please include page numbers)","Page No.",{"$f":"'Project Assessment'!F36","v":" Description/Details Description/Details"},"Page No.",{"$f":"'Project Assessment'!H19","v":" Description/Details"},"Page No.",{"$f":"'Project Assessment'!J19","v":" Description/Details"},"Page No."]
[null,"ISR or Aide Memoire provide any other information and/or updates about public disclosure?",null,{"$f":"'Project Assessment'!D367","v":""},{"$f":"'Project Assessment'!E367","v":""},{"$f":"'Project Assessment'!F367","v":""},{"$f":"'Project Assessment'!G367","v":""},{"$f":"'Project Assessment'!H367","v":""},{"$f":"'Project Assessment'!I367","v":""},{"$f":"'Project Assessment'!J367","v":""},{"$f":"'Project Assessment'!K367","v":""},null,null,null,null,null,null,null,null,null,null,null,null,null,null,null,null,null,null,null,null,null,null,null,null,null,null,null,null,null,null,null,null,null,null,null,null,null,null,null,null,null,null,null,null,null,null,null,null,null,null,null,null,null,null,null,null,null,null,null,null,null,null,null,null,null,null,null,null,null,null,null,null,null,null,null,null,null,null,null,null,null,null,null,null,null,null,null,null,null,null,null,null,{"$f":"B100","v":"ISR or Aide Memoire provide any other information and/or updates about public disclosure?"}]
[null,null,null,{"$f":"'Project Assessment'!D368","v":""},{"$f":"'Project Assessment'!E368","v":""},{"$f":"'Project Assessment'!F368","v":""},{"$f":"'Project Assessment'!G368","v":""},{"$f":"'Project Assessment'!H368","v":""},{"$f":"'Project Assessment'!I368","v":""},{"$f":"'Project Assessment'!J368","v":""},{"$f":"'Project Assessment'!K368","v":""},null,null,null,null,null,null,null,null,null,null,null,null,null,null,null,null,null,null,null,null,null,null,null,null,null,null,null,null,null,null,null,null,null,null,null,null,null,null,null,null,null,null,null,null,null,null,null,null,null,null,null,null,null,null,null,null,null,null,null,null,null,null,null,null,null,null,null,null,null,null,null,null,null,null,null,null,null,null,null,null,null,null,null,null,null,null,null,null,null,null,null,null,{"$f":"B100","v":"ISR or Aide Memoire provide any other information and/or updates about public disclosure?"}]
[null,null,{"$f":"'Project Assessment'!C369","v":0},{"$f":"'Project Assessment'!D369","v":""},{"$f":"'Project Assessment'!E369","v":""},{"$f":"'Project Assessment'!F369","v":""},{"$f":"'Project Assessment'!G369","v":""},{"$f":"'Project Assessment'!H369","v":""},{"$f":"'Project Assessment'!I369","v":""},{"$f":"'Project Assessment'!J369","v":""},{"$f":"'Project Assessment'!K369","v":""},null,null,null,null,null,null,null,null,null,null,null,null,null,null,null,null,null,null,null,null,null,null,null,null,null,null,null,null,null,null,null,null,null,null,null,null,null,null,null,null,null,null,null,null,null,null,null,null,null,null,null,null,null,null,null,null,null,null,null,null,null,null,null,null,null,null,null,null,null,null,null,null,null,null,null,null,null,null,null,null,null,null,null,null,null,null,null,null,null,null,null,null,{"$f":"B100","v":"ISR or Aide Memoire provide any other information and/or updates about public disclosure?"}]
["Citizen Engagement Activities",null,"Yes/No/Unclear","Project Appraisal Document (PAD) Description/Details (please include page numbers)","Page No.",{"$f":"'Project Assessment'!F36","v":" Description/Details Description/Details"},"Page No.",{"$f":"'Project Assessment'!H19","v":" Description/Details"},"Page No.",{"$f":"'Project Assessment'!J19","v":" Description/Details"},"Page No."]
["\"Collaboration in Decision Making\"","Will collaboration activities be tracked as part of the project's Results Framework? (If so, please specify which RF indicators.) ",null,{"$f":"'Project Assessment'!D136","v":""},{"$f":"'Project Assessment'!E136","v":""},{"$f":"'Project Assessment'!F136","v":0},{"$f":"'Project Assessment'!G136","v":0},{"$f":"'Project Assessment'!H136","v":0},{"$f":"'Project Assessment'!I136","v":0},{"$f":"'Project Assessment'!J136","v":0},{"$f":"'Project Assessment'!K136","v":0},null,null,null,null,null,null,null,null,null,null,null,null,null,null,null,null,null,null,null,null,null,null,null,null,null,null,null,null,null,null,null,null,null,null,null,null,null,null,null,null,null,null,null,null,null,null,null,null,null,null,null,null,null,null,null,null,null,null,null,null,null,null,null,null,null,null,null,null,null,null,null,null,null,null,null,null,null,null,null,null,null,null,null,null,null,null,null,null,null,null,null,null,{"$f":"B104","v":"Will collaboration activities be tracked as part of the project's Results Framework? (If so, please specify which RF indicators.) "}]
[null,null,null,{"$f":"'Project Assessment'!D137","v":""},{"$f":"'Project Assessment'!E137","v":""},{"$f":"'Project Assessment'!F137","v":0},{"$f":"'Project Assessment'!G137","v":0},{"$f":"'Project Assessment'!H137","v":0},{"$f":"'Project Assessment'!I137","v":0},{"$f":"'Project Assessment'!J137","v":0},{"$f":"'Project Assessment'!K137","v":0},null,null,null,null,null,null,null,null,null,null,null,null,null,null,null,null,null,null,null,null,null,null,null,null,null,null,null,null,null,null,null,null,null,null,null,null,null,null,null,null,null,null,null,null,null,null,null,null,null,null,null,null,null,null,null,null,null,null,null,null,null,null,null,null,null,null,null,null,null,null,null,null,null,null,null,null,null,null,null,null,null,null,null,null,null,null,null,null,null,null,null,null,{"$f":"B104","v":"Will collaboration activities be tracked as part of the project's Results Framework? (If so, please specify which RF indicators.) "}]
[null,null,{"$f":"'Project Assessment'!C138","v":0},{"$f":"'Project Assessment'!D138","v":""},{"$f":"'Project Assessment'!E138","v":""},{"$f":"'Project Assessment'!F138","v":0},{"$f":"'Project Assessment'!G138","v":0},{"$f":"'Project Assessment'!H138","v":0},{"$f":"'Project Assessment'!I138","v":0},{"$f":"'Project Assessment'!J138","v":0},{"$f":"'Project Assessment'!K138","v":0},null,null,null,null,null,null,null,null,null,null,null,null,null,null,null,null,null,null,null,null,null,null,null,null,null,null,null,null,null,null,null,null,null,null,null,null,null,null,null,null,null,null,null,null,null,null,null,null,null,null,null,null,null,null,null,null,null,null,null,null,null,null,null,null,null,null,null,null,null,null,null,null,null,null,null,null,null,null,null,null,null,null,null,null,null,null,null,null,null,null,null,null,{"$f":"B104","v":"Will collaboration activities be tracked as part of the project's Results Framework? (If so, please specify which RF indicators.) "}]
["\"Collecting, Recording, and Reporting on Inputs from Citizens\"","Will feedback solicited from citizens be tracked as part of the project's Results Framework? (If so, please specify which RF indicators.) ",null,{"$f":"'Project Assessment'!D176","v":""},{"$f":"'Project Assessment'!E176","v":""},{"$f":"'Project Assessment'!F176","v":""},{"$f":"'Project Assessment'!G176","v":""},{"$f":"'Project Assessment'!H176","v":""},{"$f":"'Project Assessment'!I176","v":""},{"$f":"'Project Assessment'!J176","v":""},{"$f":"'Project Assessment'!K176","v":""},null,null,null,null,null,null,null,null,null,null,null,null,null,null,null,null,null,null,null,null,null,null,null,null,null,null,null,null,null,null,null,null,null,null,null,null,null,null,null,null,null,null,null,null,null,null,null,null,null,null,null,null,null,null,null,null,null,null,null,null,null,null,null,null,null,null,null,null,null,null,null,null,null,null,null,null,null,null,null,null,null,null,null,null,null,null,null,null,null,null,null,null,{"$f":"B107","v":"Will feedback solicited from citizens be tracked as part of the project's Results Framework? (If so, please specify which RF indicators.) "}]
[null,null,null,{"$f":"'Project Assessment'!D177","v":""},{"$f":"'Project Assessment'!E177","v":""},{"$f":"'Project Assessment'!F177","v":""},{"$f":"'Project Assessment'!G177","v":""},{"$f":"'Project Assessment'!H177","v":""},{"$f":"'Project Assessment'!I177","v":""},{"$f":"'Project Assessment'!J177","v":""},{"$f":"'Project Assessment'!K177","v":""},null,null,null,null,null,null,null,null,null,null,null,null,null,null,null,null,null,null,null,null,null,null,null,null,null,null,null,null,null,null,null,null,null,null,null,null,null,null,null,null,null,null,null,null,null,null,null,null,null,null,null,null,null,null,null,null,null,null,null,null,null,null,null,null,null,null,null,null,null,null,null,null,null,null,null,null,null,null,null,null,null,null,null,null,null,null,null,null,null,null,null,null,{"$f":"B107","v":"Will feedback solicited from citizens be tracked as part of the project's Results Framework? (If so, please specify which RF indicators.) "}]
[null,null,{"$f":"'Project Assessment'!C178","v":0},{"$f":"'Project Assessment'!D178","v":""},{"$f":"'Project Assessment'!E178","v":""},{"$f":"'Project Assessment'!F178","v":""},{"$f":"'Project Assessment'!G178","v":""},{"$f":"'Project Assessment'!H178","v":""},{"$f":"'Project Assessment'!I178","v":""},{"$f":"'Project Assessment'!J178","v":""},{"$f":"'Project Assessment'!K178","v":""},null,null,null,null,null,null,null,null,null,null,null,null,null,null,null,null,null,null,null,null,null,null,null,null,null,null,null,null,null,null,null,null,null,null,null,null,null,null,null,null,null,null,null,null,null,null,null,null,null,null,null,null,null,null,null,null,null,null,null,null,null,null,null,null,null,null,null,null,null,null,null,null,null,null,null,null,null,null,null,null,null,null,null,null,null,null,null,null,null,null,null,null,{"$f":"B107","v":"Will feedback solicited from citizens be tracked as part of the project's Results Framework? (If so, please specify which RF indicators.) "}]
["\"Grievance Redress Mechanism\"","Will GRM data be tracked as part of the project's Results Framework? (If so, please specify which RF indicators.) ",null,{"$f":"'Project Assessment'!D243","v":""},{"$f":"'Project Assessment'!E243","v":""},{"$f":"'Project Assessment'!F243","v":0},{"$f":"'Project Assessment'!G243","v":0},{"$f":"'Project Assessment'!H243","v":0},{"$f":"'Project Assessment'!I243","v":0},{"$f":"'Project Assessment'!J243","v":0},{"$f":"'Project Assessment'!K243","v":0},null,null,null,null,null,null,null,null,null,null,null,null,null,null,null,null,null,null,null,null,null,null,null,null,null,null,null,null,null,null,null,null,null,null,null,null,null,null,null,null,null,null,null,null,null,null,null,null,null,null,null,null,null,null,null,null,null,null,null,null,null,null,null,null,null,null,null,null,null,null,null,null,null,null,null,null,null,null,null,null,null,null,null,null,null,null,null,null,null,null,null,null,{"$f":"B110","v":"Will GRM data be tracked as part of the project's Results Framework? (If so, please specify which RF indicators.) "}]
[null,null,null,{"$f":"'Project Assessment'!D244","v":""},{"$f":"'Project Assessment'!E244","v":""},{"$f":"'Project Assessment'!F244","v":0},{"$f":"'Project Assessment'!G244","v":0},{"$f":"'Project Assessment'!H244","v":0},{"$f":"'Project Assessment'!I244","v":0},{"$f":"'Project Assessment'!J244","v":0},{"$f":"'Project Assessment'!K244","v":0},null,null,null,null,null,null,null,null,null,null,null,null,null,null,null,null,null,null,null,null,null,null,null,null,null,null,null,null,null,null,null,null,null,null,null,null,null,null,null,null,null,null,null,null,null,null,null,null,null,null,null,null,null,null,null,null,null,null,null,null,null,null,null,null,null,null,null,null,null,null,null,null,null,null,null,null,null,null,null,null,null,null,null,null,null,null,null,null,null,null,null,null,{"$f":"B110","v":"Will GRM data be tracked as part of the project's Results Framework? (If so, please specify which RF indicators.) "}]
[null,null,{"$f":"'Project Assessment'!C245","v":0},{"$f":"'Project Assessment'!D245","v":""},{"$f":"'Project Assessment'!E245","v":""},{"$f":"'Project Assessment'!F245","v":0},{"$f":"'Project Assessment'!G245","v":0},{"$f":"'Project Assessment'!H245","v":0},{"$f":"'Project Assessment'!I245","v":0},{"$f":"'Project Assessment'!J245","v":0},{"$f":"'Project Assessment'!K245","v":0},null,null,null,null,null,null,null,null,null,null,null,null,null,null,null,null,null,null,null,null,null,null,null,null,null,null,null,null,null,null,null,null,null,null,null,null,null,null,null,null,null,null,null,null,null,null,null,null,null,null,null,null,null,null,null,null,null,null,null,null,null,null,null,null,null,null,null,null,null,null,null,null,null,null,null,null,null,null,null,null,null,null,null,null,null,null,null,null,null,null,null,null,{"$f":"B110","v":"Will GRM data be tracked as part of the project's Results Framework? (If so, please specify which RF indicators.) "}]
["\"Citizen monitoring,  evaluation and oversight\"","Will citizen-led monitoring results be tracked as part of the project's Results Framework? (If so, please specify which RF indicators.) ",null,{"$f":"'Project Assessment'!D269","v":""},{"$f":"'Project Assessment'!E269","v":""},{"$f":"'Project Assessment'!F269","v":0},{"$f":"'Project Assessment'!G269","v":0},{"$f":"'Project Assessment'!H269","v":0},{"$f":"'Project Assessment'!I269","v":0},{"$f":"'Project Assessment'!J269","v":0},{"$f":"'Project Assessment'!K269","v":0},null,null,null,null,null,null,null,null,null,null,null,null,null,null,null,null,null,null,null,null,null,null,null,null,null,null,null,null,null,null,null,null,null,null,null,null,null,null,null,null,null,null,null,null,null,null,null,null,null,null,null,null,null,null,null,null,null,null,null,null,null,null,null,null,null,null,null,null,null,null,null,null,null,null,null,null,null,null,null,null,null,null,null,null,null,null,null,null,null,null,null,null,{"$f":"B113","v":"Will citizen-led monitoring results be tracked as part of the project's Results Framework? (If so, please specify which RF indicators.) "}]
[null,null,null,{"$f":"'Project Assessment'!D270","v":""},{"$f":"'Project Assessment'!E270","v":""},{"$f":"'Project Assessment'!F270","v":0},{"$f":"'Project Assessment'!G270","v":0},{"$f":"'Project Assessment'!H270","v":0},{"$f":"'Project Assessment'!I270","v":0},{"$f":"'Project Assessment'!J270","v":0},{"$f":"'Project Assessment'!K270","v":0},null,null,null,null,null,null,null,null,null,null,null,null,null,null,null,null,null,null,null,null,null,null,null,null,null,null,null,null,null,null,null,null,null,null,null,null,null,null,null,null,null,null,null,null,null,null,null,null,null,null,null,null,null,null,null,null,null,null,null,null,null,null,null,null,null,null,null,null,null,null,null,null,null,null,null,null,null,null,null,null,null,null,null,null,null,null,null,null,null,null,null,null,{"$f":"B113","v":"Will citizen-led monitoring results be tracked as part of the project's Results Framework? (If so, please specify which RF indicators.) "}]
[null,null,{"$f":"'Project Assessment'!C271","v":0},{"$f":"'Project Assessment'!D271","v":""},{"$f":"'Project Assessment'!E271","v":""},{"$f":"'Project Assessment'!F271","v":0},{"$f":"'Project Assessment'!G271","v":0},{"$f":"'Project Assessment'!H271","v":0},{"$f":"'Project Assessment'!I271","v":0},{"$f":"'Project Assessment'!J271","v":0},{"$f":"'Project Assessment'!K271","v":0},null,null,null,null,null,null,null,null,null,null,null,null,null,null,null,null,null,null,null,null,null,null,null,null,null,null,null,null,null,null,null,null,null,null,null,null,null,null,null,null,null,null,null,null,null,null,null,null,null,null,null,null,null,null,null,null,null,null,null,null,null,null,null,null,null,null,null,null,null,null,null,null,null,null,null,null,null,null,null,null,null,null,null,null,null,null,null,null,null,null,null,null,{"$f":"B113","v":"Will citizen-led monitoring results be tracked as part of the project's Results Framework? (If so, please specify which RF indicators.) "}]
["\"Capacity Building for Citizen Engagement(CE Training)\"","Will CE training be tracked as part of the project's Results Framework? (If so, please specify which RF indicators.) ",null,{"$f":"'Project Assessment'!D303","v":""},{"$f":"'Project Assessment'!E303","v":""},{"$f":"'Project Assessment'!F303","v":0},{"$f":"'Project Assessment'!G303","v":0},{"$f":"'Project Assessment'!H303","v":0},{"$f":"'Project Assessment'!I303","v":0},{"$f":"'Project Assessment'!J303","v":0},{"$f":"'Project Assessment'!K303","v":0},null,null,null,null,null,null,null,null,null,null,null,null,null,null,null,null,null,null,null,null,null,null,null,null,null,null,null,null,null,null,null,null,null,null,null,null,null,null,null,null,null,null,null,null,null,null,null,null,null,null,null,null,null,null,null,null,null,null,null,null,null,null,null,null,null,null,null,null,null,null,null,null,null,null,null,null,null,null,null,null,null,null,null,null,null,null,null,null,null,null,null,null,{"$f":"B116","v":"Will CE training be tracked as part of the project's Results Framework? (If so, please specify which RF indicators.) "}]
[null,null,null,{"$f":"'Project Assessment'!D304","v":""},{"$f":"'Project Assessment'!E304","v":""},{"$f":"'Project Assessment'!F304","v":0},{"$f":"'Project Assessment'!G304","v":0},{"$f":"'Project Assessment'!H304","v":0},{"$f":"'Project Assessment'!I304","v":0},{"$f":"'Project Assessment'!J304","v":0},{"$f":"'Project Assessment'!K304","v":0},null,null,null,null,null,null,null,null,null,null,null,null,null,null,null,null,null,null,null,null,null,null,null,null,null,null,null,null,null,null,null,null,null,null,null,null,null,null,null,null,null,null,null,null,null,null,null,null,null,null,null,null,null,null,null,null,null,null,null,null,null,null,null,null,null,null,null,null,null,null,null,null,null,null,null,null,null,null,null,null,null,null,null,null,null,null,null,null,null,null,null,null,{"$f":"B116","v":"Will CE training be tracked as part of the project's Results Framework? (If so, please specify which RF indicators.) "}]
[null,null,{"$f":"'Project Assessment'!C305","v":0},{"$f":"'Project Assessment'!D305","v":""},{"$f":"'Project Assessment'!E305","v":""},{"$f":"'Project Assessment'!F305","v":0},{"$f":"'Project Assessment'!G305","v":0},{"$f":"'Project Assessment'!H305","v":0},{"$f":"'Project Assessment'!I305","v":0},{"$f":"'Project Assessment'!J305","v":0},{"$f":"'Project Assessment'!K305","v":0},null,null,null,null,null,null,null,null,null,null,null,null,null,null,null,null,null,null,null,null,null,null,null,null,null,null,null,null,null,null,null,null,null,null,null,null,null,null,null,null,null,null,null,null,null,null,null,null,null,null,null,null,null,null,null,null,null,null,null,null,null,null,null,null,null,null,null,null,null,null,null,null,null,null,null,null,null,null,null,null,null,null,null,null,null,null,null,null,null,null,null,null,{"$f":"B116","v":"Will CE training be tracked as part of the project's Results Framework? (If so, please specify which RF indicators.) "}]
["Monitoring Systems within World Bank Projects",null,"Yes/No/Unclear","Project Appraisal Document (PAD) Description/Details (please include page numbers)","Page No.",{"$f":"'Project Assessment'!F36","v":" Description/Details Description/Details"},"Page No.",{"$f":"'Project Assessment'!H19","v":" Description/Details"},"Page No.",{"$f":"'Project Assessment'!J19","v":" Description/Details"},"Page No."]
[null,"Does the project specify which government agency/office will be responsible for tracking Results Framework indicators?",null,{"$f":"'Project Assessment'!D324","v":""},{"$f":"'Project Assessment'!E324","v":""},{"$f":"'Project Assessment'!F324","v":""},{"$f":"'Project Assessment'!G324","v":""},{"$f":"'Project Assessment'!H324","v":""},{"$f":"'Project Assessment'!I324","v":""},{"$f":"'Project Assessment'!J324","v":""},{"$f":"'Project Assessment'!K324","v":""},null,null,null,null,null,null,null,null,null,null,null,null,null,null,null,null,null,null,null,null,null,null,null,null,null,null,null,null,null,null,null,null,null,null,null,null,null,null,null,null,null,null,null,null,null,null,null,null,null,null,null,null,null,null,null,null,null,null,null,null,null,null,null,null,null,null,null,null,null,null,null,null,null,null,null,null,null,null,null,null,null,null,null,null,null,null,null,null,null,null,null,null,{"$f":"B120","v":"Does the project specify which government agency/office will be responsible for tracking Results Framework indicators?"}]
[null,null,null,{"$f":"'Project Assessment'!D325","v":""},{"$f":"'Project Assessment'!E325","v":""},{"$f":"'Project Assessment'!F325","v":""},{"$f":"'Project Assessment'!G325","v":""},{"$f":"'Project Assessment'!H325","v":""},{"$f":"'Project Assessment'!I325","v":""},{"$f":"'Project Assessment'!J325","v":""},{"$f":"'Project Assessment'!K325","v":""},null,null,null,null,null,null,null,null,null,null,null,null,null,null,null,null,null,null,null,null,null,null,null,null,null,null,null,null,null,null,null,null,null,null,null,null,null,null,null,null,null,null,null,null,null,null,null,null,null,null,null,null,null,null,null,null,null,null,null,null,null,null,null,null,null,null,null,null,null,null,null,null,null,null,null,null,null,null,null,null,null,null,null,null,null,null,null,null,null,null,null,null,{"$f":"B120","v":"Does the project specify which government agency/office will be responsible for tracking Results Framework indicators?"}]
[null,null,{"$f":"'Project Assessment'!C326","v":0},{"$f":"'Project Assessment'!D326","v":""},{"$f":"'Project Assessment'!E326","v":""},{"$f":"'Project Assessment'!F326","v":""},{"$f":"'Project Assessment'!G326","v":""},{"$f":"'Project Assessment'!H326","v":""},{"$f":"'Project Assessment'!I326","v":""},{"$f":"'Project Assessment'!J326","v":""},{"$f":"'Project Assessment'!K326","v":""},null,null,null,null,null,null,null,null,null,null,null,null,null,null,null,null,null,null,null,null,null,null,null,null,null,null,null,null,null,null,null,null,null,null,null,null,null,null,null,null,null,null,null,null,null,null,null,null,null,null,null,null,null,null,null,null,null,null,null,null,null,null,null,null,null,null,null,null,null,null,null,null,null,null,null,null,null,null,null,null,null,null,null,null,null,null,null,null,null,null,null,null,{"$f":"B120","v":"Does the project specify which government agency/office will be responsible for tracking Results Framework indicators?"}]
[null,"Does the project include any \"Results-Based Financing\" (RBF) indicators or \"Disbursement Linked Indicators\" (DBI)?",null,{"$f":"'Project Assessment'!D333","v":""},{"$f":"'Project Assessment'!E333","v":""},{"$f":"'Project Assessment'!F333","v":""},{"$f":"'Project Assessment'!G333","v":""},{"$f":"'Project Assessment'!H333","v":""},{"$f":"'Project Assessment'!I333","v":""},{"$f":"'Project Assessment'!J333","v":""},{"$f":"'Project Assessment'!K333","v":""},null,null,null,null,null,null,null,null,null,null,null,null,null,null,null,null,null,null,null,null,null,null,null,null,null,null,null,null,null,null,null,null,null,null,null,null,null,null,null,null,null,null,null,null,null,null,null,null,null,null,null,null,null,null,null,null,null,null,null,null,null,null,null,null,null,null,null,null,null,null,null,null,null,null,null,null,null,null,null,null,null,null,null,null,null,null,null,null,null,null,null,null,{"$f":"B123","v":"Does the project include any \"Results-Based Financing\" (RBF) indicators or \"Disbursement Linked Indicators\" (DBI)?"}]
[null,null,null,{"$f":"'Project Assessment'!D334","v":""},{"$f":"'Project Assessment'!E334","v":""},{"$f":"'Project Assessment'!F334","v":""},{"$f":"'Project Assessment'!G334","v":""},{"$f":"'Project Assessment'!H334","v":""},{"$f":"'Project Assessment'!I334","v":""},{"$f":"'Project Assessment'!J334","v":""},{"$f":"'Project Assessment'!K334","v":""},null,null,null,null,null,null,null,null,null,null,null,null,null,null,null,null,null,null,null,null,null,null,null,null,null,null,null,null,null,null,null,null,null,null,null,null,null,null,null,null,null,null,null,null,null,null,null,null,null,null,null,null,null,null,null,null,null,null,null,null,null,null,null,null,null,null,null,null,null,null,null,null,null,null,null,null,null,null,null,null,null,null,null,null,null,null,null,null,null,null,null,null,{"$f":"B123","v":"Does the project include any \"Results-Based Financing\" (RBF) indicators or \"Disbursement Linked Indicators\" (DBI)?"}]
[null,null,{"$f":"'Project Assessment'!C335","v":0},{"$f":"'Project Assessment'!D335","v":""},{"$f":"'Project Assessment'!E335","v":""},{"$f":"'Project Assessment'!F335","v":""},{"$f":"'Project Assessment'!G335","v":""},{"$f":"'Project Assessment'!H335","v":""},{"$f":"'Project Assessment'!I335","v":""},{"$f":"'Project Assessment'!J335","v":""},{"$f":"'Project Assessment'!K335","v":""},null,null,null,null,null,null,null,null,null,null,null,null,null,null,null,null,null,null,null,null,null,null,null,null,null,null,null,null,null,null,null,null,null,null,null,null,null,null,null,null,null,null,null,null,null,null,null,null,null,null,null,null,null,null,null,null,null,null,null,null,null,null,null,null,null,null,null,null,null,null,null,null,null,null,null,null,null,null,null,null,null,null,null,null,null,null,null,null,null,null,null,null,{"$f":"B123","v":"Does the project include any \"Results-Based Financing\" (RBF) indicators or \"Disbursement Linked Indicators\" (DBI)?"}]

{"sheet":"Project Assessment","index":2,"n_rows":369,"n_cols":104,"rows_kept":369,"cut":false,"hidden":false,"merged":[[342,0,344,0],[351,0,353,0],[354,0,356,0],[332,1,334,1],[332,0,334,0],[335,1,337,1],[36,2,37,2],[39,2,40,2],[42,2,43,2],[45,2,46,2],[48,2,49,2],[51,2,52,2],[54,2,55,2],[335,0,337,0],[323,1,325,1],[323,0,325,0],[326,1,328,1],[326,0,328,0],[329,1,331,1],[329,0,331,0],[320,1,322,1],[320,0,322,0],[317,1,319,1],[317,0,319,0],[348,1,350,1],[351,1,353,1],[354,1,356,1],[357,1,359,1],[366,1,368,1],[360,1,362,1],[360,0,362,0],[363,0,365,0],[363,1,365,1],[311,1,313,1],[311,0,313,0],[314,1,316,1],[314,0,316,0],[308,1,310,1],[306,0,306,9],[287,1,289,1],[296,1,298,1],[299,1,301,1],[302,1,304,1],[302,0,304,0],[287,0,289,0],[296,0,298,0],[299,0,301,0],[290,1,292,1],[293,1,295,1],[314,2,315,2],[308,2,309,2],[311,2,312,2],[290,0,292,0],[293,0,295,0],[308,0,310,0],[256,1,258,1],[256,0,258,0],[268,2,269,2],[277,2,278,2],[280,2,281,2],[283,2,284,2],[253,2,254,2],[256,2,257,2],[259,2,260,2],[262,2,263,2],[265,2,266,2],[262,1,264,1],[262,0,264,0],[283,1,285,1],[265,1,267,1],[265,0,267,0],[274,1,276,1],[274,0,276,0],[232,1,234,1],[232,0,234,0],[214,1,216,1],[214,0,216,0],[249,1,251,1],[249,0,251,0],[247,0,247,3],[235,1,237,1],[235,0,237,0],[238,2,239,2],[242,2,243,2],[249,2,250,2],[232,2,233,2],[235,2,236,2],[223,2,224,2],[226,2,227,2],[229,2,230,2],[226,1,228,1],[226,0,228,0],[229,1,231,1],[229,0,231,0],[217,1,219,1],[217,0,219,0],[220,1,222,1],[193,1,195,1],[202,1,204,1],[202,0,204,0],[193,0,195,0],[220,0,222,0],[223,1,225,1],[223,0,225,0],[202,2,203,2],[205,2,206,2],[199,2,200,2],[208,1,210,1],[211,1,213,1],[208,0,210,0],[211,0,213,0],[217,2,218,2],[220,2,221,2],[208,2,209,2],[211,2,212,2],[214,2,215,2],[199,1,201,1],[205,1,207,1],[199,0,201,0],[205,0,207,0],[163,1,165,1],[163,0,165,0],[145,1,147,1],[148,1,150,1],[163,2,164,2],[166,1,168,1],[166,0,168,0],[169,1,171,1],[169,0,171,0],[166,2,167,2],[169,2,170,2],[123,1,125,1],[123,0,125,0],[126,1,128,1],[126,0,128,0],[114,1,116,1],[114,0,116,0],[117,1,119,1],[142,1,144,1],[142,0,144,0],[140,0,140,3],[132,1,134,1],[132,0,134,0],[135,1,137,1],[135,0,137,0],[129,1,131,1],[129,0,131,0],[117,0,119,0],[120,1,122,1],[120,0,122,0],[114,2,115,2],[117,2,118,2],[120,2,121,2],[123,2,124,2],[126,2,127,2],[101,2,102,2],[104,2,105,2],[98,2,99,2],[89,1,91,1],[89,0,91,0],[92,2,93,2],[107,2,108,2],[89,2,90,2],[111,2,112,2],[110,0,110,2],[111,1,113,1],[111,0,113,0],[92,1,94,1],[95,1,97,1],[98,1,100,1],[101,1,103,1],[104,1,106,1],[107,1,109,1],[92,0,109,0],[51,1,53,1],[51,0,53,0],[54,1,56,1],[54,0,56,0],[87,0,87,3],[76,1,78,1],[76,0,78,0],[79,1,81,1],[79,0,81,0],[82,1,84,1],[82,0,84,0],[64,1,66,1],[64,0,66,0],[67,1,69,1],[67,0,69,0],[70,1,72,1],[86,0,86,10],[57,0,57,2],[70,0,72,0],[34,0,34,1],[73,1,75,1],[73,0,75,0],[79,2,80,2],[82,2,83,2],[58,2,59,2],[61,2,62,2],[57,9,57,10],[268,1,270,1],[268,0,270,0],[57,3,57,4],[57,5,57,6],[57,7,57,8],[58,1,60,1],[58,0,60,0],[61,1,63,1],[61,0,63,0],[64,2,65,2],[67,2,68,2],[70,2,71,2],[73,2,74,2],[76,2,77,2],[95,2,96,2],[48,0,50,0],[45,1,47,1],[45,0,47,0],[48,1,50,1],[28,2,29,2],[0,0,0,10],[1,0,1,10],[22,1,24,1],[19,0,24,0],[25,1,27,1],[25,0,27,0],[17,0,17,9],[19,1,21,1],[19,2,20,2],[22,2,23,2],[25,2,26,2],[15,0,15,10],[36,1,38,1],[39,1,41,1],[42,1,44,1],[36,0,44,0],[28,1,30,1],[28,0,30,0],[32,0,32,7],[33,0,33,5],[129,2,130,2],[132,2,133,2],[135,2,136,2],[142,2,143,2],[145,2,146,2],[148,2,149,2],[151,2,152,2],[154,2,155,2],[160,2,161,2],[139,0,139,10],[151,1,153,1],[154,1,156,1],[157,1,159,1],[145,0,159,0],[157,2,159,2],[160,1,162,1],[160,0,162,0],[172,2,173,2],[175,2,176,2],[180,2,181,2],[187,2,188,2],[190,2,191,2],[193,2,194,2],[196,2,197,2],[178,0,178,10],[183,0,183,2],[172,1,174,1],[172,0,174,0],[175,1,177,1],[175,0,177,0],[180,1,182,1],[180,0,182,0],[196,1,198,1],[196,0,198,0],[184,2,185,2],[184,1,186,1],[184,0,186,0],[187,1,189,1],[187,0,189,0],[190,1,192,1],[190,0,192,0],[238,1,240,1],[274,2,275,2],[287,2,288,2],[290,2,291,2],[293,2,294,2],[296,2,297,2],[299,2,300,2],[302,2,303,2],[246,0,246,10],[252,0,252,2],[272,0,272,10],[286,0,286,2],[238,0,240,0],[242,1,244,1],[242,0,244,0],[283,0,285,0],[277,1,279,1],[280,1,282,1],[277,0,279,0],[280,0,282,0],[259,1,261,1],[259,0,261,0],[253,1,255,1],[253,0,255,0],[351,2,352,2],[354,2,355,2],[357,2,358,2],[360,2,361,2],[363,2,364,2],[366,2,367,2],[317,2,318,2],[320,2,321,2],[323,2,324,2],[326,2,327,2],[329,2,330,2],[332,2,333,2],[335,2,336,2],[342,2,343,2],[345,2,346,2],[340,0,340,10],[357,0,359,0],[345,0,347,0],[348,0,350,0],[348,2,349,2],[366,0,368,0],[339,0,339,9],[342,1,344,1],[345,1,347,1]]}
["World Bank Citizen Engagement Assessment Tool (WB-CEAT) Version 4.0"]
["Project Assessment"]
[]
["Country:","",null,""]
["Project Name:","",null,""]
["PID: ","",null,""]
["Approval Date:","",null,""]
["Fiscal Year:","Please Select"]
["Commitment Amount:",""]
["Status:"]
["Team Leader:",""]
["Project Link:",""]
["Are any projects documents posted in national languages besides English?"]
["If Yes, which documents and in what languages?","",null,"",null,"",null,""]
[null,"",null,"",null,"",null,""]
["Completing the Project Assessment: Several documents will likely need to be reviewed to complete the Project Assessment. Start with the \"Project Appraisal Document.\" On the project webpage, switch from the \"Overview\" tab to the \"Documents\" tab. Scroll through the list of documents to find the Project Appraisal Document (identified by the 'Document Type' column). Download the PAD to Dropbox (see 'Instructions' Sheet) and open it. In particular, make sure to review the following sections of the PAD:                                                                                                                                                                                  \n\nII. Project Development Objectives; B. Project Beneficiaries\nIII. Project Description\nIV. Implementation\nVI. Appraisal Summary\nAnnex: Results Framework and Monitoring\nAnnex: Implementation Arrangements: Environmental and Social (including safeguards)\nAnnex: Operational Risk Assessment/Mitigation.\n\nPlease complete as many of the Yes/No/Unclear fields as possible. *The definitions for key terms are included in the left hand column.*\nPlease cut and paste document text directly  into the corresponding 'Description/Details' field, rather than summarizing, whenever possible.IF needed, add explanations along side the excerpted text, but clearly differentiated using quotes so the reader knows what is quoted and what is commentary/explanattion. Include page numbers, and separate passages with semicolons.\n\nA review of the PAD will likely lead to other documents that need to be reviewed in order to complete this assessment (e.g., WB Safeguards Documents; Older, original PADs, Third Party Evaluations, etc.). These documents can also be found on the World Bank project website by clicking on the \"Documents\" tab. For each additional document reviewed, please used the columns named 'Additional Document 1', 'Additional Document 2', etc. to record relevant information. The names of each column should be changed to reference the specific document reviewed (e.g., \"Additional Document 1\" might be changed to \"Resettlement Plan\"; \"Additional Document 2\" might be changed to \"Original PAD\", etc.). If there are more documents to review, additional columns can be added to the right of 'Additional Document 3.' "]
[]
["Project Beneficiaries and Project Management"]
[null,null,"Yes/No/Unclear","Project Appraisal Document (PAD) Description/Details","Page No."," Description/Details Description/Details","Page No."," Description/Details","Page No."," Description/Details","Page No."]
["See PAD Section II. \"Project Development Objectives\"; Section B: \"Project Beneficiaries\"","Are direct project beneficiaries identified? Please specify",null,"","","","","","","","",null,null,null,null,null,null,null,null,null,null,null,null,null,null,null,null,null,null,null,null,null,null,null,null,null,null,null,null,null,null,null,null,null,null,null,null,null,null,null,null,null,null,null,null,null,null,null,null,null,null,null,null,null,null,null,null,null,null,null,null,null,null,null,null,null,null,null,null,null,null,null,null,null,null,null,null,null,null,null,null,null,null,null,null,null,null,null,null,null,null,null,null,{"$f":"B20","v":"Are direct project beneficiaries identified? Please specify"}]
[null,null,null,"","","","","","","","",null,null,null,null,null,null,null,null,null,null,null,null,null,null,null,null,null,null,null,null,null,null,null,null,null,null,null,null,null,null,null,null,null,null,null,null,null,null,null,null,null,null,null,null,null,null,null,null,null,null,null,null,null,null,null,null,null,null,null,null,null,null,null,null,null,null,null,null,null,null,null,null,null,null,null,null,null,null,null,null,null,null,null,null,null,null,null,null,null,null,null,null,{"$f":"B20","v":"Are direct project beneficiaries identified? Please specify"}]
[null,null,null,"","","","","","","","",null,null,null,null,null,null,null,null,null,null,null,null,null,null,null,null,null,null,null,null,null,null,null,null,null,null,null,null,null,null,null,null,null,null,null,null,null,null,null,null,null,null,null,null,null,null,null,null,null,null,null,null,null,null,null,null,null,null,null,null,null,null,null,null,null,null,null,null,null,null,null,null,null,null,null,null,null,null,null,null,null,null,null,null,null,null,null,null,null,null,null,null,{"$f":"B20","v":"Are direct project beneficiaries identified? Please specify"}]
[null,"Are indirect beneficiaries identified? Please specify",null,"","","","","","","","",null,null,null,null,null,null,null,null,null,null,null,null,null,null,null,null,null,null,null,null,null,null,null,null,null,null,null,null,null,null,null,null,null,null,null,null,null,null,null,null,null,null,null,null,null,null,null,null,null,null,null,null,null,null,null,null,null,null,null,null,null,null,null,null,null,null,null,null,null,null,null,null,null,null,null,null,null,null,null,null,null,null,null,null,null,null,null,null,null,null,null,null,{"$f":"B23","v":"Are indirect beneficiaries identified? Please specify"}]
[null,null,null,"","","","","","","","",null,null,null,null,null,null,null,null,null,null,null,null,null,null,null,null,null,null,null,null,null,null,null,null,null,null,null,null,null,null,null,null,null,null,null,null,null,null,null,null,null,null,null,null,null,null,null,null,null,null,null,null,null,null,null,null,null,null,null,null,null,null,null,null,null,null,null,null,null,null,null,null,null,null,null,null,null,null,null,null,null,null,null,null,null,null,null,null,null,null,null,null,{"$f":"B23","v":"Are indirect beneficiaries identified? Please specify"}]
[null,null,null,"","","","","","","","",null,null,null,null,null,null,null,null,null,null,null,null,null,null,null,null,null,null,null,null,null,null,null,null,null,null,null,null,null,null,null,null,null,null,null,null,null,null,null,null,null,null,null,null,null,null,null,null,null,null,null,null,null,null,null,null,null,null,null,null,null,null,null,null,null,null,null,null,null,null,null,null,null,null,null,null,null,null,null,null,null,null,null,null,null,null,null,null,null,null,null,null,{"$f":"B23","v":"Are indirect beneficiaries identified? Please specify"}]
["See PAD Section IV: \"Implementation\": Section A.  Institutional and Implementation Arrangements","What is the government entity tasked with managing the project identfied? Please specify",null,"","","","","","","","",null,null,null,null,null,null,null,null,null,null,null,null,null,null,null,null,null,null,null,null,null,null,null,null,null,null,null,null,null,null,null,null,null,null,null,null,null,null,null,null,null,null,null,null,null,null,null,null,null,null,null,null,null,null,null,null,null,null,null,null,null,null,null,null,null,null,null,null,null,null,null,null,null,null,null,null,null,null,null,null,null,null,null,null,null,null,null,null,null,null,null,null,{"$f":"B26","v":"What is the government entity tasked with managing the project identfied? Please specify"}]
[null,null,null,"","","","","","","","",null,null,null,null,null,null,null,null,null,null,null,null,null,null,null,null,null,null,null,null,null,null,null,null,null,null,null,null,null,null,null,null,null,null,null,null,null,null,null,null,null,null,null,null,null,null,null,null,null,null,null,null,null,null,null,null,null,null,null,null,null,null,null,null,null,null,null,null,null,null,null,null,null,null,null,null,null,null,null,null,null,null,null,null,null,null,null,null,null,null,null,null,{"$f":"B26","v":"What is the government entity tasked with managing the project identfied? Please specify"}]
[null,null,null,"","","","","","","","",null,null,null,null,null,null,null,null,null,null,null,null,null,null,null,null,null,null,null,null,null,null,null,null,null,null,null,null,null,null,null,null,null,null,null,null,null,null,null,null,null,null,null,null,null,null,null,null,null,null,null,null,null,null,null,null,null,null,null,null,null,null,null,null,null,null,null,null,null,null,null,null,null,null,null,null,null,null,null,null,null,null,null,null,null,null,null,null,null,null,null,null,{"$f":"B26","v":"What is the government entity tasked with managing the project identfied? Please specify"}]
["See PAD Section VI. \"Appraisal Summary \" Section E. Social","Does the project trigger social safeguards? If yes, Please specify which.",null,"","","","","","","","",null,null,null,null,null,null,null,null,null,null,null,null,null,null,null,null,null,null,null,null,null,null,null,null,null,null,null,null,null,null,null,null,null,null,null,null,null,null,null,null,null,null,null,null,null,null,null,null,null,null,null,null,null,null,null,null,null,null,null,null,null,null,null,null,null,null,null,null,null,null,null,null,null,null,null,null,null,null,null,null,null,null,null,null,null,null,null,null,null,null,null,null,{"$f":"B29","v":"Does the project trigger social safeguards? If yes, Please specify which."}]
[null,null,null,"","","","","","","","",null,null,null,null,null,null,null,null,null,null,null,null,null,null,null,null,null,null,null,null,null,null,null,null,null,null,null,null,null,null,null,null,null,null,null,null,null,null,null,null,null,null,null,null,null,null,null,null,null,null,null,null,null,null,null,null,null,null,null,null,null,null,null,null,null,null,null,null,null,null,null,null,null,null,null,null,null,null,null,null,null,null,null,null,null,null,null,null,null,null,null,null,{"$f":"B29","v":"Does the project trigger social safeguards? If yes, Please specify which."}]
[null,null,null,"","","","","","","","",null,null,null,null,null,null,null,null,null,null,null,null,null,null,null,null,null,null,null,null,null,null,null,null,null,null,null,null,null,null,null,null,null,null,null,null,null,null,null,null,null,null,null,null,null,null,null,null,null,null,null,null,null,null,null,null,null,null,null,null,null,null,null,null,null,null,null,null,null,null,null,null,null,null,null,null,null,null,null,null,null,null,null,null,null,null,null,null,null,null,null,null,{"$f":"B29","v":"Does the project trigger social safeguards? If yes, Please specify which."}]
[]
["I. Citizen Engagement Activities"]
["\"Consultation\" "]
["The following questions relate to project preparation only"]
[null,null,"Yes/No/Unclear","Project Appraisal Document (PAD) Description/Details","Page No."," Description/Details Description/Details","Page No."," Description/Details","Page No."," Description/Details","Page No."]
["\"Consultation, as distinct from dialogue, is a more structured exchange in which the convener commits to “active listening” and to carefully consider the comments, ideas, and recommendations received. Good practice consultations provide feedback on what was heard, and what was or was not incorporated and why to ensure that consultations contribute to improved policies and programs\"."," Were public hearings or meetings held?",null,"","","","","","","","",null,null,null,null,null,null,null,null,null,null,null,null,null,null,null,null,null,null,null,null,null,null,null,null,null,null,null,null,null,null,null,null,null,null,null,null,null,null,null,null,null,null,null,null,null,null,null,null,null,null,null,null,null,null,null,null,null,null,null,null,null,null,null,null,null,null,null,null,null,null,null,null,null,null,null,null,null,null,null,null,null,null,null,null,null,null,null,null,null,null,null,null,{"$f":"B37","v":" Were public hearings or meetings held?"}]
[null,null,null,"","","","","","","","",null,null,null,null,null,null,null,null,null,null,null,null,null,null,null,null,null,null,null,null,null,null,null,null,null,null,null,null,null,null,null,null,null,null,null,null,null,null,null,null,null,null,null,null,null,null,null,null,null,null,null,null,null,null,null,null,null,null,null,null,null,null,null,null,null,null,null,null,null,null,null,null,null,null,null,null,null,null,null,null,null,null,null,null,null,null,null,null,null,null,null,null,{"$f":"B37","v":" Were public hearings or meetings held?"}]
[null,null,null,"","","","","","","","",null,null,null,null,null,null,null,null,null,null,null,null,null,null,null,null,null,null,null,null,null,null,null,null,null,null,null,null,null,null,null,null,null,null,null,null,null,null,null,null,null,null,null,null,null,null,null,null,null,null,null,null,null,null,null,null,null,null,null,null,null,null,null,null,null,null,null,null,null,null,null,null,null,null,null,null,null,null,null,null,null,null,null,null,null,null,null,null,null,null,null,null,{"$f":"B37","v":" Were public hearings or meetings held?"}]
[null,"Were focus group discussions or key informant interviews held?",null,"","","","","","","","",null,null,null,null,null,null,null,null,null,null,null,null,null,null,null,null,null,null,null,null,null,null,null,null,null,null,null,null,null,null,null,null,null,null,null,null,null,null,null,null,null,null,null,null,null,null,null,null,null,null,null,null,null,null,null,null,null,null,null,null,null,null,null,null,null,null,null,null,null,null,null,null,null,null,null,null,null,null,null,null,null,null,null,null,null,null,null,null,null,null,null,null,{"$f":"B40","v":"Were focus group discussions or key informant interviews held?"}]
[null,null,null,"","","","","","","","",null,null,null,null,null,null,null,null,null,null,null,null,null,null,null,null,null,null,null,null,null,null,null,null,null,null,null,null,null,null,null,null,null,null,null,null,null,null,null,null,null,null,null,null,null,null,null,null,null,null,null,null,null,null,null,null,null,null,null,null,null,null,null,null,null,null,null,null,null,null,null,null,null,null,null,null,null,null,null,null,null,null,null,null,null,null,null,null,null,null,null,null,{"$f":"B40","v":"Were focus group discussions or key informant interviews held?"}]
[null,null,null,"","","","","","","","",null,null,null,null,null,null,null,null,null,null,null,null,null,null,null,null,null,null,null,null,null,null,null,null,null,null,null,null,null,null,null,null,null,null,null,null,null,null,null,null,null,null,null,null,null,null,null,null,null,null,null,null,null,null,null,null,null,null,null,null,null,null,null,null,null,null,null,null,null,null,null,null,null,null,null,null,null,null,null,null,null,null,null,null,null,null,null,null,null,null,null,null,{"$f":"B40","v":"Were focus group discussions or key informant interviews held?"}]
[null,"Were surveys/questionaires conducted?",null,"","","","","","","","",null,null,null,null,null,null,null,null,null,null,null,null,null,null,null,null,null,null,null,null,null,null,null,null,null,null,null,null,null,null,null,null,null,null,null,null,null,null,null,null,null,null,null,null,null,null,null,null,null,null,null,null,null,null,null,null,null,null,null,null,null,null,null,null,null,null,null,null,null,null,null,null,null,null,null,null,null,null,null,null,null,null,null,null,null,null,null,null,null,null,null,null,{"$f":"B43","v":"Were surveys/questionaires conducted?"}]
[null,null,null,"","","","","","","","",null,null,null,null,null,null,null,null,null,null,null,null,null,null,null,null,null,null,null,null,null,null,null,null,null,null,null,null,null,null,null,null,null,null,null,null,null,null,null,null,null,null,null,null,null,null,null,null,null,null,null,null,null,null,null,null,null,null,null,null,null,null,null,null,null,null,null,null,null,null,null,null,null,null,null,null,null,null,null,null,null,null,null,null,null,null,null,null,null,null,null,null,{"$f":"B43","v":"Were surveys/questionaires conducted?"}]
[null,null,null,"","","","","","","","",null,null,null,null,null,null,null,null,null,null,null,null,null,null,null,null,null,null,null,null,null,null,null,null,null,null,null,null,null,null,null,null,null,null,null,null,null,null,null,null,null,null,null,null,null,null,null,null,null,null,null,null,null,null,null,null,null,null,null,null,null,null,null,null,null,null,null,null,null,null,null,null,null,null,null,null,null,null,null,null,null,null,null,null,null,null,null,null,null,null,null,null,{"$f":"B43","v":"Were surveys/questionaires conducted?"}]
[null,"Were online consultations conducted?",null,"","","","","","","","",null,null,null,null,null,null,null,null,null,null,null,null,null,null,null,null,null,null,null,null,null,null,null,null,null,null,null,null,null,null,null,null,null,null,null,null,null,null,null,null,null,null,null,null,null,null,null,null,null,null,null,null,null,null,null,null,null,null,null,null,null,null,null,null,null,null,null,null,null,null,null,null,null,null,null,null,null,null,null,null,null,null,null,null,null,null,null,null,null,null,null,null,{"$f":"B46","v":"Were online consultations conducted?"}]
[null,null,null,"","","","","","","","",null,null,null,null,null,null,null,null,null,null,null,null,null,null,null,null,null,null,null,null,null,null,null,null,null,null,null,null,null,null,null,null,null,null,null,null,null,null,null,null,null,null,null,null,null,null,null,null,null,null,null,null,null,null,null,null,null,null,null,null,null,null,null,null,null,null,null,null,null,null,null,null,null,null,null,null,null,null,null,null,null,null,null,null,null,null,null,null,null,null,null,null,{"$f":"B46","v":"Were online consultations conducted?"}]
[null,null,null,"","","","","","","","",null,null,null,null,null,null,null,null,null,null,null,null,null,null,null,null,null,null,null,null,null,null,null,null,null,null,null,null,null,null,null,null,null,null,null,null,null,null,null,null,null,null,null,null,null,null,null,null,null,null,null,null,null,null,null,null,null,null,null,null,null,null,null,null,null,null,null,null,null,null,null,null,null,null,null,null,null,null,null,null,null,null,null,null,null,null,null,null,null,null,null,null,{"$f":"B46","v":"Were online consultations conducted?"}]
["This could include informal structures at the local level, such as village councils and women's groups","Were advisory/expert groups consulted?",null,"","","","","","","","",null,null,null,null,null,null,null,null,null,null,null,null,null,null,null,null,null,null,null,null,null,null,null,null,null,null,null,null,null,null,null,null,null,null,null,null,null,null,null,null,null,null,null,null,null,null,null,null,null,null,null,null,null,null,null,null,null,null,null,null,null,null,null,null,null,null,null,null,null,null,null,null,null,null,null,null,null,null,null,null,null,null,null,null,null,null,null,null,null,null,null,null,{"$f":"B49","v":"Were advisory/expert groups consulted?"}]
[null,null,null,"","","","","","","","",null,null,null,null,null,null,null,null,null,null,null,null,null,null,null,null,null,null,null,null,null,null,null,null,null,null,null,null,null,null,null,null,null,null,null,null,null,null,null,null,null,null,null,null,null,null,null,null,null,null,null,null,null,null,null,null,null,null,null,null,null,null,null,null,null,null,null,null,null,null,null,null,null,null,null,null,null,null,null,null,null,null,null,null,null,null,null,null,null,null,null,null,{"$f":"B49","v":"Were advisory/expert groups consulted?"}]
[null,null,null,"","","","","","","","",null,null,null,null,null,null,null,null,null,null,null,null,null,null,null,null,null,null,null,null,null,null,null,null,null,null,null,null,null,null,null,null,null,null,null,null,null,null,null,null,null,null,null,null,null,null,null,null,null,null,null,null,null,null,null,null,null,null,null,null,null,null,null,null,null,null,null,null,null,null,null,null,null,null,null,null,null,null,null,null,null,null,null,null,null,null,null,null,null,null,null,null,{"$f":"B49","v":"Were advisory/expert groups consulted?"}]
[null,"Were any other types of consultations conducted during project preparation?",null,"","","","","","","","",null,null,null,null,null,null,null,null,null,null,null,null,null,null,null,null,null,null,null,null,null,null,null,null,null,null,null,null,null,null,null,null,null,null,null,null,null,null,null,null,null,null,null,null,null,null,null,null,null,null,null,null,null,null,null,null,null,null,null,null,null,null,null,null,null,null,null,null,null,null,null,null,null,null,null,null,null,null,null,null,null,null,null,null,null,null,null,null,null,null,null,null,{"$f":"B52","v":"Were any other types of consultations conducted during project preparation?"}]
[null,null,null,"","","","","","","","",null,null,null,null,null,null,null,null,null,null,null,null,null,null,null,null,null,null,null,null,null,null,null,null,null,null,null,null,null,null,null,null,null,null,null,null,null,null,null,null,null,null,null,null,null,null,null,null,null,null,null,null,null,null,null,null,null,null,null,null,null,null,null,null,null,null,null,null,null,null,null,null,null,null,null,null,null,null,null,null,null,null,null,null,null,null,null,null,null,null,null,null,{"$f":"B52","v":"Were any other types of consultations conducted during project preparation?"}]
[null,null,null,"","","","","","","","",null,null,null,null,null,null,null,null,null,null,null,null,null,null,null,null,null,null,null,null,null,null,null,null,null,null,null,null,null,null,null,null,null,null,null,null,null,null,null,null,null,null,null,null,null,null,null,null,null,null,null,null,null,null,null,null,null,null,null,null,null,null,null,null,null,null,null,null,null,null,null,null,null,null,null,null,null,null,null,null,null,null,null,null,null,null,null,null,null,null,null,null,{"$f":"B52","v":"Were any other types of consultations conducted during project preparation?"}]
[null,"Project commits to cimmunity consultation activities during project design and preparation?",null,"","","","","","","","",null,null,null,null,null,null,null,null,null,null,null,null,null,null,null,null,null,null,null,null,null,null,null,null,null,null,null,null,null,null,null,null,null,null,null,null,null,null,null,null,null,null,null,null,null,null,null,null,null,null,null,null,null,null,null,null,null,null,null,null,null,null,null,null,null,null,null,null,null,null,null,null,null,null,null,null,null,null,null,null,null,null,null,null,null,null,null,null,null,null,null,null,{"$f":"B55","v":"Project commits to cimmunity consultation activities during project design and preparation?"}]
[null,null,null,"","","","","","","","",null,null,null,null,null,null,null,null,null,null,null,null,null,null,null,null,null,null,null,null,null,null,null,null,null,null,null,null,null,null,null,null,null,null,null,null,null,null,null,null,null,null,null,null,null,null,null,null,null,null,null,null,null,null,null,null,null,null,null,null,null,null,null,null,null,null,null,null,null,null,null,null,null,null,null,null,null,null,null,null,null,null,null,null,null,null,null,null,null,null,null,null,{"$f":"B55","v":"Project commits to cimmunity consultation activities during project design and preparation?"}]
[null,null,null,"","","","","","","","",null,null,null,null,null,null,null,null,null,null,null,null,null,null,null,null,null,null,null,null,null,null,null,null,null,null,null,null,null,null,null,null,null,null,null,null,null,null,null,null,null,null,null,null,null,null,null,null,null,null,null,null,null,null,null,null,null,null,null,null,null,null,null,null,null,null,null,null,null,null,null,null,null,null,null,null,null,null,null,null,null,null,null,null,null,null,null,null,null,null,null,null,{"$f":"B55","v":"Project commits to cimmunity consultation activities during project design and preparation?"}]
[]
["If safeguards were triggered, additional Consultation details may appear in the safeguard documents","Are consultations required because WB safeguards were triggered?",null,"","",null,null,null,null,null,null,null,null,null,null,null,null,null,null,null,null,null,null,null,null,null,null,null,null,null,null,null,null,null,null,null,null,null,null,null,null,null,null,null,null,null,null,null,null,null,null,null,null,null,null,null,null,null,null,null,null,null,null,null,null,null,null,null,null,null,null,null,null,null,null,null,null,null,null,null,null,null,null,null,null,null,null,null,null,null,null,null,null,null,null,null,null,null,null,null,null,null,null,{"$f":"B59","v":"Are consultations required because WB safeguards were triggered?"}]
[null,null,null,"","",null,null,null,null,null,null,null,null,null,null,null,null,null,null,null,null,null,null,null,null,null,null,null,null,null,null,null,null,null,null,null,null,null,null,null,null,null,null,null,null,null,null,null,null,null,null,null,null,null,null,null,null,null,null,null,null,null,null,null,null,null,null,null,null,null,null,null,null,null,null,null,null,null,null,null,null,null,null,null,null,null,null,null,null,null,null,null,null,null,null,null,null,null,null,null,null,null,null,{"$f":"B59","v":"Are consultations required because WB safeguards were triggered?"}]
[null,null,null,"","",null,null,null,null,null,null,null,null,null,null,null,null,null,null,null,null,null,null,null,null,null,null,null,null,null,null,null,null,null,null,null,null,null,null,null,null,null,null,null,null,null,null,null,null,null,null,null,null,null,null,null,null,null,null,null,null,null,null,null,null,null,null,null,null,null,null,null,null,null,null,null,null,null,null,null,null,null,null,null,null,null,null,null,null,null,null,null,null,null,null,null,null,null,null,null,null,null,null,{"$f":"B59","v":"Are consultations required because WB safeguards were triggered?"}]
["Specific groups (i.e. not simply \"partners\" or \"stakeholders\" ) identified as primary/ultimate beneficiaries and/or affected non-beneficiaries. ","Were specific consultation partners identified? Please specify",null,"","",null,null,null,null,null,null,null,null,null,null,null,null,null,null,null,null,null,null,null,null,null,null,null,null,null,null,null,null,null,null,null,null,null,null,null,null,null,null,null,null,null,null,null,null,null,null,null,null,null,null,null,null,null,null,null,null,null,null,null,null,null,null,null,null,null,null,null,null,null,null,null,null,null,null,null,null,null,null,null,null,null,null,null,null,null,null,null,null,null,null,null,null,null,null,null,null,null,null,{"$f":"B62","v":"Were specific consultation partners identified? Please specify"}]
[null,null,null,"","",null,null,null,null,null,null,null,null,null,null,null,null,null,null,null,null,null,null,null,null,null,null,null,null,null,null,null,null,null,null,null,null,null,null,null,null,null,null,null,null,null,null,null,null,null,null,null,null,null,null,null,null,null,null,null,null,null,null,null,null,null,null,null,null,null,null,null,null,null,null,null,null,null,null,null,null,null,null,null,null,null,null,null,null,null,null,null,null,null,null,null,null,null,null,null,null,null,null,{"$f":"B62","v":"Were specific consultation partners identified? Please specify"}]
[null,null,null,"","",null,null,null,null,null,null,null,null,null,null,null,null,null,null,null,null,null,null,null,null,null,null,null,null,null,null,null,null,null,null,null,null,null,null,null,null,null,null,null,null,null,null,null,null,null,null,null,null,null,null,null,null,null,null,null,null,null,null,null,null,null,null,null,null,null,null,null,null,null,null,null,null,null,null,null,null,null,null,null,null,null,null,null,null,null,null,null,null,null,null,null,null,null,null,null,null,null,null,{"$f":"B62","v":"Were specific consultation partners identified? Please specify"}]
[null,"Were proactive social (i. gender, ethnic, disability, youth, migrant and/or other) inclusion measures described related to the make up of the consultations? Please specify what and for which populations",null,"","",null,null,null,null,null,null,null,null,null,null,null,null,null,null,null,null,null,null,null,null,null,null,null,null,null,null,null,null,null,null,null,null,null,null,null,null,null,null,null,null,null,null,null,null,null,null,null,null,null,null,null,null,null,null,null,null,null,null,null,null,null,null,null,null,null,null,null,null,null,null,null,null,null,null,null,null,null,null,null,null,null,null,null,null,null,null,null,null,null,null,null,null,null,null,null,null,null,null,{"$f":"B65","v":"Were proactive social (i. gender, ethnic, disability, youth, migrant and/or other) inclusion measures described related to the make up of the consultations? Please specify what and for which populations"}]
[null,null,null,"","",null,null,null,null,null,null,null,null,null,null,null,null,null,null,null,null,null,null,null,null,null,null,null,null,null,null,null,null,null,null,null,null,null,null,null,null,null,null,null,null,null,null,null,null,null,null,null,null,null,null,null,null,null,null,null,null,null,null,null,null,null,null,null,null,null,null,null,null,null,null,null,null,null,null,null,null,null,null,null,null,null,null,null,null,null,null,null,null,null,null,null,null,null,null,null,null,null,null,{"$f":"B65","v":"Were proactive social (i. gender, ethnic, disability, youth, migrant and/or other) inclusion measures described related to the make up of the consultations? Please specify what and for which populations"}]
[null,null,null,"","",null,null,null,null,null,null,null,null,null,null,null,null,null,null,null,null,null,null,null,null,null,null,null,null,null,null,null,null,null,null,null,null,null,null,null,null,null,null,null,null,null,null,null,null,null,null,null,null,null,null,null,null,null,null,null,null,null,null,null,null,null,null,null,null,null,null,null,null,null,null,null,null,null,null,null,null,null,null,null,null,null,null,null,null,null,null,null,null,null,null,null,null,null,null,null,null,null,null,{"$f":"B65","v":"Were proactive social (i. gender, ethnic, disability, youth, migrant and/or other) inclusion measures described related to the make up of the consultations? Please specify what and for which populations"}]
[null,"Does the project document specific issues covered in consultations? Please specify",null,"","",null,null,null,null,null,null,null,null,null,null,null,null,null,null,null,null,null,null,null,null,null,null,null,null,null,null,null,null,null,null,null,null,null,null,null,null,null,null,null,null,null,null,null,null,null,null,null,null,null,null,null,null,null,null,null,null,null,null,null,null,null,null,null,null,null,null,null,null,null,null,null,null,null,null,null,null,null,null,null,null,null,null,null,null,null,null,null,null,null,null,null,null,null,null,null,null,null,null,{"$f":"B68","v":"Does the project document specific issues covered in consultations? Please specify"}]
[null,null,null,"","",null,null,null,null,null,null,null,null,null,null,null,null,null,null,null,null,null,null,null,null,null,null,null,null,null,null,null,null,null,null,null,null,null,null,null,null,null,null,null,null,null,null,null,null,null,null,null,null,null,null,null,null,null,null,null,null,null,null,null,null,null,null,null,null,null,null,null,null,null,null,null,null,null,null,null,null,null,null,null,null,null,null,null,null,null,null,null,null,null,null,null,null,null,null,null,null,null,null,{"$f":"B68","v":"Does the project document specific issues covered in consultations? Please specify"}]
[null,null,null,"","",null,null,null,null,null,null,null,null,null,null,null,null,null,null,null,null,null,null,null,null,null,null,null,null,null,null,null,null,null,null,null,null,null,null,null,null,null,null,null,null,null,null,null,null,null,null,null,null,null,null,null,null,null,null,null,null,null,null,null,null,null,null,null,null,null,null,null,null,null,null,null,null,null,null,null,null,null,null,null,null,null,null,null,null,null,null,null,null,null,null,null,null,null,null,null,null,null,null,{"$f":"B68","v":"Does the project document specific issues covered in consultations? Please specify"}]
["See  PAD Annex 1:  Results Framework and Monitoring","Project tracks # of participants/sites engaged?",null,"","",null,null,null,null,null,null,null,null,null,null,null,null,null,null,null,null,null,null,null,null,null,null,null,null,null,null,null,null,null,null,null,null,null,null,null,null,null,null,null,null,null,null,null,null,null,null,null,null,null,null,null,null,null,null,null,null,null,null,null,null,null,null,null,null,null,null,null,null,null,null,null,null,null,null,null,null,null,null,null,null,null,null,null,null,null,null,null,null,null,null,null,null,null,null,null,null,null,null,{"$f":"B71","v":"Project tracks # of participants/sites engaged?"}]
[null,null,null,"","",null,null,null,null,null,null,null,null,null,null,null,null,null,null,null,null,null,null,null,null,null,null,null,null,null,null,null,null,null,null,null,null,null,null,null,null,null,null,null,null,null,null,null,null,null,null,null,null,null,null,null,null,null,null,null,null,null,null,null,null,null,null,null,null,null,null,null,null,null,null,null,null,null,null,null,null,null,null,null,null,null,null,null,null,null,null,null,null,null,null,null,null,null,null,null,null,null,null,{"$f":"B71","v":"Project tracks # of participants/sites engaged?"}]
[null,null,null,"","",null,null,null,null,null,null,null,null,null,null,null,null,null,null,null,null,null,null,null,null,null,null,null,null,null,null,null,null,null,null,null,null,null,null,null,null,null,null,null,null,null,null,null,null,null,null,null,null,null,null,null,null,null,null,null,null,null,null,null,null,null,null,null,null,null,null,null,null,null,null,null,null,null,null,null,null,null,null,null,null,null,null,null,null,null,null,null,null,null,null,null,null,null,null,null,null,null,null,{"$f":"B71","v":"Project tracks # of participants/sites engaged?"}]
[null,"Project identifies third party (external to the World Bank or government) that had a role in overseeing these activities (If yes, please explain)?",null,"","",null,null,null,null,null,null,null,null,null,null,null,null,null,null,null,null,null,null,null,null,null,null,null,null,null,null,null,null,null,null,null,null,null,null,null,null,null,null,null,null,null,null,null,null,null,null,null,null,null,null,null,null,null,null,null,null,null,null,null,null,null,null,null,null,null,null,null,null,null,null,null,null,null,null,null,null,null,null,null,null,null,null,null,null,null,null,null,null,null,null,null,null,null,null,null,null,null,null,{"$f":"B74","v":"Project identifies third party (external to the World Bank or government) that had a role in overseeing these activities (If yes, please explain)?"}]
[null,null,null,"","",null,null,null,null,null,null,null,null,null,null,null,null,null,null,null,null,null,null,null,null,null,null,null,null,null,null,null,null,null,null,null,null,null,null,null,null,null,null,null,null,null,null,null,null,null,null,null,null,null,null,null,null,null,null,null,null,null,null,null,null,null,null,null,null,null,null,null,null,null,null,null,null,null,null,null,null,null,null,null,null,null,null,null,null,null,null,null,null,null,null,null,null,null,null,null,null,null,null,{"$f":"B74","v":"Project identifies third party (external to the World Bank or government) that had a role in overseeing these activities (If yes, please explain)?"}]
[null,null,null,"","",null,null,null,null,null,null,null,null,null,null,null,null,null,null,null,null,null,null,null,null,null,null,null,null,null,null,null,null,null,null,null,null,null,null,null,null,null,null,null,null,null,null,null,null,null,null,null,null,null,null,null,null,null,null,null,null,null,null,null,null,null,null,null,null,null,null,null,null,null,null,null,null,null,null,null,null,null,null,null,null,null,null,null,null,null,null,null,null,null,null,null,null,null,null,null,null,null,null,{"$f":"B74","v":"Project identifies third party (external to the World Bank or government) that had a role in overseeing these activities (If yes, please explain)?"}]
[null,"Project commits to public disclosure of  consultation results  meeting minutes, any resulting reports, etc.)",null,"","",null,null,null,null,null,null,null,null,null,null,null,null,null,null,null,null,null,null,null,null,null,null,null,null,null,null,null,null,null,null,null,null,null,null,null,null,null,null,null,null,null,null,null,null,null,null,null,null,null,null,null,null,null,null,null,null,null,null,null,null,null,null,null,null,null,null,null,null,null,null,null,null,null,null,null,null,null,null,null,null,null,null,null,null,null,null,null,null,null,null,null,null,null,null,null,null,null,null,{"$f":"B77","v":"Project commits to public disclosure of  consultation results  meeting minutes, any resulting reports, etc.)"}]
[null,null,null,"","",null,null,null,null,null,null,null,null,null,null,null,null,null,null,null,null,null,null,null,null,null,null,null,null,null,null,null,null,null,null,null,null,null,null,null,null,null,null,null,null,null,null,null,null,null,null,null,null,null,null,null,null,null,null,null,null,null,null,null,null,null,null,null,null,null,null,null,null,null,null,null,null,null,null,null,null,null,null,null,null,null,null,null,null,null,null,null,null,null,null,null,null,null,null,null,null,null,null,{"$f":"B77","v":"Project commits to public disclosure of  consultation results  meeting minutes, any resulting reports, etc.)"}]
[null,null,null,"","",null,null,null,null,null,null,null,null,null,null,null,null,null,null,null,null,null,null,null,null,null,null,null,null,null,null,null,null,null,null,null,null,null,null,null,null,null,null,null,null,null,null,null,null,null,null,null,null,null,null,null,null,null,null,null,null,null,null,null,null,null,null,null,null,null,null,null,null,null,null,null,null,null,null,null,null,null,null,null,null,null,null,null,null,null,null,null,null,null,null,null,null,null,null,null,null,null,null,{"$f":"B77","v":"Project commits to public disclosure of  consultation results  meeting minutes, any resulting reports, etc.)"}]
[null,"Does the project commit to the publication of the Operations Manual on a national project website?",null,"","",null,null,null,null,null,null,null,null,null,null,null,null,null,null,null,null,null,null,null,null,null,null,null,null,null,null,null,null,null,null,null,null,null,null,null,null,null,null,null,null,null,null,null,null,null,null,null,null,null,null,null,null,null,null,null,null,null,null,null,null,null,null,null,null,null,null,null,null,null,null,null,null,null,null,null,null,null,null,null,null,null,null,null,null,null,null,null,null,null,null,null,null,null,null,null,null,null,null,{"$f":"B80","v":"Does the project commit to the publication of the Operations Manual on a national project website?"}]
[null,null,null,"","",null,null,null,null,null,null,null,null,null,null,null,null,null,null,null,null,null,null,null,null,null,null,null,null,null,null,null,null,null,null,null,null,null,null,null,null,null,null,null,null,null,null,null,null,null,null,null,null,null,null,null,null,null,null,null,null,null,null,null,null,null,null,null,null,null,null,null,null,null,null,null,null,null,null,null,null,null,null,null,null,null,null,null,null,null,null,null,null,null,null,null,null,null,null,null,null,null,null,{"$f":"B80","v":"Does the project commit to the publication of the Operations Manual on a national project website?"}]
[null,null,null,"","",null,null,null,null,null,null,null,null,null,null,null,null,null,null,null,null,null,null,null,null,null,null,null,null,null,null,null,null,null,null,null,null,null,null,null,null,null,null,null,null,null,null,null,null,null,null,null,null,null,null,null,null,null,null,null,null,null,null,null,null,null,null,null,null,null,null,null,null,null,null,null,null,null,null,null,null,null,null,null,null,null,null,null,null,null,null,null,null,null,null,null,null,null,null,null,null,null,null,{"$f":"B80","v":"Does the project commit to the publication of the Operations Manual on a national project website?"}]
["If a national project website is not specified in the project documents, or listed on the Bank's project webpage, try using a Google search. If no website can be found, mark as \"Unclear\" ","Is the Operational Manual actually available on a national project website? If so, in what languages?",null,"","",null,null,null,null,null,null,null,null,null,null,null,null,null,null,null,null,null,null,null,null,null,null,null,null,null,null,null,null,null,null,null,null,null,null,null,null,null,null,null,null,null,null,null,null,null,null,null,null,null,null,null,null,null,null,null,null,null,null,null,null,null,null,null,null,null,null,null,null,null,null,null,null,null,null,null,null,null,null,null,null,null,null,null,null,null,null,null,null,null,null,null,null,null,null,null,null,null,{"$f":"A83","v":"If a national project website is not specified in the project documents, or listed on the Bank's project webpage, try using a Google search. If no website can be found, mark as \"Unclear\" "},{"$f":"B83","v":"Is the Operational Manual actually available on a national project website? If so, in what languages?"}]
[null,null,null,"","",null,null,null,null,null,null,null,null,null,null,null,null,null,null,null,null,null,null,null,null,null,null,null,null,null,null,null,null,null,null,null,null,null,null,null,null,null,null,null,null,null,null,null,null,null,null,null,null,null,null,null,null,null,null,null,null,null,null,null,null,null,null,null,null,null,null,null,null,null,null,null,null,null,null,null,null,null,null,null,null,null,null,null,null,null,null,null,null,null,null,null,null,null,null,null,null,null,{"$f":"A83","v":"If a national project website is not specified in the project documents, or listed on the Bank's project webpage, try using a Google search. If no website can be found, mark as \"Unclear\" "},{"$f":"B83","v":"Is the Operational Manual actually available on a national project website? If so, in what languages?"}]
[null,null,null,"","",null,null,null,null,null,null,null,null,null,null,null,null,null,null,null,null,null,null,null,null,null,null,null,null,null,null,null,null,null,null,null,null,null,null,null,null,null,null,null,null,null,null,null,null,null,null,null,null,null,null,null,null,null,null,null,null,null,null,null,null,null,null,null,null,null,null,null,null,null,null,null,null,null,null,null,null,null,null,null,null,null,null,null,null,null,null,null,null,null,null,null,null,null,null,null,null,null,{"$f":"A83","v":"If a national project website is not specified in the project documents, or listed on the Bank's project webpage, try using a Google search. If no website can be found, mark as \"Unclear\" "},{"$f":"B83","v":"Is the Operational Manual actually available on a national project website? If so, in what languages?"}]
[]
["\"Collaboration in decisionmaking\" "]
["The following questions relate only to community participation in decision-making for implementation (rather than feedback on services provided that will be the next category) ",null,null,null,""]
[null,null,"Yes/No/Unclear","Project Appraisal Document (PAD) Description/Details",""," Description/Details Description/Details","Page No."," Description/Details","Page No."," Description/Details","Page No."]
[null,"Project commits to collaboration with citizens in decision-making processes during project implementation?",null,"","","","","","","","",null,null,null,null,null,null,null,null,null,null,null,null,null,null,null,null,null,null,null,null,null,null,null,null,null,null,null,null,null,null,null,null,null,null,null,null,null,null,null,null,null,null,null,null,null,null,null,null,null,null,null,null,null,null,null,null,null,null,null,null,null,null,null,null,null,null,null,null,null,null,null,null,null,null,null,null,null,null,null,null,null,null,null,null,null,null,null,null,null,null,null,null,{"$f":"B90","v":"Project commits to collaboration with citizens in decision-making processes during project implementation?"}]
[null,null,null,"","","","","","","","",null,null,null,null,null,null,null,null,null,null,null,null,null,null,null,null,null,null,null,null,null,null,null,null,null,null,null,null,null,null,null,null,null,null,null,null,null,null,null,null,null,null,null,null,null,null,null,null,null,null,null,null,null,null,null,null,null,null,null,null,null,null,null,null,null,null,null,null,null,null,null,null,null,null,null,null,null,null,null,null,null,null,null,null,null,null,null,null,null,null,null,null,{"$f":"B90","v":"Project commits to collaboration with citizens in decision-making processes during project implementation?"}]
[null,null,null,"","","","","","","","",null,null,null,null,null,null,null,null,null,null,null,null,null,null,null,null,null,null,null,null,null,null,null,null,null,null,null,null,null,null,null,null,null,null,null,null,null,null,null,null,null,null,null,null,null,null,null,null,null,null,null,null,null,null,null,null,null,null,null,null,null,null,null,null,null,null,null,null,null,null,null,null,null,null,null,null,null,null,null,null,null,null,null,null,null,null,null,null,null,null,null,null,{"$f":"B90","v":"Project commits to collaboration with citizens in decision-making processes during project implementation?"}]
["\"Collaboration with citizens in decision-making processes and events can make decisions more responsive to citizens’ needs and improve the sustainability of program and project outcomes through increased ownership by citizens. Mechanisms for collaboration include citizen/user membership in decision-making bodies, integrity pacts, participatory planning and budgeting, and citizens’ juries.\"","Project commits to citizen/user membership in decision making bodies?",null,"","","","","","","","",null,null,null,null,null,null,null,null,null,null,null,null,null,null,null,null,null,null,null,null,null,null,null,null,null,null,null,null,null,null,null,null,null,null,null,null,null,null,null,null,null,null,null,null,null,null,null,null,null,null,null,null,null,null,null,null,null,null,null,null,null,null,null,null,null,null,null,null,null,null,null,null,null,null,null,null,null,null,null,null,null,null,null,null,null,null,null,null,null,null,null,null,{"$f":"B93","v":"Project commits to citizen/user membership in decision making bodies?"}]
[null,null,null,"","","","","","","","",null,null,null,null,null,null,null,null,null,null,null,null,null,null,null,null,null,null,null,null,null,null,null,null,null,null,null,null,null,null,null,null,null,null,null,null,null,null,null,null,null,null,null,null,null,null,null,null,null,null,null,null,null,null,null,null,null,null,null,null,null,null,null,null,null,null,null,null,null,null,null,null,null,null,null,null,null,null,null,null,null,null,null,null,null,null,null,null,null,null,null,null,{"$f":"B93","v":"Project commits to citizen/user membership in decision making bodies?"}]
[null,null,null,"","","","","","","","",null,null,null,null,null,null,null,null,null,null,null,null,null,null,null,null,null,null,null,null,null,null,null,null,null,null,null,null,null,null,null,null,null,null,null,null,null,null,null,null,null,null,null,null,null,null,null,null,null,null,null,null,null,null,null,null,null,null,null,null,null,null,null,null,null,null,null,null,null,null,null,null,null,null,null,null,null,null,null,null,null,null,null,null,null,null,null,null,null,null,null,null,{"$f":"B93","v":"Project commits to citizen/user membership in decision making bodies?"}]
[null,"Project commits to forming an integrity pact?",null,"","","","","","","","",null,null,null,null,null,null,null,null,null,null,null,null,null,null,null,null,null,null,null,null,null,null,null,null,null,null,null,null,null,null,null,null,null,null,null,null,null,null,null,null,null,null,null,null,null,null,null,null,null,null,null,null,null,null,null,null,null,null,null,null,null,null,null,null,null,null,null,null,null,null,null,null,null,null,null,null,null,null,null,null,null,null,null,null,null,null,null,null,null,null,null,null,{"$f":"B96","v":"Project commits to forming an integrity pact?"}]
[null,null,null,"","","","","","","","",null,null,null,null,null,null,null,null,null,null,null,null,null,null,null,null,null,null,null,null,null,null,null,null,null,null,null,null,null,null,null,null,null,null,null,null,null,null,null,null,null,null,null,null,null,null,null,null,null,null,null,null,null,null,null,null,null,null,null,null,null,null,null,null,null,null,null,null,null,null,null,null,null,null,null,null,null,null,null,null,null,null,null,null,null,null,null,null,null,null,null,null,{"$f":"B96","v":"Project commits to forming an integrity pact?"}]
[null,null,null,"","","","","","","","",null,null,null,null,null,null,null,null,null,null,null,null,null,null,null,null,null,null,null,null,null,null,null,null,null,null,null,null,null,null,null,null,null,null,null,null,null,null,null,null,null,null,null,null,null,null,null,null,null,null,null,null,null,null,null,null,null,null,null,null,null,null,null,null,null,null,null,null,null,null,null,null,null,null,null,null,null,null,null,null,null,null,null,null,null,null,null,null,null,null,null,null,{"$f":"B96","v":"Project commits to forming an integrity pact?"}]
[null,"Project commits to participatory planning and/or budgeting? Please specify which/both",null,"","","","","","","","",null,null,null,null,null,null,null,null,null,null,null,null,null,null,null,null,null,null,null,null,null,null,null,null,null,null,null,null,null,null,null,null,null,null,null,null,null,null,null,null,null,null,null,null,null,null,null,null,null,null,null,null,null,null,null,null,null,null,null,null,null,null,null,null,null,null,null,null,null,null,null,null,null,null,null,null,null,null,null,null,null,null,null,null,null,null,null,null,null,null,null,null,{"$f":"B99","v":"Project commits to participatory planning and/or budgeting? Please specify which/both"}]
[null,null,null,"","","","","","","","",null,null,null,null,null,null,null,null,null,null,null,null,null,null,null,null,null,null,null,null,null,null,null,null,null,null,null,null,null,null,null,null,null,null,null,null,null,null,null,null,null,null,null,null,null,null,null,null,null,null,null,null,null,null,null,null,null,null,null,null,null,null,null,null,null,null,null,null,null,null,null,null,null,null,null,null,null,null,null,null,null,null,null,null,null,null,null,null,null,null,null,null,{"$f":"B99","v":"Project commits to participatory planning and/or budgeting? Please specify which/both"}]
[null,null,null,"","","","","","","","",null,null,null,null,null,null,null,null,null,null,null,null,null,null,null,null,null,null,null,null,null,null,null,null,null,null,null,null,null,null,null,null,null,null,null,null,null,null,null,null,null,null,null,null,null,null,null,null,null,null,null,null,null,null,null,null,null,null,null,null,null,null,null,null,null,null,null,null,null,null,null,null,null,null,null,null,null,null,null,null,null,null,null,null,null,null,null,null,null,null,null,null,{"$f":"B99","v":"Project commits to participatory planning and/or budgeting? Please specify which/both"}]
[null,"Project commits to forming citizen juries?",null,"","","","","","","","",null,null,null,null,null,null,null,null,null,null,null,null,null,null,null,null,null,null,null,null,null,null,null,null,null,null,null,null,null,null,null,null,null,null,null,null,null,null,null,null,null,null,null,null,null,null,null,null,null,null,null,null,null,null,null,null,null,null,null,null,null,null,null,null,null,null,null,null,null,null,null,null,null,null,null,null,null,null,null,null,null,null,null,null,null,null,null,null,null,null,null,null,{"$f":"B102","v":"Project commits to forming citizen juries?"}]
[null,null,null,"","","","","","","","",null,null,null,null,null,null,null,null,null,null,null,null,null,null,null,null,null,null,null,null,null,null,null,null,null,null,null,null,null,null,null,null,null,null,null,null,null,null,null,null,null,null,null,null,null,null,null,null,null,null,null,null,null,null,null,null,null,null,null,null,null,null,null,null,null,null,null,null,null,null,null,null,null,null,null,null,null,null,null,null,null,null,null,null,null,null,null,null,null,null,null,null,{"$f":"B102","v":"Project commits to forming citizen juries?"}]
[null,null,null,"","","","","","","","",null,null,null,null,null,null,null,null,null,null,null,null,null,null,null,null,null,null,null,null,null,null,null,null,null,null,null,null,null,null,null,null,null,null,null,null,null,null,null,null,null,null,null,null,null,null,null,null,null,null,null,null,null,null,null,null,null,null,null,null,null,null,null,null,null,null,null,null,null,null,null,null,null,null,null,null,null,null,null,null,null,null,null,null,null,null,null,null,null,null,null,null,{"$f":"B102","v":"Project commits to forming citizen juries?"}]
[null,"Project commits to community management/community contracting?",null,""," ","","","","","","",null,null,null,null,null,null,null,null,null,null,null,null,null,null,null,null,null,null,null,null,null,null,null,null,null,null,null,null,null,null,null,null,null,null,null,null,null,null,null,null,null,null,null,null,null,null,null,null,null,null,null,null,null,null,null,null,null,null,null,null,null,null,null,null,null,null,null,null,null,null,null,null,null,null,null,null,null,null,null,null,null,null,null,null,null,null,null,null,null,null,null,null,{"$f":"B105","v":"Project commits to community management/community contracting?"}]
[null,null,null,"","","","","","","","",null,null,null,null,null,null,null,null,null,null,null,null,null,null,null,null,null,null,null,null,null,null,null,null,null,null,null,null,null,null,null,null,null,null,null,null,null,null,null,null,null,null,null,null,null,null,null,null,null,null,null,null,null,null,null,null,null,null,null,null,null,null,null,null,null,null,null,null,null,null,null,null,null,null,null,null,null,null,null,null,null,null,null,null,null,null,null,null,null,null,null,null,{"$f":"B105","v":"Project commits to community management/community contracting?"}]
[null,null,null,"","","","","","","","",null,null,null,null,null,null,null,null,null,null,null,null,null,null,null,null,null,null,null,null,null,null,null,null,null,null,null,null,null,null,null,null,null,null,null,null,null,null,null,null,null,null,null,null,null,null,null,null,null,null,null,null,null,null,null,null,null,null,null,null,null,null,null,null,null,null,null,null,null,null,null,null,null,null,null,null,null,null,null,null,null,null,null,null,null,null,null,null,null,null,null,null,{"$f":"B105","v":"Project commits to community management/community contracting?"}]
[null,"Project commits to another form of collaboration during project implementation? Please specify",null,"","","","","","","","",null,null,null,null,null,null,null,null,null,null,null,null,null,null,null,null,null,null,null,null,null,null,null,null,null,null,null,null,null,null,null,null,null,null,null,null,null,null,null,null,null,null,null,null,null,null,null,null,null,null,null,null,null,null,null,null,null,null,null,null,null,null,null,null,null,null,null,null,null,null,null,null,null,null,null,null,null,null,null,null,null,null,null,null,null,null,null,null,null,null,null,null,{"$f":"B108","v":"Project commits to another form of collaboration during project implementation? Please specify"}]
[null,null,null,"","","","","","","","",null,null,null,null,null,null,null,null,null,null,null,null,null,null,null,null,null,null,null,null,null,null,null,null,null,null,null,null,null,null,null,null,null,null,null,null,null,null,null,null,null,null,null,null,null,null,null,null,null,null,null,null,null,null,null,null,null,null,null,null,null,null,null,null,null,null,null,null,null,null,null,null,null,null,null,null,null,null,null,null,null,null,null,null,null,null,null,null,null,null,null,null,{"$f":"B108","v":"Project commits to another form of collaboration during project implementation? Please specify"}]
[null,null,null,"","","","","","","","",null,null,null,null,null,null,null,null,null,null,null,null,null,null,null,null,null,null,null,null,null,null,null,null,null,null,null,null,null,null,null,null,null,null,null,null,null,null,null,null,null,null,null,null,null,null,null,null,null,null,null,null,null,null,null,null,null,null,null,null,null,null,null,null,null,null,null,null,null,null,null,null,null,null,null,null,null,null,null,null,null,null,null,null,null,null,null,null,null,null,null,null,{"$f":"B108","v":"Project commits to another form of collaboration during project implementation? Please specify"}]
[]
["If safeguards were triggered, additional Consultation details may appear in the safeguard documents","Are collaborations required because WB safeguards were triggered?"]
[]
[]
["Specific groups (i.e. not simply \"partners\" or \"stakeholders\" ) identified as primary/ultimate beneficiaries and/or affected non-beneficiaries ","Are specific potential collaboration partners identified? If so, which groups?",null,"","",null,null,null,null,null,null,null,null,null,null,null,null,null,null,null,null,null,null,null,null,null,null,null,null,null,null,null,null,null,null,null,null,null,null,null,null,null,null,null,null,null,null,null,null,null,null,null,null,null,null,null,null,null,null,null,null,null,null,null,null,null,null,null,null,null,null,null,null,null,null,null,null,null,null,null,null,null,null,null,null,null,null,null,null,null,null,null,null,null,null,null,null,null,null,null,null,null,null,{"$f":"B115","v":"Are specific potential collaboration partners identified? If so, which groups?"}]
[null,null,null,"","",null,null,null,null,null,null,null,null,null,null,null,null,null,null,null,null,null,null,null,null,null,null,null,null,null,null,null,null,null,null,null,null,null,null,null,null,null,null,null,null,null,null,null,null,null,null,null,null,null,null,null,null,null,null,null,null,null,null,null,null,null,null,null,null,null,null,null,null,null,null,null,null,null,null,null,null,null,null,null,null,null,null,null,null,null,null,null,null,null,null,null,null,null,null,null,null,null,null,{"$f":"B115","v":"Are specific potential collaboration partners identified? If so, which groups?"}]
[null,null,null,"","",null,null,null,null,null,null,null,null,null,null,null,null,null,null,null,null,null,null,null,null,null,null,null,null,null,null,null,null,null,null,null,null,null,null,null,null,null,null,null,null,null,null,null,null,null,null,null,null,null,null,null,null,null,null,null,null,null,null,null,null,null,null,null,null,null,null,null,null,null,null,null,null,null,null,null,null,null,null,null,null,null,null,null,null,null,null,null,null,null,null,null,null,null,null,null,null,null,null,{"$f":"B115","v":"Are specific potential collaboration partners identified? If so, which groups?"}]
[null,"Were proactive social (gender, ethnic, disability, youth, migrant and/or other) inclusion measures described? Please specify what and for which populations",null,"","",null,null,null,null,null,null,null,null,null,null,null,null,null,null,null,null,null,null,null,null,null,null,null,null,null,null,null,null,null,null,null,null,null,null,null,null,null,null,null,null,null,null,null,null,null,null,null,null,null,null,null,null,null,null,null,null,null,null,null,null,null,null,null,null,null,null,null,null,null,null,null,null,null,null,null,null,null,null,null,null,null,null,null,null,null,null,null,null,null,null,null,null,null,null,null,null,null,null,{"$f":"B118","v":"Were proactive social (gender, ethnic, disability, youth, migrant and/or other) inclusion measures described? Please specify what and for which populations"}]
[null,null,null,"","",null,null,null,null,null,null,null,null,null,null,null,null,null,null,null,null,null,null,null,null,null,null,null,null,null,null,null,null,null,null,null,null,null,null,null,null,null,null,null,null,null,null,null,null,null,null,null,null,null,null,null,null,null,null,null,null,null,null,null,null,null,null,null,null,null,null,null,null,null,null,null,null,null,null,null,null,null,null,null,null,null,null,null,null,null,null,null,null,null,null,null,null,null,null,null,null,null,null,{"$f":"B118","v":"Were proactive social (gender, ethnic, disability, youth, migrant and/or other) inclusion measures described? Please specify what and for which populations"}]
[null,null,null,"","",null,null,null,null,null,null,null,null,null,null,null,null,null,null,null,null,null,null,null,null,null,null,null,null,null,null,null,null,null,null,null,null,null,null,null,null,null,null,null,null,null,null,null,null,null,null,null,null,null,null,null,null,null,null,null,null,null,null,null,null,null,null,null,null,null,null,null,null,null,null,null,null,null,null,null,null,null,null,null,null,null,null,null,null,null,null,null,null,null,null,null,null,null,null,null,null,null,null,{"$f":"B118","v":"Were proactive social (gender, ethnic, disability, youth, migrant and/or other) inclusion measures described? Please specify what and for which populations"}]
[null,"Project specifies how often collaboration meetings will occur?",null,"","",null,null,null,null,null,null,null,null,null,null,null,null,null,null,null,null,null,null,null,null,null,null,null,null,null,null,null,null,null,null,null,null,null,null,null,null,null,null,null,null,null,null,null,null,null,null,null,null,null,null,null,null,null,null,null,null,null,null,null,null,null,null,null,null,null,null,null,null,null,null,null,null,null,null,null,null,null,null,null,null,null,null,null,null,null,null,null,null,null,null,null,null,null,null,null,null,null,null,{"$f":"B121","v":"Project specifies how often collaboration meetings will occur?"}]
[null,null,null,"","",null,null,null,null,null,null,null,null,null,null,null,null,null,null,null,null,null,null,null,null,null,null,null,null,null,null,null,null,null,null,null,null,null,null,null,null,null,null,null,null,null,null,null,null,null,null,null,null,null,null,null,null,null,null,null,null,null,null,null,null,null,null,null,null,null,null,null,null,null,null,null,null,null,null,null,null,null,null,null,null,null,null,null,null,null,null,null,null,null,null,null,null,null,null,null,null,null,null,{"$f":"B121","v":"Project specifies how often collaboration meetings will occur?"}]
[null,null,null,"","",null,null,null,null,null,null,null,null,null,null,null,null,null,null,null,null,null,null,null,null,null,null,null,null,null,null,null,null,null,null,null,null,null,null,null,null,null,null,null,null,null,null,null,null,null,null,null,null,null,null,null,null,null,null,null,null,null,null,null,null,null,null,null,null,null,null,null,null,null,null,null,null,null,null,null,null,null,null,null,null,null,null,null,null,null,null,null,null,null,null,null,null,null,null,null,null,null,null,{"$f":"B121","v":"Project specifies how often collaboration meetings will occur?"}]
[null," Project specifies where collaboration meetings will be held?",null,"","",null,null,null,null,null,null,null,null,null,null,null,null,null,null,null,null,null,null,null,null,null,null,null,null,null,null,null,null,null,null,null,null,null,null,null,null,null,null,null,null,null,null,null,null,null,null,null,null,null,null,null,null,null,null,null,null,null,null,null,null,null,null,null,null,null,null,null,null,null,null,null,null,null,null,null,null,null,null,null,null,null,null,null,null,null,null,null,null,null,null,null,null,null,null,null,null,null,null,{"$f":"B124","v":" Project specifies where collaboration meetings will be held?"}]
[null,null,null,"","",null,null,null,null,null,null,null,null,null,null,null,null,null,null,null,null,null,null,null,null,null,null,null,null,null,null,null,null,null,null,null,null,null,null,null,null,null,null,null,null,null,null,null,null,null,null,null,null,null,null,null,null,null,null,null,null,null,null,null,null,null,null,null,null,null,null,null,null,null,null,null,null,null,null,null,null,null,null,null,null,null,null,null,null,null,null,null,null,null,null,null,null,null,null,null,null,null,null,{"$f":"B124","v":" Project specifies where collaboration meetings will be held?"}]
[null,null,null,"","",null,null,null,null,null,null,null,null,null,null,null,null,null,null,null,null,null,null,null,null,null,null,null,null,null,null,null,null,null,null,null,null,null,null,null,null,null,null,null,null,null,null,null,null,null,null,null,null,null,null,null,null,null,null,null,null,null,null,null,null,null,null,null,null,null,null,null,null,null,null,null,null,null,null,null,null,null,null,null,null,null,null,null,null,null,null,null,null,null,null,null,null,null,null,null,null,null,null,{"$f":"B124","v":" Project specifies where collaboration meetings will be held?"}]
[null,"Project identifies specific agencies/offices that will coordinate/oversee collaborations?",null,"","",null,null,null,null,null,null,null,null,null,null,null,null,null,null,null,null,null,null,null,null,null,null,null,null,null,null,null,null,null,null,null,null,null,null,null,null,null,null,null,null,null,null,null,null,null,null,null,null,null,null,null,null,null,null,null,null,null,null,null,null,null,null,null,null,null,null,null,null,null,null,null,null,null,null,null,null,null,null,null,null,null,null,null,null,null,null,null,null,null,null,null,null,null,null,null,null,null,null,{"$f":"B127","v":"Project identifies specific agencies/offices that will coordinate/oversee collaborations?"}]
[null,null,null,"","",null,null,null,null,null,null,null,null,null,null,null,null,null,null,null,null,null,null,null,null,null,null,null,null,null,null,null,null,null,null,null,null,null,null,null,null,null,null,null,null,null,null,null,null,null,null,null,null,null,null,null,null,null,null,null,null,null,null,null,null,null,null,null,null,null,null,null,null,null,null,null,null,null,null,null,null,null,null,null,null,null,null,null,null,null,null,null,null,null,null,null,null,null,null,null,null,null,null,{"$f":"B127","v":"Project identifies specific agencies/offices that will coordinate/oversee collaborations?"}]
[null,null,null,"","",null,null,null,null,null,null,null,null,null,null,null,null,null,null,null,null,null,null,null,null,null,null,null,null,null,null,null,null,null,null,null,null,null,null,null,null,null,null,null,null,null,null,null,null,null,null,null,null,null,null,null,null,null,null,null,null,null,null,null,null,null,null,null,null,null,null,null,null,null,null,null,null,null,null,null,null,null,null,null,null,null,null,null,null,null,null,null,null,null,null,null,null,null,null,null,null,null,null,{"$f":"B127","v":"Project identifies specific agencies/offices that will coordinate/oversee collaborations?"}]
[null,"Project identifies third party (external to the World Bank or government) that will have a role in overseeing these activities (If yes, please explain)?",null,"","",null,null,null,null,null,null,null,null,null,null,null,null,null,null,null,null,null,null,null,null,null,null,null,null,null,null,null,null,null,null,null,null,null,null,null,null,null,null,null,null,null,null,null,null,null,null,null,null,null,null,null,null,null,null,null,null,null,null,null,null,null,null,null,null,null,null,null,null,null,null,null,null,null,null,null,null,null,null,null,null,null,null,null,null,null,null,null,null,null,null,null,null,null,null,null,null,null,null,{"$f":"B130","v":"Project identifies third party (external to the World Bank or government) that will have a role in overseeing these activities (If yes, please explain)?"}]
[null,null,null,"","",null,null,null,null,null,null,null,null,null,null,null,null,null,null,null,null,null,null,null,null,null,null,null,null,null,null,null,null,null,null,null,null,null,null,null,null,null,null,null,null,null,null,null,null,null,null,null,null,null,null,null,null,null,null,null,null,null,null,null,null,null,null,null,null,null,null,null,null,null,null,null,null,null,null,null,null,null,null,null,null,null,null,null,null,null,null,null,null,null,null,null,null,null,null,null,null,null,null,{"$f":"B130","v":"Project identifies third party (external to the World Bank or government) that will have a role in overseeing these activities (If yes, please explain)?"}]
[null,null,null,"","",null,null,null,null,null,null,null,null,null,null,null,null,null,null,null,null,null,null,null,null,null,null,null,null,null,null,null,null,null,null,null,null,null,null,null,null,null,null,null,null,null,null,null,null,null,null,null,null,null,null,null,null,null,null,null,null,null,null,null,null,null,null,null,null,null,null,null,null,null,null,null,null,null,null,null,null,null,null,null,null,null,null,null,null,null,null,null,null,null,null,null,null,null,null,null,null,null,null,{"$f":"B130","v":"Project identifies third party (external to the World Bank or government) that will have a role in overseeing these activities (If yes, please explain)?"}]
[null,"Project commits to public disclosure of results or products (i.e. meeting minutes, decisions) from collaboration activities?  ",null,"","",null,null,null,null,null,null,null,null,null,null,null,null,null,null,null,null,null,null,null,null,null,null,null,null,null,null,null,null,null,null,null,null,null,null,null,null,null,null,null,null,null,null,null,null,null,null,null,null,null,null,null,null,null,null,null,null,null,null,null,null,null,null,null,null,null,null,null,null,null,null,null,null,null,null,null,null,null,null,null,null,null,null,null,null,null,null,null,null,null,null,null,null,null,null,null,null,null,null,{"$f":"B133","v":"Project commits to public disclosure of results or products (i.e. meeting minutes, decisions) from collaboration activities?  "}]
[null,null,null,"","",null,null,null,null,null,null,null,null,null,null,null,null,null,null,null,null,null,null,null,null,null,null,null,null,null,null,null,null,null,null,null,null,null,null,null,null,null,null,null,null,null,null,null,null,null,null,null,null,null,null,null,null,null,null,null,null,null,null,null,null,null,null,null,null,null,null,null,null,null,null,null,null,null,null,null,null,null,null,null,null,null,null,null,null,null,null,null,null,null,null,null,null,null,null,null,null,null,null,{"$f":"B133","v":"Project commits to public disclosure of results or products (i.e. meeting minutes, decisions) from collaboration activities?  "}]
[null,null,null,"","",null,null,null,null,null,null,null,null,null,null,null,null,null,null,null,null,null,null,null,null,null,null,null,null,null,null,null,null,null,null,null,null,null,null,null,null,null,null,null,null,null,null,null,null,null,null,null,null,null,null,null,null,null,null,null,null,null,null,null,null,null,null,null,null,null,null,null,null,null,null,null,null,null,null,null,null,null,null,null,null,null,null,null,null,null,null,null,null,null,null,null,null,null,null,null,null,null,null,{"$f":"B133","v":"Project commits to public disclosure of results or products (i.e. meeting minutes, decisions) from collaboration activities?  "}]
["See  PAD Annex 1:  Results Framework and Monitoring","Will collaboration activities be tracked as part of the project's Results Framework? (If so, please specify which RF indicators.) ",null,"","",null,null,null,null,null,null,null,null,null,null,null,null,null,null,null,null,null,null,null,null,null,null,null,null,null,null,null,null,null,null,null,null,null,null,null,null,null,null,null,null,null,null,null,null,null,null,null,null,null,null,null,null,null,null,null,null,null,null,null,null,null,null,null,null,null,null,null,null,null,null,null,null,null,null,null,null,null,null,null,null,null,null,null,null,null,null,null,null,null,null,null,null,null,null,null,null,null,null,{"$f":"B136","v":"Will collaboration activities be tracked as part of the project's Results Framework? (If so, please specify which RF indicators.) "}]
[null,null,null,"","",null,null,null,null,null,null,null,null,null,null,null,null,null,null,null,null,null,null,null,null,null,null,null,null,null,null,null,null,null,null,null,null,null,null,null,null,null,null,null,null,null,null,null,null,null,null,null,null,null,null,null,null,null,null,null,null,null,null,null,null,null,null,null,null,null,null,null,null,null,null,null,null,null,null,null,null,null,null,null,null,null,null,null,null,null,null,null,null,null,null,null,null,null,null,null,null,null,null,{"$f":"B136","v":"Will collaboration activities be tracked as part of the project's Results Framework? (If so, please specify which RF indicators.) "}]
[null,null,null,"","",null,null,null,null,null,null,null,null,null,null,null,null,null,null,null,null,null,null,null,null,null,null,null,null,null,null,null,null,null,null,null,null,null,null,null,null,null,null,null,null,null,null,null,null,null,null,null,null,null,null,null,null,null,null,null,null,null,null,null,null,null,null,null,null,null,null,null,null,null,null,null,null,null,null,null,null,null,null,null,null,null,null,null,null,null,null,null,null,null,null,null,null,null,null,null,null,null,null,{"$f":"B136","v":"Will collaboration activities be tracked as part of the project's Results Framework? (If so, please specify which RF indicators.) "}]
[]
["\"Collecting, Recording, and Reporting on Inputs from Citizens\""]
["These questions relate to  project implementation and post implementation (as specified in the question)",null,null,null,""]
[null,null,"Yes/No/Unclear","Project Appraisal Document (PAD) Description/Details",""," Description/Details Description/Details","Page No."," Description/Details","Page No."," Description/Details","Page No."]
[null,"Project commits to collecting, recording and reporting on inputs from citizens?",null,"","","","","","","","",null,null,null,null,null,null,null,null,null,null,null,null,null,null,null,null,null,null,null,null,null,null,null,null,null,null,null,null,null,null,null,null,null,null,null,null,null,null,null,null,null,null,null,null,null,null,null,null,null,null,null,null,null,null,null,null,null,null,null,null,null,null,null,null,null,null,null,null,null,null,null,null,null,null,null,null,null,null,null,null,null,null,null,null,null,null,null,null,null,null,null,null,{"$f":"B143","v":"Project commits to collecting, recording and reporting on inputs from citizens?"}]
[null,null,null,"","","","","","","","",null,null,null,null,null,null,null,null,null,null,null,null,null,null,null,null,null,null,null,null,null,null,null,null,null,null,null,null,null,null,null,null,null,null,null,null,null,null,null,null,null,null,null,null,null,null,null,null,null,null,null,null,null,null,null,null,null,null,null,null,null,null,null,null,null,null,null,null,null,null,null,null,null,null,null,null,null,null,null,null,null,null,null,null,null,null,null,null,null,null,null,null,{"$f":"B143","v":"Project commits to collecting, recording and reporting on inputs from citizens?"}]
[null,null,null,"","","","","","","","",null,null,null,null,null,null,null,null,null,null,null,null,null,null,null,null,null,null,null,null,null,null,null,null,null,null,null,null,null,null,null,null,null,null,null,null,null,null,null,null,null,null,null,null,null,null,null,null,null,null,null,null,null,null,null,null,null,null,null,null,null,null,null,null,null,null,null,null,null,null,null,null,null,null,null,null,null,null,null,null,null,null,null,null,null,null,null,null,null,null,null,null,{"$f":"B143","v":"Project commits to collecting, recording and reporting on inputs from citizens?"}]
["\"Citizen feedback can be collected periodically on various dimensions of public services provided, such as effectiveness, inclusiveness, quality, delivery time, transaction costs, and targeting, as well as on resource utilization or engagement processes\".","Project commits to periodic collection of citizen feedback (e.g., focus groups, public hearings, satisfaction surveys (SS), community scorecards, citizen report cards, other)? Specify which type",null,"","","","","","","","",null,null,null,null,null,null,null,null,null,null,null,null,null,null,null,null,null,null,null,null,null,null,null,null,null,null,null,null,null,null,null,null,null,null,null,null,null,null,null,null,null,null,null,null,null,null,null,null,null,null,null,null,null,null,null,null,null,null,null,null,null,null,null,null,null,null,null,null,null,null,null,null,null,null,null,null,null,null,null,null,null,null,null,null,null,null,null,null,null,null,null,null,{"$f":"B146","v":"Project commits to periodic collection of citizen feedback (e.g., focus groups, public hearings, satisfaction surveys (SS), community scorecards, citizen report cards, other)? Specify which type"}]
[null,null,null,"","","","","","","","",null,null,null,null,null,null,null,null,null,null,null,null,null,null,null,null,null,null,null,null,null,null,null,null,null,null,null,null,null,null,null,null,null,null,null,null,null,null,null,null,null,null,null,null,null,null,null,null,null,null,null,null,null,null,null,null,null,null,null,null,null,null,null,null,null,null,null,null,null,null,null,null,null,null,null,null,null,null,null,null,null,null,null,null,null,null,null,null,null,null,null,null,{"$f":"B146","v":"Project commits to periodic collection of citizen feedback (e.g., focus groups, public hearings, satisfaction surveys (SS), community scorecards, citizen report cards, other)? Specify which type"}]
[null,null,null,"","","","","","","","",null,null,null,null,null,null,null,null,null,null,null,null,null,null,null,null,null,null,null,null,null,null,null,null,null,null,null,null,null,null,null,null,null,null,null,null,null,null,null,null,null,null,null,null,null,null,null,null,null,null,null,null,null,null,null,null,null,null,null,null,null,null,null,null,null,null,null,null,null,null,null,null,null,null,null,null,null,null,null,null,null,null,null,null,null,null,null,null,null,null,null,null,{"$f":"B146","v":"Project commits to periodic collection of citizen feedback (e.g., focus groups, public hearings, satisfaction surveys (SS), community scorecards, citizen report cards, other)? Specify which type"}]
[null,"Project commits to an ongoing citizen feedback mechanism (e.g., hotline, SMS, or online feedback)? Specify which type",null,"","","","","","","","",null,null,null,null,null,null,null,null,null,null,null,null,null,null,null,null,null,null,null,null,null,null,null,null,null,null,null,null,null,null,null,null,null,null,null,null,null,null,null,null,null,null,null,null,null,null,null,null,null,null,null,null,null,null,null,null,null,null,null,null,null,null,null,null,null,null,null,null,null,null,null,null,null,null,null,null,null,null,null,null,null,null,null,null,null,null,null,null,null,null,null,null,{"$f":"B149","v":"Project commits to an ongoing citizen feedback mechanism (e.g., hotline, SMS, or online feedback)? Specify which type"}]
[null,null,null,"","","","","","","","",null,null,null,null,null,null,null,null,null,null,null,null,null,null,null,null,null,null,null,null,null,null,null,null,null,null,null,null,null,null,null,null,null,null,null,null,null,null,null,null,null,null,null,null,null,null,null,null,null,null,null,null,null,null,null,null,null,null,null,null,null,null,null,null,null,null,null,null,null,null,null,null,null,null,null,null,null,null,null,null,null,null,null,null,null,null,null,null,null,null,null,null,{"$f":"B149","v":"Project commits to an ongoing citizen feedback mechanism (e.g., hotline, SMS, or online feedback)? Specify which type"}]
[null,null,null,"","","","","","","","",null,null,null,null,null,null,null,null,null,null,null,null,null,null,null,null,null,null,null,null,null,null,null,null,null,null,null,null,null,null,null,null,null,null,null,null,null,null,null,null,null,null,null,null,null,null,null,null,null,null,null,null,null,null,null,null,null,null,null,null,null,null,null,null,null,null,null,null,null,null,null,null,null,null,null,null,null,null,null,null,null,null,null,null,null,null,null,null,null,null,null,null,{"$f":"B149","v":"Project commits to an ongoing citizen feedback mechanism (e.g., hotline, SMS, or online feedback)? Specify which type"}]
[null,"Project commits to collecting citizen feedback during project implementation? How?",null,"","","","","","","","",null,null,null,null,null,null,null,null,null,null,null,null,null,null,null,null,null,null,null,null,null,null,null,null,null,null,null,null,null,null,null,null,null,null,null,null,null,null,null,null,null,null,null,null,null,null,null,null,null,null,null,null,null,null,null,null,null,null,null,null,null,null,null,null,null,null,null,null,null,null,null,null,null,null,null,null,null,null,null,null,null,null,null,null,null,null,null,null,null,null,null,null,{"$f":"B152","v":"Project commits to collecting citizen feedback during project implementation? How?"}]
[null,null,null,"","","","","","","","",null,null,null,null,null,null,null,null,null,null,null,null,null,null,null,null,null,null,null,null,null,null,null,null,null,null,null,null,null,null,null,null,null,null,null,null,null,null,null,null,null,null,null,null,null,null,null,null,null,null,null,null,null,null,null,null,null,null,null,null,null,null,null,null,null,null,null,null,null,null,null,null,null,null,null,null,null,null,null,null,null,null,null,null,null,null,null,null,null,null,null,null,{"$f":"B152","v":"Project commits to collecting citizen feedback during project implementation? How?"}]
[null,null,null,"","","","","","","","",null,null,null,null,null,null,null,null,null,null,null,null,null,null,null,null,null,null,null,null,null,null,null,null,null,null,null,null,null,null,null,null,null,null,null,null,null,null,null,null,null,null,null,null,null,null,null,null,null,null,null,null,null,null,null,null,null,null,null,null,null,null,null,null,null,null,null,null,null,null,null,null,null,null,null,null,null,null,null,null,null,null,null,null,null,null,null,null,null,null,null,null,{"$f":"B152","v":"Project commits to collecting citizen feedback during project implementation? How?"}]
[null,"Project commits to collecting citizen feedback  following project implementation? How?",null,"","","","","","","","",null,null,null,null,null,null,null,null,null,null,null,null,null,null,null,null,null,null,null,null,null,null,null,null,null,null,null,null,null,null,null,null,null,null,null,null,null,null,null,null,null,null,null,null,null,null,null,null,null,null,null,null,null,null,null,null,null,null,null,null,null,null,null,null,null,null,null,null,null,null,null,null,null,null,null,null,null,null,null,null,null,null,null,null,null,null,null,null,null,null,null,null,{"$f":"B155","v":"Project commits to collecting citizen feedback  following project implementation? How?"}]
[null,null,null,"","","","","","","","",null,null,null,null,null,null,null,null,null,null,null,null,null,null,null,null,null,null,null,null,null,null,null,null,null,null,null,null,null,null,null,null,null,null,null,null,null,null,null,null,null,null,null,null,null,null,null,null,null,null,null,null,null,null,null,null,null,null,null,null,null,null,null,null,null,null,null,null,null,null,null,null,null,null,null,null,null,null,null,null,null,null,null,null,null,null,null,null,null,null,null,null,{"$f":"B155","v":"Project commits to collecting citizen feedback  following project implementation? How?"}]
[null,null,null,"","","","","","","","",null,null,null,null,null,null,null,null,null,null,null,null,null,null,null,null,null,null,null,null,null,null,null,null,null,null,null,null,null,null,null,null,null,null,null,null,null,null,null,null,null,null,null,null,null,null,null,null,null,null,null,null,null,null,null,null,null,null,null,null,null,null,null,null,null,null,null,null,null,null,null,null,null,null,null,null,null,null,null,null,null,null,null,null,null,null,null,null,null,null,null,null,{"$f":"B155","v":"Project commits to collecting citizen feedback  following project implementation? How?"}]
[null,"How often does the project commit to soliciting and collecting feedback?",null,"","","","","","","","",null,null,null,null,null,null,null,null,null,null,null,null,null,null,null,null,null,null,null,null,null,null,null,null,null,null,null,null,null,null,null,null,null,null,null,null,null,null,null,null,null,null,null,null,null,null,null,null,null,null,null,null,null,null,null,null,null,null,null,null,null,null,null,null,null,null,null,null,null,null,null,null,null,null,null,null,null,null,null,null,null,null,null,null,null,null,null,null,null,null,null,null,{"$f":"B158","v":"How often does the project commit to soliciting and collecting feedback?"}]
[null,null,null,"","","","","","","","",null,null,null,null,null,null,null,null,null,null,null,null,null,null,null,null,null,null,null,null,null,null,null,null,null,null,null,null,null,null,null,null,null,null,null,null,null,null,null,null,null,null,null,null,null,null,null,null,null,null,null,null,null,null,null,null,null,null,null,null,null,null,null,null,null,null,null,null,null,null,null,null,null,null,null,null,null,null,null,null,null,null,null,null,null,null,null,null,null,null,null,null,{"$f":"B158","v":"How often does the project commit to soliciting and collecting feedback?"}]
[null,null,null,"","","","","","","","",null,null,null,null,null,null,null,null,null,null,null,null,null,null,null,null,null,null,null,null,null,null,null,null,null,null,null,null,null,null,null,null,null,null,null,null,null,null,null,null,null,null,null,null,null,null,null,null,null,null,null,null,null,null,null,null,null,null,null,null,null,null,null,null,null,null,null,null,null,null,null,null,null,null,null,null,null,null,null,null,null,null,null,null,null,null,null,null,null,null,null,null,{"$f":"B158","v":"How often does the project commit to soliciting and collecting feedback?"}]
["Specific groups (i.e. not simply \"partners\" or \"stakeholders\" )for example,  identified as primary/ultimate beneficiaries and/or affected non-beneficiaries were targeted…","Project identifies specific target groups for the citizen feedback?",null,"","","","","","","","",null,null,null,null,null,null,null,null,null,null,null,null,null,null,null,null,null,null,null,null,null,null,null,null,null,null,null,null,null,null,null,null,null,null,null,null,null,null,null,null,null,null,null,null,null,null,null,null,null,null,null,null,null,null,null,null,null,null,null,null,null,null,null,null,null,null,null,null,null,null,null,null,null,null,null,null,null,null,null,null,null,null,null,null,null,null,null,null,null,null,null,null,{"$f":"B161","v":"Project identifies specific target groups for the citizen feedback?"}]
[null,null,null,"","","","","","","","",null,null,null,null,null,null,null,null,null,null,null,null,null,null,null,null,null,null,null,null,null,null,null,null,null,null,null,null,null,null,null,null,null,null,null,null,null,null,null,null,null,null,null,null,null,null,null,null,null,null,null,null,null,null,null,null,null,null,null,null,null,null,null,null,null,null,null,null,null,null,null,null,null,null,null,null,null,null,null,null,null,null,null,null,null,null,null,null,null,null,null,null,{"$f":"B161","v":"Project identifies specific target groups for the citizen feedback?"}]
[null,null,null,"","","","","","","","",null,null,null,null,null,null,null,null,null,null,null,null,null,null,null,null,null,null,null,null,null,null,null,null,null,null,null,null,null,null,null,null,null,null,null,null,null,null,null,null,null,null,null,null,null,null,null,null,null,null,null,null,null,null,null,null,null,null,null,null,null,null,null,null,null,null,null,null,null,null,null,null,null,null,null,null,null,null,null,null,null,null,null,null,null,null,null,null,null,null,null,null,{"$f":"B161","v":"Project identifies specific target groups for the citizen feedback?"}]
[null,"Were proactive social (gender, ethnic, disability, youth, migrant and/or other) inclusion measures described? Please specify what and for which populations",null,"","","","","","","","",null,null,null,null,null,null,null,null,null,null,null,null,null,null,null,null,null,null,null,null,null,null,null,null,null,null,null,null,null,null,null,null,null,null,null,null,null,null,null,null,null,null,null,null,null,null,null,null,null,null,null,null,null,null,null,null,null,null,null,null,null,null,null,null,null,null,null,null,null,null,null,null,null,null,null,null,null,null,null,null,null,null,null,null,null,null,null,null,null,null,null,null,{"$f":"B164","v":"Were proactive social (gender, ethnic, disability, youth, migrant and/or other) inclusion measures described? Please specify what and for which populations"}]
[null,null,null,"","","","","","","","",null,null,null,null,null,null,null,null,null,null,null,null,null,null,null,null,null,null,null,null,null,null,null,null,null,null,null,null,null,null,null,null,null,null,null,null,null,null,null,null,null,null,null,null,null,null,null,null,null,null,null,null,null,null,null,null,null,null,null,null,null,null,null,null,null,null,null,null,null,null,null,null,null,null,null,null,null,null,null,null,null,null,null,null,null,null,null,null,null,null,null,null,{"$f":"B164","v":"Were proactive social (gender, ethnic, disability, youth, migrant and/or other) inclusion measures described? Please specify what and for which populations"}]
[null,null,null,"","","","","","","","",null,null,null,null,null,null,null,null,null,null,null,null,null,null,null,null,null,null,null,null,null,null,null,null,null,null,null,null,null,null,null,null,null,null,null,null,null,null,null,null,null,null,null,null,null,null,null,null,null,null,null,null,null,null,null,null,null,null,null,null,null,null,null,null,null,null,null,null,null,null,null,null,null,null,null,null,null,null,null,null,null,null,null,null,null,null,null,null,null,null,null,null,{"$f":"B164","v":"Were proactive social (gender, ethnic, disability, youth, migrant and/or other) inclusion measures described? Please specify what and for which populations"}]
[null,"Project identifies specific government agencies/offices that will oversee citizen feedback mechanisms?",null,"","","","","","","","",null,null,null,null,null,null,null,null,null,null,null,null,null,null,null,null,null,null,null,null,null,null,null,null,null,null,null,null,null,null,null,null,null,null,null,null,null,null,null,null,null,null,null,null,null,null,null,null,null,null,null,null,null,null,null,null,null,null,null,null,null,null,null,null,null,null,null,null,null,null,null,null,null,null,null,null,null,null,null,null,null,null,null,null,null,null,null,null,null,null,null,null,{"$f":"B167","v":"Project identifies specific government agencies/offices that will oversee citizen feedback mechanisms?"}]
[null,null,null,"","","","","","","","",null,null,null,null,null,null,null,null,null,null,null,null,null,null,null,null,null,null,null,null,null,null,null,null,null,null,null,null,null,null,null,null,null,null,null,null,null,null,null,null,null,null,null,null,null,null,null,null,null,null,null,null,null,null,null,null,null,null,null,null,null,null,null,null,null,null,null,null,null,null,null,null,null,null,null,null,null,null,null,null,null,null,null,null,null,null,null,null,null,null,null,null,{"$f":"B167","v":"Project identifies specific government agencies/offices that will oversee citizen feedback mechanisms?"}]
[null,null,null,"","","","","","","","",null,null,null,null,null,null,null,null,null,null,null,null,null,null,null,null,null,null,null,null,null,null,null,null,null,null,null,null,null,null,null,null,null,null,null,null,null,null,null,null,null,null,null,null,null,null,null,null,null,null,null,null,null,null,null,null,null,null,null,null,null,null,null,null,null,null,null,null,null,null,null,null,null,null,null,null,null,null,null,null,null,null,null,null,null,null,null,null,null,null,null,null,{"$f":"B167","v":"Project identifies specific government agencies/offices that will oversee citizen feedback mechanisms?"}]
[null,"Project identifies third party (external to the World Bank or government) that will have a role in overseeing these activities (If yes, please explain)?",null,"","","","","","","","",null,null,null,null,null,null,null,null,null,null,null,null,null,null,null,null,null,null,null,null,null,null,null,null,null,null,null,null,null,null,null,null,null,null,null,null,null,null,null,null,null,null,null,null,null,null,null,null,null,null,null,null,null,null,null,null,null,null,null,null,null,null,null,null,null,null,null,null,null,null,null,null,null,null,null,null,null,null,null,null,null,null,null,null,null,null,null,null,null,null,null,null,{"$f":"B170","v":"Project identifies third party (external to the World Bank or government) that will have a role in overseeing these activities (If yes, please explain)?"}]
[null,null,null,"","","","","","","","",null,null,null,null,null,null,null,null,null,null,null,null,null,null,null,null,null,null,null,null,null,null,null,null,null,null,null,null,null,null,null,null,null,null,null,null,null,null,null,null,null,null,null,null,null,null,null,null,null,null,null,null,null,null,null,null,null,null,null,null,null,null,null,null,null,null,null,null,null,null,null,null,null,null,null,null,null,null,null,null,null,null,null,null,null,null,null,null,null,null,null,null,{"$f":"B170","v":"Project identifies third party (external to the World Bank or government) that will have a role in overseeing these activities (If yes, please explain)?"}]
[null,null,null,"","","","","","","","",null,null,null,null,null,null,null,null,null,null,null,null,null,null,null,null,null,null,null,null,null,null,null,null,null,null,null,null,null,null,null,null,null,null,null,null,null,null,null,null,null,null,null,null,null,null,null,null,null,null,null,null,null,null,null,null,null,null,null,null,null,null,null,null,null,null,null,null,null,null,null,null,null,null,null,null,null,null,null,null,null,null,null,null,null,null,null,null,null,null,null,null,{"$f":"B170","v":"Project identifies third party (external to the World Bank or government) that will have a role in overseeing these activities (If yes, please explain)?"}]
[null,"Project commits to public disclosure of citizen feedback results?",null,"","","","","","","","",null,null,null,null,null,null,null,null,null,null,null,null,null,null,null,null,null,null,null,null,null,null,null,null,null,null,null,null,null,null,null,null,null,null,null,null,null,null,null,null,null,null,null,null,null,null,null,null,null,null,null,null,null,null,null,null,null,null,null,null,null,null,null,null,null,null,null,null,null,null,null,null,null,null,null,null,null,null,null,null,null,null,null,null,null,null,null,null,null,null,null,null,{"$f":"B173","v":"Project commits to public disclosure of citizen feedback results?"}]
[null,null,null,"","","","","","","","",null,null,null,null,null,null,null,null,null,null,null,null,null,null,null,null,null,null,null,null,null,null,null,null,null,null,null,null,null,null,null,null,null,null,null,null,null,null,null,null,null,null,null,null,null,null,null,null,null,null,null,null,null,null,null,null,null,null,null,null,null,null,null,null,null,null,null,null,null,null,null,null,null,null,null,null,null,null,null,null,null,null,null,null,null,null,null,null,null,null,null,null,{"$f":"B173","v":"Project commits to public disclosure of citizen feedback results?"}]
[null,null,null,"","","","","","","","",null,null,null,null,null,null,null,null,null,null,null,null,null,null,null,null,null,null,null,null,null,null,null,null,null,null,null,null,null,null,null,null,null,null,null,null,null,null,null,null,null,null,null,null,null,null,null,null,null,null,null,null,null,null,null,null,null,null,null,null,null,null,null,null,null,null,null,null,null,null,null,null,null,null,null,null,null,null,null,null,null,null,null,null,null,null,null,null,null,null,null,null,{"$f":"B173","v":"Project commits to public disclosure of citizen feedback results?"}]
["See  PAD Annex 1:  Results Framework and Monitoring","Will feedback solicited from citizens be tracked as part of the project's Results Framework? (If so, please specify which RF indicators.) ",null,"","","","","","","","",null,null,null,null,null,null,null,null,null,null,null,null,null,null,null,null,null,null,null,null,null,null,null,null,null,null,null,null,null,null,null,null,null,null,null,null,null,null,null,null,null,null,null,null,null,null,null,null,null,null,null,null,null,null,null,null,null,null,null,null,null,null,null,null,null,null,null,null,null,null,null,null,null,null,null,null,null,null,null,null,null,null,null,null,null,null,null,null,null,null,null,null,{"$f":"B176","v":"Will feedback solicited from citizens be tracked as part of the project's Results Framework? (If so, please specify which RF indicators.) "}]
[null,null,null,"","","","","","","","",null,null,null,null,null,null,null,null,null,null,null,null,null,null,null,null,null,null,null,null,null,null,null,null,null,null,null,null,null,null,null,null,null,null,null,null,null,null,null,null,null,null,null,null,null,null,null,null,null,null,null,null,null,null,null,null,null,null,null,null,null,null,null,null,null,null,null,null,null,null,null,null,null,null,null,null,null,null,null,null,null,null,null,null,null,null,null,null,null,null,null,null,{"$f":"B176","v":"Will feedback solicited from citizens be tracked as part of the project's Results Framework? (If so, please specify which RF indicators.) "}]
[null,null,null,"","","","","","","","",null,null,null,null,null,null,null,null,null,null,null,null,null,null,null,null,null,null,null,null,null,null,null,null,null,null,null,null,null,null,null,null,null,null,null,null,null,null,null,null,null,null,null,null,null,null,null,null,null,null,null,null,null,null,null,null,null,null,null,null,null,null,null,null,null,null,null,null,null,null,null,null,null,null,null,null,null,null,null,null,null,null,null,null,null,null,null,null,null,null,null,null,{"$f":"B176","v":"Will feedback solicited from citizens be tracked as part of the project's Results Framework? (If so, please specify which RF indicators.) "}]
["\"Grievance Redress Mechanism\""]
[null,null,"Yes/No/Unclear","Project Appraisal Document (PAD) Description/Details","Page No."," Description/Details Description/Details",""," Description/Details","Page No."," Description/Details","Page No."]
[null,"Project commits to establishing a  Grievance Redress Mechanism (GRM)?",null,"","","","","","","","",null,null,null,null,null,null,null,null,null,null,null,null,null,null,null,null,null,null,null,null,null,null,null,null,null,null,null,null,null,null,null,null,null,null,null,null,null,null,null,null,null,null,null,null,null,null,null,null,null,null,null,null,null,null,null,null,null,null,null,null,null,null,null,null,null,null,null,null,null,null,null,null,null,null,null,null,null,null,null,null,null,null,null,null,null,null,null,null,null,null,null,null,{"$f":"B181","v":"Project commits to establishing a  Grievance Redress Mechanism (GRM)?"}]
[null,null,null,"","","","","","","","",null,null,null,null,null,null,null,null,null,null,null,null,null,null,null,null,null,null,null,null,null,null,null,null,null,null,null,null,null,null,null,null,null,null,null,null,null,null,null,null,null,null,null,null,null,null,null,null,null,null,null,null,null,null,null,null,null,null,null,null,null,null,null,null,null,null,null,null,null,null,null,null,null,null,null,null,null,null,null,null,null,null,null,null,null,null,null,null,null,null,null,null,{"$f":"B181","v":"Project commits to establishing a  Grievance Redress Mechanism (GRM)?"}]
[null,null,null,"","","","","","","","",null,null,null,null,null,null,null,null,null,null,null,null,null,null,null,null,null,null,null,null,null,null,null,null,null,null,null,null,null,null,null,null,null,null,null,null,null,null,null,null,null,null,null,null,null,null,null,null,null,null,null,null,null,null,null,null,null,null,null,null,null,null,null,null,null,null,null,null,null,null,null,null,null,null,null,null,null,null,null,null,null,null,null,null,null,null,null,null,null,null,null,null,{"$f":"B181","v":"Project commits to establishing a  Grievance Redress Mechanism (GRM)?"}]
[]
["If safeguards were triggered, additional GRM details may appear in the safeguard documents","Is a GRM required because WB safeguards were triggered?",null,"","",null,null,null,null,null,null,null,null,null,null,null,null,null,null,null,null,null,null,null,null,null,null,null,null,null,null,null,null,null,null,null,null,null,null,null,null,null,null,null,null,null,null,null,null,null,null,null,null,null,null,null,null,null,null,null,null,null,null,null,null,null,null,null,null,null,null,null,null,null,null,null,null,null,null,null,null,null,null,null,null,null,null,null,null,null,null,null,null,null,null,null,null,null,null,null,null,null,null,{"$f":"B185","v":"Is a GRM required because WB safeguards were triggered?"}]
[null,null,null,"","",null,null,null,null,null,null,null,null,null,null,null,null,null,null,null,null,null,null,null,null,null,null,null,null,null,null,null,null,null,null,null,null,null,null,null,null,null,null,null,null,null,null,null,null,null,null,null,null,null,null,null,null,null,null,null,null,null,null,null,null,null,null,null,null,null,null,null,null,null,null,null,null,null,null,null,null,null,null,null,null,null,null,null,null,null,null,null,null,null,null,null,null,null,null,null,null,null,null,{"$f":"B185","v":"Is a GRM required because WB safeguards were triggered?"}]
[null,null,null,"","",null,null,null,null,null,null,null,null,null,null,null,null,null,null,null,null,null,null,null,null,null,null,null,null,null,null,null,null,null,null,null,null,null,null,null,null,null,null,null,null,null,null,null,null,null,null,null,null,null,null,null,null,null,null,null,null,null,null,null,null,null,null,null,null,null,null,null,null,null,null,null,null,null,null,null,null,null,null,null,null,null,null,null,null,null,null,null,null,null,null,null,null,null,null,null,null,null,null,{"$f":"B185","v":"Is a GRM required because WB safeguards were triggered?"}]
[null,"Project identifies specific government agencies/offices that will oversee GRM?",null,"","",null,null,null,null,null,null,null,null,null,null,null,null,null,null,null,null,null,null,null,null,null,null,null,null,null,null,null,null,null,null,null,null,null,null,null,null,null,null,null,null,null,null,null,null,null,null,null,null,null,null,null,null,null,null,null,null,null,null,null,null,null,null,null,null,null,null,null,null,null,null,null,null,null,null,null,null,null,null,null,null,null,null,null,null,null,null,null,null,null,null,null,null,null,null,null,null,null,null,{"$f":"B188","v":"Project identifies specific government agencies/offices that will oversee GRM?"}]
[null,null,null,"",null,null,null,null,null,null,null,null,null,null,null,null,null,null,null,null,null,null,null,null,null,null,null,null,null,null,null,null,null,null,null,null,null,null,null,null,null,null,null,null,null,null,null,null,null,null,null,null,null,null,null,null,null,null,null,null,null,null,null,null,null,null,null,null,null,null,null,null,null,null,null,null,null,null,null,null,null,null,null,null,null,null,null,null,null,null,null,null,null,null,null,null,null,null,null,null,null,null,null,{"$f":"B188","v":"Project identifies specific government agencies/offices that will oversee GRM?"}]
[null,null,null,"","",null,null,null,null,null,null,null,null,null,null,null,null,null,null,null,null,null,null,null,null,null,null,null,null,null,null,null,null,null,null,null,null,null,null,null,null,null,null,null,null,null,null,null,null,null,null,null,null,null,null,null,null,null,null,null,null,null,null,null,null,null,null,null,null,null,null,null,null,null,null,null,null,null,null,null,null,null,null,null,null,null,null,null,null,null,null,null,null,null,null,null,null,null,null,null,null,null,null,{"$f":"B188","v":"Project identifies specific government agencies/offices that will oversee GRM?"}]
[null,"Is this different from the project implementing organization (If yes, please explain)?",null,"","",null,null,null,null,null,null,null,null,null,null,null,null,null,null,null,null,null,null,null,null,null,null,null,null,null,null,null,null,null,null,null,null,null,null,null,null,null,null,null,null,null,null,null,null,null,null,null,null,null,null,null,null,null,null,null,null,null,null,null,null,null,null,null,null,null,null,null,null,null,null,null,null,null,null,null,null,null,null,null,null,null,null,null,null,null,null,null,null,null,null,null,null,null,null,null,null,null,null,{"$f":"B191","v":"Is this different from the project implementing organization (If yes, please explain)?"}]
[null,null,null,"","",null,null,null,null,null,null,null,null,null,null,null,null,null,null,null,null,null,null,null,null,null,null,null,null,null,null,null,null,null,null,null,null,null,null,null,null,null,null,null,null,null,null,null,null,null,null,null,null,null,null,null,null,null,null,null,null,null,null,null,null,null,null,null,null,null,null,null,null,null,null,null,null,null,null,null,null,null,null,null,null,null,null,null,null,null,null,null,null,null,null,null,null,null,null,null,null,null,null,{"$f":"B191","v":"Is this different from the project implementing organization (If yes, please explain)?"}]
[null,null,null,"","",null,null,null,null,null,null,null,null,null,null,null,null,null,null,null,null,null,null,null,null,null,null,null,null,null,null,null,null,null,null,null,null,null,null,null,null,null,null,null,null,null,null,null,null,null,null,null,null,null,null,null,null,null,null,null,null,null,null,null,null,null,null,null,null,null,null,null,null,null,null,null,null,null,null,null,null,null,null,null,null,null,null,null,null,null,null,null,null,null,null,null,null,null,null,null,null,null,null,{"$f":"B191","v":"Is this different from the project implementing organization (If yes, please explain)?"}]
[null,"Project identifies third party (external to the World Bank or government) that will have a role in overseeing these activities (If yes, please explain)?",null,"","",null,null,null,null,null,null,null,null,null,null,null,null,null,null,null,null,null,null,null,null,null,null,null,null,null,null,null,null,null,null,null,null,null,null,null,null,null,null,null,null,null,null,null,null,null,null,null,null,null,null,null,null,null,null,null,null,null,null,null,null,null,null,null,null,null,null,null,null,null,null,null,null,null,null,null,null,null,null,null,null,null,null,null,null,null,null,null,null,null,null,null,null,null,null,null,null,null,null,{"$f":"B194","v":"Project identifies third party (external to the World Bank or government) that will have a role in overseeing these activities (If yes, please explain)?"}]
[null,null,null,"","",null,null,null,null,null,null,null,null,null,null,null,null,null,null,null,null,null,null,null,null,null,null,null,null,null,null,null,null,null,null,null,null,null,null,null,null,null,null,null,null,null,null,null,null,null,null,null,null,null,null,null,null,null,null,null,null,null,null,null,null,null,null,null,null,null,null,null,null,null,null,null,null,null,null,null,null,null,null,null,null,null,null,null,null,null,null,null,null,null,null,null,null,null,null,null,null,null,null,{"$f":"B194","v":"Project identifies third party (external to the World Bank or government) that will have a role in overseeing these activities (If yes, please explain)?"}]
[null,null,null,"","",null,null,null,null,null,null,null,null,null,null,null,null,null,null,null,null,null,null,null,null,null,null,null,null,null,null,null,null,null,null,null,null,null,null,null,null,null,null,null,null,null,null,null,null,null,null,null,null,null,null,null,null,null,null,null,null,null,null,null,null,null,null,null,null,null,null,null,null,null,null,null,null,null,null,null,null,null,null,null,null,null,null,null,null,null,null,null,null,null,null,null,null,null,null,null,null,null,null,{"$f":"B194","v":"Project identifies third party (external to the World Bank or government) that will have a role in overseeing these activities (If yes, please explain)?"}]
[null,"Does the project commit to multiple channels for submitting grievances (e.g., verbal and written options)? Please specify",null,"","",null,null,null,null,null,null,null,null,null,null,null,null,null,null,null,null,null,null,null,null,null,null,null,null,null,null,null,null,null,null,null,null,null,null,null,null,null,null,null,null,null,null,null,null,null,null,null,null,null,null,null,null,null,null,null,null,null,null,null,null,null,null,null,null,null,null,null,null,null,null,null,null,null,null,null,null,null,null,null,null,null,null,null,null,null,null,null,null,null,null,null,null,null,null,null,null,null,null,{"$f":"B197","v":"Does the project commit to multiple channels for submitting grievances (e.g., verbal and written options)? Please specify"}]
[null,null,null,"","",null,null,null,null,null,null,null,null,null,null,null,null,null,null,null,null,null,null,null,null,null,null,null,null,null,null,null,null,null,null,null,null,null,null,null,null,null,null,null,null,null,null,null,null,null,null,null,null,null,null,null,null,null,null,null,null,null,null,null,null,null,null,null,null,null,null,null,null,null,null,null,null,null,null,null,null,null,null,null,null,null,null,null,null,null,null,null,null,null,null,null,null,null,null,null,null,null,null,{"$f":"B197","v":"Does the project commit to multiple channels for submitting grievances (e.g., verbal and written options)? Please specify"}]
[null,null,null,"","",null,null,null,null,null,null,null,null,null,null,null,null,null,null,null,null,null,null,null,null,null,null,null,null,null,null,null,null,null,null,null,null,null,null,null,null,null,null,null,null,null,null,null,null,null,null,null,null,null,null,null,null,null,null,null,null,null,null,null,null,null,null,null,null,null,null,null,null,null,null,null,null,null,null,null,null,null,null,null,null,null,null,null,null,null,null,null,null,null,null,null,null,null,null,null,null,null,null,{"$f":"B197","v":"Does the project commit to multiple channels for submitting grievances (e.g., verbal and written options)? Please specify"}]
[null,"Does the project commit to allowing grievances to be filed anonymously?",null,"","",null,null,null,null,null,null,null,null,null,null,null,null,null,null,null,null,null,null,null,null,null,null,null,null,null,null,null,null,null,null,null,null,null,null,null,null,null,null,null,null,null,null,null,null,null,null,null,null,null,null,null,null,null,null,null,null,null,null,null,null,null,null,null,null,null,null,null,null,null,null,null,null,null,null,null,null,null,null,null,null,null,null,null,null,null,null,null,null,null,null,null,null,null,null,null,null,null,null,{"$f":"B200","v":"Does the project commit to allowing grievances to be filed anonymously?"}]
[null,null,null,"","",null,null,null,null,null,null,null,null,null,null,null,null,null,null,null,null,null,null,null,null,null,null,null,null,null,null,null,null,null,null,null,null,null,null,null,null,null,null,null,null,null,null,null,null,null,null,null,null,null,null,null,null,null,null,null,null,null,null,null,null,null,null,null,null,null,null,null,null,null,null,null,null,null,null,null,null,null,null,null,null,null,null,null,null,null,null,null,null,null,null,null,null,null,null,null,null,null,null,{"$f":"B200","v":"Does the project commit to allowing grievances to be filed anonymously?"}]
[null,null,null,"","",null,null,null,null,null,null,null,null,null,null,null,null,null,null,null,null,null,null,null,null,null,null,null,null,null,null,null,null,null,null,null,null,null,null,null,null,null,null,null,null,null,null,null,null,null,null,null,null,null,null,null,null,null,null,null,null,null,null,null,null,null,null,null,null,null,null,null,null,null,null,null,null,null,null,null,null,null,null,null,null,null,null,null,null,null,null,null,null,null,null,null,null,null,null,null,null,null,null,{"$f":"B200","v":"Does the project commit to allowing grievances to be filed anonymously?"}]
[null,"Were proactive social (gender, ethnic, disability, youth, migrant and/or other) inclusion measures described? Please specify what and for which populationss",null,"","",null,null,null,null,null,null,null,null,null,null,null,null,null,null,null,null,null,null,null,null,null,null,null,null,null,null,null,null,null,null,null,null,null,null,null,null,null,null,null,null,null,null,null,null,null,null,null,null,null,null,null,null,null,null,null,null,null,null,null,null,null,null,null,null,null,null,null,null,null,null,null,null,null,null,null,null,null,null,null,null,null,null,null,null,null,null,null,null,null,null,null,null,null,null,null,null,null,null,{"$f":"B203","v":"Were proactive social (gender, ethnic, disability, youth, migrant and/or other) inclusion measures described? Please specify what and for which populationss"}]
[null,null,null,"","",null,null,null,null,null,null,null,null,null,null,null,null,null,null,null,null,null,null,null,null,null,null,null,null,null,null,null,null,null,null,null,null,null,null,null,null,null,null,null,null,null,null,null,null,null,null,null,null,null,null,null,null,null,null,null,null,null,null,null,null,null,null,null,null,null,null,null,null,null,null,null,null,null,null,null,null,null,null,null,null,null,null,null,null,null,null,null,null,null,null,null,null,null,null,null,null,null,null,{"$f":"B203","v":"Were proactive social (gender, ethnic, disability, youth, migrant and/or other) inclusion measures described? Please specify what and for which populationss"}]
[null,null,null,"","",null,null,null,null,null,null,null,null,null,null,null,null,null,null,null,null,null,null,null,null,null,null,null,null,null,null,null,null,null,null,null,null,null,null,null,null,null,null,null,null,null,null,null,null,null,null,null,null,null,null,null,null,null,null,null,null,null,null,null,null,null,null,null,null,null,null,null,null,null,null,null,null,null,null,null,null,null,null,null,null,null,null,null,null,null,null,null,null,null,null,null,null,null,null,null,null,null,null,{"$f":"B203","v":"Were proactive social (gender, ethnic, disability, youth, migrant and/or other) inclusion measures described? Please specify what and for which populationss"}]
[null,"Does the project commit to acknowledging complaints in writing, when not filed anonymously?",null,"","",null,null,null,null,null,null,null,null,null,null,null,null,null,null,null,null,null,null,null,null,null,null,null,null,null,null,null,null,null,null,null,null,null,null,null,null,null,null,null,null,null,null,null,null,null,null,null,null,null,null,null,null,null,null,null,null,null,null,null,null,null,null,null,null,null,null,null,null,null,null,null,null,null,null,null,null,null,null,null,null,null,null,null,null,null,null,null,null,null,null,null,null,null,null,null,null,null,null,{"$f":"B206","v":"Does the project commit to acknowledging complaints in writing, when not filed anonymously?"}]
[null,null,null,"","",null,null,null,null,null,null,null,null,null,null,null,null,null,null,null,null,null,null,null,null,null,null,null,null,null,null,null,null,null,null,null,null,null,null,null,null,null,null,null,null,null,null,null,null,null,null,null,null,null,null,null,null,null,null,null,null,null,null,null,null,null,null,null,null,null,null,null,null,null,null,null,null,null,null,null,null,null,null,null,null,null,null,null,null,null,null,null,null,null,null,null,null,null,null,null,null,null,null,{"$f":"B206","v":"Does the project commit to acknowledging complaints in writing, when not filed anonymously?"}]
[null,null,null,"","",null,null,null,null,null,null,null,null,null,null,null,null,null,null,null,null,null,null,null,null,null,null,null,null,null,null,null,null,null,null,null,null,null,null,null,null,null,null,null,null,null,null,null,null,null,null,null,null,null,null,null,null,null,null,null,null,null,null,null,null,null,null,null,null,null,null,null,null,null,null,null,null,null,null,null,null,null,null,null,null,null,null,null,null,null,null,null,null,null,null,null,null,null,null,null,null,null,null,{"$f":"B206","v":"Does the project commit to acknowledging complaints in writing, when not filed anonymously?"}]
[null,"Does the project specify a mechanism for tracking submitted grievances (i.e., categorizing, assigning priority, and routing to the appropriate entity) to ensure timely response?",null,"","",null,null,null,null,null,null,null,null,null,null,null,null,null,null,null,null,null,null,null,null,null,null,null,null,null,null,null,null,null,null,null,null,null,null,null,null,null,null,null,null,null,null,null,null,null,null,null,null,null,null,null,null,null,null,null,null,null,null,null,null,null,null,null,null,null,null,null,null,null,null,null,null,null,null,null,null,null,null,null,null,null,null,null,null,null,null,null,null,null,null,null,null,null,null,null,null,null,null,{"$f":"B209","v":"Does the project specify a mechanism for tracking submitted grievances (i.e., categorizing, assigning priority, and routing to the appropriate entity) to ensure timely response?"}]
[null,null,null,"","",null,null,null,null,null,null,null,null,null,null,null,null,null,null,null,null,null,null,null,null,null,null,null,null,null,null,null,null,null,null,null,null,null,null,null,null,null,null,null,null,null,null,null,null,null,null,null,null,null,null,null,null,null,null,null,null,null,null,null,null,null,null,null,null,null,null,null,null,null,null,null,null,null,null,null,null,null,null,null,null,null,null,null,null,null,null,null,null,null,null,null,null,null,null,null,null,null,null,{"$f":"B209","v":"Does the project specify a mechanism for tracking submitted grievances (i.e., categorizing, assigning priority, and routing to the appropriate entity) to ensure timely response?"}]
[null,null,null,"","",null,null,null,null,null,null,null,null,null,null,null,null,null,null,null,null,null,null,null,null,null,null,null,null,null,null,null,null,null,null,null,null,null,null,null,null,null,null,null,null,null,null,null,null,null,null,null,null,null,null,null,null,null,null,null,null,null,null,null,null,null,null,null,null,null,null,null,null,null,null,null,null,null,null,null,null,null,null,null,null,null,null,null,null,null,null,null,null,null,null,null,null,null,null,null,null,null,null,{"$f":"B209","v":"Does the project specify a mechanism for tracking submitted grievances (i.e., categorizing, assigning priority, and routing to the appropriate entity) to ensure timely response?"}]
[null,"Does the project commit to taking action on every grievance?",null,"","",null,null,null,null,null,null,null,null,null,null,null,null,null,null,null,null,null,null,null,null,null,null,null,null,null,null,null,null,null,null,null,null,null,null,null,null,null,null,null,null,null,null,null,null,null,null,null,null,null,null,null,null,null,null,null,null,null,null,null,null,null,null,null,null,null,null,null,null,null,null,null,null,null,null,null,null,null,null,null,null,null,null,null,null,null,null,null,null,null,null,null,null,null,null,null,null,null,null,{"$f":"B212","v":"Does the project commit to taking action on every grievance?"}]
[null,null,null,"","",null,null,null,null,null,null,null,null,null,null,null,null,null,null,null,null,null,null,null,null,null,null,null,null,null,null,null,null,null,null,null,null,null,null,null,null,null,null,null,null,null,null,null,null,null,null,null,null,null,null,null,null,null,null,null,null,null,null,null,null,null,null,null,null,null,null,null,null,null,null,null,null,null,null,null,null,null,null,null,null,null,null,null,null,null,null,null,null,null,null,null,null,null,null,null,null,null,null,{"$f":"B212","v":"Does the project commit to taking action on every grievance?"}]
[null,null,null,"","",null,null,null,null,null,null,null,null,null,null,null,null,null,null,null,null,null,null,null,null,null,null,null,null,null,null,null,null,null,null,null,null,null,null,null,null,null,null,null,null,null,null,null,null,null,null,null,null,null,null,null,null,null,null,null,null,null,null,null,null,null,null,null,null,null,null,null,null,null,null,null,null,null,null,null,null,null,null,null,null,null,null,null,null,null,null,null,null,null,null,null,null,null,null,null,null,null,null,{"$f":"B212","v":"Does the project commit to taking action on every grievance?"}]
[null,"Does the project grant citizens the right to appeal a GRM decision?",null,"","",null,null,null,null,null,null,null,null,null,null,null,null,null,null,null,null,null,null,null,null,null,null,null,null,null,null,null,null,null,null,null,null,null,null,null,null,null,null,null,null,null,null,null,null,null,null,null,null,null,null,null,null,null,null,null,null,null,null,null,null,null,null,null,null,null,null,null,null,null,null,null,null,null,null,null,null,null,null,null,null,null,null,null,null,null,null,null,null,null,null,null,null,null,null,null,null,null,null,{"$f":"B215","v":"Does the project grant citizens the right to appeal a GRM decision?"}]
[null,null,null,"","",null,null,null,null,null,null,null,null,null,null,null,null,null,null,null,null,null,null,null,null,null,null,null,null,null,null,null,null,null,null,null,null,null,null,null,null,null,null,null,null,null,null,null,null,null,null,null,null,null,null,null,null,null,null,null,null,null,null,null,null,null,null,null,null,null,null,null,null,null,null,null,null,null,null,null,null,null,null,null,null,null,null,null,null,null,null,null,null,null,null,null,null,null,null,null,null,null,null,{"$f":"B215","v":"Does the project grant citizens the right to appeal a GRM decision?"}]
[null,null,null,"","",null,null,null,null,null,null,null,null,null,null,null,null,null,null,null,null,null,null,null,null,null,null,null,null,null,null,null,null,null,null,null,null,null,null,null,null,null,null,null,null,null,null,null,null,null,null,null,null,null,null,null,null,null,null,null,null,null,null,null,null,null,null,null,null,null,null,null,null,null,null,null,null,null,null,null,null,null,null,null,null,null,null,null,null,null,null,null,null,null,null,null,null,null,null,null,null,null,null,{"$f":"B215","v":"Does the project grant citizens the right to appeal a GRM decision?"}]
[null,"Does the project specify any awareness-raising activities to alert the public about existence of the GRM? ",null,"","",null,null,null,null,null,null,null,null,null,null,null,null,null,null,null,null,null,null,null,null,null,null,null,null,null,null,null,null,null,null,null,null,null,null,null,null,null,null,null,null,null,null,null,null,null,null,null,null,null,null,null,null,null,null,null,null,null,null,null,null,null,null,null,null,null,null,null,null,null,null,null,null,null,null,null,null,null,null,null,null,null,null,null,null,null,null,null,null,null,null,null,null,null,null,null,null,null,null,{"$f":"B218","v":"Does the project specify any awareness-raising activities to alert the public about existence of the GRM? "}]
[null,null,null,"","",null,null,null,null,null,null,null,null,null,null,null,null,null,null,null,null,null,null,null,null,null,null,null,null,null,null,null,null,null,null,null,null,null,null,null,null,null,null,null,null,null,null,null,null,null,null,null,null,null,null,null,null,null,null,null,null,null,null,null,null,null,null,null,null,null,null,null,null,null,null,null,null,null,null,null,null,null,null,null,null,null,null,null,null,null,null,null,null,null,null,null,null,null,null,null,null,null,null,{"$f":"B218","v":"Does the project specify any awareness-raising activities to alert the public about existence of the GRM? "}]
[null,null,null,"","",null,null,null,null,null,null,null,null,null,null,null,null,null,null,null,null,null,null,null,null,null,null,null,null,null,null,null,null,null,null,null,null,null,null,null,null,null,null,null,null,null,null,null,null,null,null,null,null,null,null,null,null,null,null,null,null,null,null,null,null,null,null,null,null,null,null,null,null,null,null,null,null,null,null,null,null,null,null,null,null,null,null,null,null,null,null,null,null,null,null,null,null,null,null,null,null,null,null,{"$f":"B218","v":"Does the project specify any awareness-raising activities to alert the public about existence of the GRM? "}]
[null,"Does the project commit to monitoring the effectiveness of the GRM?",null,"","",null,null,null,null,null,null,null,null,null,null,null,null,null,null,null,null,null,null,null,null,null,null,null,null,null,null,null,null,null,null,null,null,null,null,null,null,null,null,null,null,null,null,null,null,null,null,null,null,null,null,null,null,null,null,null,null,null,null,null,null,null,null,null,null,null,null,null,null,null,null,null,null,null,null,null,null,null,null,null,null,null,null,null,null,null,null,null,null,null,null,null,null,null,null,null,null,null,null,{"$f":"B221","v":"Does the project commit to monitoring the effectiveness of the GRM?"}]
[null,null,null,"","",null,null,null,null,null,null,null,null,null,null,null,null,null,null,null,null,null,null,null,null,null,null,null,null,null,null,null,null,null,null,null,null,null,null,null,null,null,null,null,null,null,null,null,null,null,null,null,null,null,null,null,null,null,null,null,null,null,null,null,null,null,null,null,null,null,null,null,null,null,null,null,null,null,null,null,null,null,null,null,null,null,null,null,null,null,null,null,null,null,null,null,null,null,null,null,null,null,null,{"$f":"B221","v":"Does the project commit to monitoring the effectiveness of the GRM?"}]
[null,null,null,"","",null,null,null,null,null,null,null,null,null,null,null,null,null,null,null,null,null,null,null,null,null,null,null,null,null,null,null,null,null,null,null,null,null,null,null,null,null,null,null,null,null,null,null,null,null,null,null,null,null,null,null,null,null,null,null,null,null,null,null,null,null,null,null,null,null,null,null,null,null,null,null,null,null,null,null,null,null,null,null,null,null,null,null,null,null,null,null,null,null,null,null,null,null,null,null,null,null,null,{"$f":"B221","v":"Does the project commit to monitoring the effectiveness of the GRM?"}]
[null,"Does the project commit to an approximate timetable for processing grievances?",null,"","",null,null,null,null,null,null,null,null,null,null,null,null,null,null,null,null,null,null,null,null,null,null,null,null,null,null,null,null,null,null,null,null,null,null,null,null,null,null,null,null,null,null,null,null,null,null,null,null,null,null,null,null,null,null,null,null,null,null,null,null,null,null,null,null,null,null,null,null,null,null,null,null,null,null,null,null,null,null,null,null,null,null,null,null,null,null,null,null,null,null,null,null,null,null,null,null,null,null,{"$f":"B224","v":"Does the project commit to an approximate timetable for processing grievances?"}]
[null,null,null,"","",null,null,null,null,null,null,null,null,null,null,null,null,null,null,null,null,null,null,null,null,null,null,null,null,null,null,null,null,null,null,null,null,null,null,null,null,null,null,null,null,null,null,null,null,null,null,null,null,null,null,null,null,null,null,null,null,null,null,null,null,null,null,null,null,null,null,null,null,null,null,null,null,null,null,null,null,null,null,null,null,null,null,null,null,null,null,null,null,null,null,null,null,null,null,null,null,null,null,{"$f":"B224","v":"Does the project commit to an approximate timetable for processing grievances?"}]
[null,null,null,"","",null,null,null,null,null,null,null,null,null,null,null,null,null,null,null,null,null,null,null,null,null,null,null,null,null,null,null,null,null,null,null,null,null,null,null,null,null,null,null,null,null,null,null,null,null,null,null,null,null,null,null,null,null,null,null,null,null,null,null,null,null,null,null,null,null,null,null,null,null,null,null,null,null,null,null,null,null,null,null,null,null,null,null,null,null,null,null,null,null,null,null,null,null,null,null,null,null,null,{"$f":"B224","v":"Does the project commit to an approximate timetable for processing grievances?"}]
[null,"Does the project commit to procedures to manage possible outcomes following the submission of a grievance (including the right to appeal a decision, if this right is granted)?",null,"","",null,null,null,null,null,null,null,null,null,null,null,null,null,null,null,null,null,null,null,null,null,null,null,null,null,null,null,null,null,null,null,null,null,null,null,null,null,null,null,null,null,null,null,null,null,null,null,null,null,null,null,null,null,null,null,null,null,null,null,null,null,null,null,null,null,null,null,null,null,null,null,null,null,null,null,null,null,null,null,null,null,null,null,null,null,null,null,null,null,null,null,null,null,null,null,null,null,null,{"$f":"B227","v":"Does the project commit to procedures to manage possible outcomes following the submission of a grievance (including the right to appeal a decision, if this right is granted)?"}]
[null,null,null,"","",null,null,null,null,null,null,null,null,null,null,null,null,null,null,null,null,null,null,null,null,null,null,null,null,null,null,null,null,null,null,null,null,null,null,null,null,null,null,null,null,null,null,null,null,null,null,null,null,null,null,null,null,null,null,null,null,null,null,null,null,null,null,null,null,null,null,null,null,null,null,null,null,null,null,null,null,null,null,null,null,null,null,null,null,null,null,null,null,null,null,null,null,null,null,null,null,null,null,{"$f":"B227","v":"Does the project commit to procedures to manage possible outcomes following the submission of a grievance (including the right to appeal a decision, if this right is granted)?"}]
[null,null,null,"","",null,null,null,null,null,null,null,null,null,null,null,null,null,null,null,null,null,null,null,null,null,null,null,null,null,null,null,null,null,null,null,null,null,null,null,null,null,null,null,null,null,null,null,null,null,null,null,null,null,null,null,null,null,null,null,null,null,null,null,null,null,null,null,null,null,null,null,null,null,null,null,null,null,null,null,null,null,null,null,null,null,null,null,null,null,null,null,null,null,null,null,null,null,null,null,null,null,null,{"$f":"B227","v":"Does the project commit to procedures to manage possible outcomes following the submission of a grievance (including the right to appeal a decision, if this right is granted)?"}]
[null,"Does the project commit to informing the public about the above (i.e. the timetable, procedures following different outcomes)",null,"","",null,null,null,null,null,null,null,null,null,null,null,null,null,null,null,null,null,null,null,null,null,null,null,null,null,null,null,null,null,null,null,null,null,null,null,null,null,null,null,null,null,null,null,null,null,null,null,null,null,null,null,null,null,null,null,null,null,null,null,null,null,null,null,null,null,null,null,null,null,null,null,null,null,null,null,null,null,null,null,null,null,null,null,null,null,null,null,null,null,null,null,null,null,null,null,null,null,null,{"$f":"B230","v":"Does the project commit to informing the public about the above (i.e. the timetable, procedures following different outcomes)"}]
[null,null,null,"","",null,null,null,null,null,null,null,null,null,null,null,null,null,null,null,null,null,null,null,null,null,null,null,null,null,null,null,null,null,null,null,null,null,null,null,null,null,null,null,null,null,null,null,null,null,null,null,null,null,null,null,null,null,null,null,null,null,null,null,null,null,null,null,null,null,null,null,null,null,null,null,null,null,null,null,null,null,null,null,null,null,null,null,null,null,null,null,null,null,null,null,null,null,null,null,null,null,null,{"$f":"B230","v":"Does the project commit to informing the public about the above (i.e. the timetable, procedures following different outcomes)"}]
[null,null,null,"","",null,null,null,null,null,null,null,null,null,null,null,null,null,null,null,null,null,null,null,null,null,null,null,null,null,null,null,null,null,null,null,null,null,null,null,null,null,null,null,null,null,null,null,null,null,null,null,null,null,null,null,null,null,null,null,null,null,null,null,null,null,null,null,null,null,null,null,null,null,null,null,null,null,null,null,null,null,null,null,null,null,null,null,null,null,null,null,null,null,null,null,null,null,null,null,null,null,null,{"$f":"B230","v":"Does the project commit to informing the public about the above (i.e. the timetable, procedures following different outcomes)"}]
[null,"Project commits to tracking # or % of grievances received?",null,"","",null,null,null,null,null,null,null,null,null,null,null,null,null,null,null,null,null,null,null,null,null,null,null,null,null,null,null,null,null,null,null,null,null,null,null,null,null,null,null,null,null,null,null,null,null,null,null,null,null,null,null,null,null,null,null,null,null,null,null,null,null,null,null,null,null,null,null,null,null,null,null,null,null,null,null,null,null,null,null,null,null,null,null,null,null,null,null,null,null,null,null,null,null,null,null,null,null,null,{"$f":"B233","v":"Project commits to tracking # or % of grievances received?"}]
[null,null,null,"","",null,null,null,null,null,null,null,null,null,null,null,null,null,null,null,null,null,null,null,null,null,null,null,null,null,null,null,null,null,null,null,null,null,null,null,null,null,null,null,null,null,null,null,null,null,null,null,null,null,null,null,null,null,null,null,null,null,null,null,null,null,null,null,null,null,null,null,null,null,null,null,null,null,null,null,null,null,null,null,null,null,null,null,null,null,null,null,null,null,null,null,null,null,null,null,null,null,null,{"$f":"B233","v":"Project commits to tracking # or % of grievances received?"}]
[null,null,null,"","",null,null,null,null,null,null,null,null,null,null,null,null,null,null,null,null,null,null,null,null,null,null,null,null,null,null,null,null,null,null,null,null,null,null,null,null,null,null,null,null,null,null,null,null,null,null,null,null,null,null,null,null,null,null,null,null,null,null,null,null,null,null,null,null,null,null,null,null,null,null,null,null,null,null,null,null,null,null,null,null,null,null,null,null,null,null,null,null,null,null,null,null,null,null,null,null,null,null,{"$f":"B233","v":"Project commits to tracking # or % of grievances received?"}]
[null,"Project commits to tracking # or % of grievances addressed?",null,"","",null,null,null,null,null,null,null,null,null,null,null,null,null,null,null,null,null,null,null,null,null,null,null,null,null,null,null,null,null,null,null,null,null,null,null,null,null,null,null,null,null,null,null,null,null,null,null,null,null,null,null,null,null,null,null,null,null,null,null,null,null,null,null,null,null,null,null,null,null,null,null,null,null,null,null,null,null,null,null,null,null,null,null,null,null,null,null,null,null,null,null,null,null,null,null,null,null,null,{"$f":"B236","v":"Project commits to tracking # or % of grievances addressed?"}]
[null,null,null,"","",null,null,null,null,null,null,null,null,null,null,null,null,null,null,null,null,null,null,null,null,null,null,null,null,null,null,null,null,null,null,null,null,null,null,null,null,null,null,null,null,null,null,null,null,null,null,null,null,null,null,null,null,null,null,null,null,null,null,null,null,null,null,null,null,null,null,null,null,null,null,null,null,null,null,null,null,null,null,null,null,null,null,null,null,null,null,null,null,null,null,null,null,null,null,null,null,null,null,{"$f":"B236","v":"Project commits to tracking # or % of grievances addressed?"}]
[null,null,null,"","",null,null,null,null,null,null,null,null,null,null,null,null,null,null,null,null,null,null,null,null,null,null,null,null,null,null,null,null,null,null,null,null,null,null,null,null,null,null,null,null,null,null,null,null,null,null,null,null,null,null,null,null,null,null,null,null,null,null,null,null,null,null,null,null,null,null,null,null,null,null,null,null,null,null,null,null,null,null,null,null,null,null,null,null,null,null,null,null,null,null,null,null,null,null,null,null,null,null,{"$f":"B236","v":"Project commits to tracking # or % of grievances addressed?"}]
[null,"Project commits to public disclosure of GRM data (i.e. number of complaints received, resolved; content of complaints; resolution strategies?)",null,"","",null,null,null,null,null,null,null,null,null,null,null,null,null,null,null,null,null,null,null,null,null,null,null,null,null,null,null,null,null,null,null,null,null,null,null,null,null,null,null,null,null,null,null,null,null,null,null,null,null,null,null,null,null,null,null,null,null,null,null,null,null,null,null,null,null,null,null,null,null,null,null,null,null,null,null,null,null,null,null,null,null,null,null,null,null,null,null,null,null,null,null,null,null,null,null,null,null,null,{"$f":"B239","v":"Project commits to public disclosure of GRM data (i.e. number of complaints received, resolved; content of complaints; resolution strategies?)"}]
[null,null,null,"","",null,null,null,null,null,null,null,null,null,null,null,null,null,null,null,null,null,null,null,null,null,null,null,null,null,null,null,null,null,null,null,null,null,null,null,null,null,null,null,null,null,null,null,null,null,null,null,null,null,null,null,null,null,null,null,null,null,null,null,null,null,null,null,null,null,null,null,null,null,null,null,null,null,null,null,null,null,null,null,null,null,null,null,null,null,null,null,null,null,null,null,null,null,null,null,null,null,null,{"$f":"B239","v":"Project commits to public disclosure of GRM data (i.e. number of complaints received, resolved; content of complaints; resolution strategies?)"}]
[null,null,null,"","",null,null,null,null,null,null,null,null,null,null,null,null,null,null,null,null,null,null,null,null,null,null,null,null,null,null,null,null,null,null,null,null,null,null,null,null,null,null,null,null,null,null,null,null,null,null,null,null,null,null,null,null,null,null,null,null,null,null,null,null,null,null,null,null,null,null,null,null,null,null,null,null,null,null,null,null,null,null,null,null,null,null,null,null,null,null,null,null,null,null,null,null,null,null,null,null,null,null,{"$f":"B239","v":"Project commits to public disclosure of GRM data (i.e. number of complaints received, resolved; content of complaints; resolution strategies?)"}]
[null,"GRM web link",null,"","",null,null,null,null,null,null,null,null,null,null,null,null,null,null,null,null,null,null,null,null,null,null,null,null,null,null,null,null,null,null,null,null,null,null,null,null,null,null,null,null,null,null,null,null,null,null,null,null,null,null,null,null,null,null,null,null,null,null,null,null,null,null,null,null,null,null,null,null,null,null,null,null,null,null,null,null,null,null,null,null,null,null,null,null,null,null,null,null,null,null,null,null,null,null,null,null,null,null,{"$f":"B242","v":"GRM web link"}]
["See  PAD Annex 1:  Results Framework and Monitoring","Will GRM data be tracked as part of the project's Results Framework? (If so, please specify which RF indicators.) ",null,"","",null,null,null,null,null,null,null,null,null,null,null,null,null,null,null,null,null,null,null,null,null,null,null,null,null,null,null,null,null,null,null,null,null,null,null,null,null,null,null,null,null,null,null,null,null,null,null,null,null,null,null,null,null,null,null,null,null,null,null,null,null,null,null,null,null,null,null,null,null,null,null,null,null,null,null,null,null,null,null,null,null,null,null,null,null,null,null,null,null,null,null,null,null,null,null,null,null,null,{"$f":"B243","v":"Will GRM data be tracked as part of the project's Results Framework? (If so, please specify which RF indicators.) "}]
[null,null,null,"","",null,null,null,null,null,null,null,null,null,null,null,null,null,null,null,null,null,null,null,null,null,null,null,null,null,null,null,null,null,null,null,null,null,null,null,null,null,null,null,null,null,null,null,null,null,null,null,null,null,null,null,null,null,null,null,null,null,null,null,null,null,null,null,null,null,null,null,null,null,null,null,null,null,null,null,null,null,null,null,null,null,null,null,null,null,null,null,null,null,null,null,null,null,null,null,null,null,null,{"$f":"B243","v":"Will GRM data be tracked as part of the project's Results Framework? (If so, please specify which RF indicators.) "}]
[null,null,null,"","",null,null,null,null,null,null,null,null,null,null,null,null,null,null,null,null,null,null,null,null,null,null,null,null,null,null,null,null,null,null,null,null,null,null,null,null,null,null,null,null,null,null,null,null,null,null,null,null,null,null,null,null,null,null,null,null,null,null,null,null,null,null,null,null,null,null,null,null,null,null,null,null,null,null,null,null,null,null,null,null,null,null,null,null,null,null,null,null,null,null,null,null,null,null,null,null,null,null,{"$f":"B243","v":"Will GRM data be tracked as part of the project's Results Framework? (If so, please specify which RF indicators.) "}]
[]
["\"Citizen monitoring,  evaluation and oversight\""]
["These questions relate to  project implementation and post implementation (as specified in the question)"]
[null,null,"Yes/No/Unclear","Project Appraisal Document (PAD) Description/Details","Page No."," Description/Details Description/Details","Page No."," Description/Details","Page No."," Description/Details","Page No."]
["Citizen-led Monitoring: \"Involving citizens in monitoring service delivery, revenues, budget execution, procurement, contract awards, and reform policies can increase transparency, improve efficiency of service delivery or budget execution, and reduce opportunities for corruption. Some mechanisms for citizen-led monitoring include public expenditure tracking surveys, social audits, or citizen report cards.\"","Project commits to citizen monitoring (i.e. supporting public expenditure tracking surveys, social audits, participatory monitoring or other efforts by citizens to monitor service delivery, revenues, budget execution, contract awards, or reform policies)?",null,"","","","","","","","",null,null,null,null,null,null,null,null,null,null,null,null,null,null,null,null,null,null,null,null,null,null,null,null,null,null,null,null,null,null,null,null,null,null,null,null,null,null,null,null,null,null,null,null,null,null,null,null,null,null,null,null,null,null,null,null,null,null,null,null,null,null,null,null,null,null,null,null,null,null,null,null,null,null,null,null,null,null,null,null,null,null,null,null,null,null,null,null,null,null,null,null,{"$f":"B250","v":"Project commits to citizen monitoring (i.e. supporting public expenditure tracking surveys, social audits, participatory monitoring or other efforts by citizens to monitor service delivery, revenues, budget execution, contract awards, or reform policies)?"}]
[null,null,null,"","","","","","","","",null,null,null,null,null,null,null,null,null,null,null,null,null,null,null,null,null,null,null,null,null,null,null,null,null,null,null,null,null,null,null,null,null,null,null,null,null,null,null,null,null,null,null,null,null,null,null,null,null,null,null,null,null,null,null,null,null,null,null,null,null,null,null,null,null,null,null,null,null,null,null,null,null,null,null,null,null,null,null,null,null,null,null,null,null,null,null,null,null,null,null,null,{"$f":"B250","v":"Project commits to citizen monitoring (i.e. supporting public expenditure tracking surveys, social audits, participatory monitoring or other efforts by citizens to monitor service delivery, revenues, budget execution, contract awards, or reform policies)?"}]
[null,null,null,"","","","","","","","",null,null,null,null,null,null,null,null,null,null,null,null,null,null,null,null,null,null,null,null,null,null,null,null,null,null,null,null,null,null,null,null,null,null,null,null,null,null,null,null,null,null,null,null,null,null,null,null,null,null,null,null,null,null,null,null,null,null,null,null,null,null,null,null,null,null,null,null,null,null,null,null,null,null,null,null,null,null,null,null,null,null,null,null,null,null,null,null,null,null,null,null,{"$f":"B250","v":"Project commits to citizen monitoring (i.e. supporting public expenditure tracking surveys, social audits, participatory monitoring or other efforts by citizens to monitor service delivery, revenues, budget execution, contract awards, or reform policies)?"}]
[]
["Specific groups (i.e. not simply \"partners\" or \"stakeholders\" ) identified as primary/ultimate beneficiaries and/or affected non-beneficiaries ","Are specific organizations identified? If so, which groups?",null,"","",null,null,null,null,null,null,null,null,null,null,null,null,null,null,null,null,null,null,null,null,null,null,null,null,null,null,null,null,null,null,null,null,null,null,null,null,null,null,null,null,null,null,null,null,null,null,null,null,null,null,null,null,null,null,null,null,null,null,null,null,null,null,null,null,null,null,null,null,null,null,null,null,null,null,null,null,null,null,null,null,null,null,null,null,null,null,null,null,null,null,null,null,null,null,null,null,null,null,{"$f":"B254","v":"Are specific organizations identified? If so, which groups?"}]
[null,null,null,"","",null,null,null,null,null,null,null,null,null,null,null,null,null,null,null,null,null,null,null,null,null,null,null,null,null,null,null,null,null,null,null,null,null,null,null,null,null,null,null,null,null,null,null,null,null,null,null,null,null,null,null,null,null,null,null,null,null,null,null,null,null,null,null,null,null,null,null,null,null,null,null,null,null,null,null,null,null,null,null,null,null,null,null,null,null,null,null,null,null,null,null,null,null,null,null,null,null,null,{"$f":"B254","v":"Are specific organizations identified? If so, which groups?"}]
[null,null,null,"","",null,null,null,null,null,null,null,null,null,null,null,null,null,null,null,null,null,null,null,null,null,null,null,null,null,null,null,null,null,null,null,null,null,null,null,null,null,null,null,null,null,null,null,null,null,null,null,null,null,null,null,null,null,null,null,null,null,null,null,null,null,null,null,null,null,null,null,null,null,null,null,null,null,null,null,null,null,null,null,null,null,null,null,null,null,null,null,null,null,null,null,null,null,null,null,null,null,null,{"$f":"B254","v":"Are specific organizations identified? If so, which groups?"}]
[null,"Project identifies specific government agencies/offices that will coordinate with citizen-led monitoring efforts?",null,"","",null,null,null,null,null,null,null,null,null,null,null,null,null,null,null,null,null,null,null,null,null,null,null,null,null,null,null,null,null,null,null,null,null,null,null,null,null,null,null,null,null,null,null,null,null,null,null,null,null,null,null,null,null,null,null,null,null,null,null,null,null,null,null,null,null,null,null,null,null,null,null,null,null,null,null,null,null,null,null,null,null,null,null,null,null,null,null,null,null,null,null,null,null,null,null,null,null,null,{"$f":"B257","v":"Project identifies specific government agencies/offices that will coordinate with citizen-led monitoring efforts?"}]
[null,null,null,"","",null,null,null,null,null,null,null,null,null,null,null,null,null,null,null,null,null,null,null,null,null,null,null,null,null,null,null,null,null,null,null,null,null,null,null,null,null,null,null,null,null,null,null,null,null,null,null,null,null,null,null,null,null,null,null,null,null,null,null,null,null,null,null,null,null,null,null,null,null,null,null,null,null,null,null,null,null,null,null,null,null,null,null,null,null,null,null,null,null,null,null,null,null,null,null,null,null,null,{"$f":"B257","v":"Project identifies specific government agencies/offices that will coordinate with citizen-led monitoring efforts?"}]
[null,null,null,"","",null,null,null,null,null,null,null,null,null,null,null,null,null,null,null,null,null,null,null,null,null,null,null,null,null,null,null,null,null,null,null,null,null,null,null,null,null,null,null,null,null,null,null,null,null,null,null,null,null,null,null,null,null,null,null,null,null,null,null,null,null,null,null,null,null,null,null,null,null,null,null,null,null,null,null,null,null,null,null,null,null,null,null,null,null,null,null,null,null,null,null,null,null,null,null,null,null,null,{"$f":"B257","v":"Project identifies specific government agencies/offices that will coordinate with citizen-led monitoring efforts?"}]
[null,"Project identifies third party (external to the World Bank or government) that will have a role in overseeing these activities (If yes, please explain)?",null,"","",null,null,null,null,null,null,null,null,null,null,null,null,null,null,null,null,null,null,null,null,null,null,null,null,null,null,null,null,null,null,null,null,null,null,null,null,null,null,null,null,null,null,null,null,null,null,null,null,null,null,null,null,null,null,null,null,null,null,null,null,null,null,null,null,null,null,null,null,null,null,null,null,null,null,null,null,null,null,null,null,null,null,null,null,null,null,null,null,null,null,null,null,null,null,null,null,null,null,{"$f":"B260","v":"Project identifies third party (external to the World Bank or government) that will have a role in overseeing these activities (If yes, please explain)?"}]
[null,null,null,"","",null,null,null,null,null,null,null,null,null,null,null,null,null,null,null,null,null,null,null,null,null,null,null,null,null,null,null,null,null,null,null,null,null,null,null,null,null,null,null,null,null,null,null,null,null,null,null,null,null,null,null,null,null,null,null,null,null,null,null,null,null,null,null,null,null,null,null,null,null,null,null,null,null,null,null,null,null,null,null,null,null,null,null,null,null,null,null,null,null,null,null,null,null,null,null,null,null,null,{"$f":"B260","v":"Project identifies third party (external to the World Bank or government) that will have a role in overseeing these activities (If yes, please explain)?"}]
[null,null,null,"","",null,null,null,null,null,null,null,null,null,null,null,null,null,null,null,null,null,null,null,null,null,null,null,null,null,null,null,null,null,null,null,null,null,null,null,null,null,null,null,null,null,null,null,null,null,null,null,null,null,null,null,null,null,null,null,null,null,null,null,null,null,null,null,null,null,null,null,null,null,null,null,null,null,null,null,null,null,null,null,null,null,null,null,null,null,null,null,null,null,null,null,null,null,null,null,null,null,null,{"$f":"B260","v":"Project identifies third party (external to the World Bank or government) that will have a role in overseeing these activities (If yes, please explain)?"}]
[null,"Were proactive social (gender, ethnic, disability, youth, migrant and/or other) inclusion measures described? Please specify what and for which populations",null,"","",null,null,null,null,null,null,null,null,null,null,null,null,null,null,null,null,null,null,null,null,null,null,null,null,null,null,null,null,null,null,null,null,null,null,null,null,null,null,null,null,null,null,null,null,null,null,null,null,null,null,null,null,null,null,null,null,null,null,null,null,null,null,null,null,null,null,null,null,null,null,null,null,null,null,null,null,null,null,null,null,null,null,null,null,null,null,null,null,null,null,null,null,null,null,null,null,null,null,{"$f":"B263","v":"Were proactive social (gender, ethnic, disability, youth, migrant and/or other) inclusion measures described? Please specify what and for which populations"}]
[null,null,null,"","",null,null,null,null,null,null,null,null,null,null,null,null,null,null,null,null,null,null,null,null,null,null,null,null,null,null,null,null,null,null,null,null,null,null,null,null,null,null,null,null,null,null,null,null,null,null,null,null,null,null,null,null,null,null,null,null,null,null,null,null,null,null,null,null,null,null,null,null,null,null,null,null,null,null,null,null,null,null,null,null,null,null,null,null,null,null,null,null,null,null,null,null,null,null,null,null,null,null,{"$f":"B263","v":"Were proactive social (gender, ethnic, disability, youth, migrant and/or other) inclusion measures described? Please specify what and for which populations"}]
[null,null,null,"","",null,null,null,null,null,null,null,null,null,null,null,null,null,null,null,null,null,null,null,null,null,null,null,null,null,null,null,null,null,null,null,null,null,null,null,null,null,null,null,null,null,null,null,null,null,null,null,null,null,null,null,null,null,null,null,null,null,null,null,null,null,null,null,null,null,null,null,null,null,null,null,null,null,null,null,null,null,null,null,null,null,null,null,null,null,null,null,null,null,null,null,null,null,null,null,null,null,null,{"$f":"B263","v":"Were proactive social (gender, ethnic, disability, youth, migrant and/or other) inclusion measures described? Please specify what and for which populations"}]
[null,"Project commits to public disclosure of citizen-led monitoring results?",null,"","",null,null,null,null,null,null,null,null,null,null,null,null,null,null,null,null,null,null,null,null,null,null,null,null,null,null,null,null,null,null,null,null,null,null,null,null,null,null,null,null,null,null,null,null,null,null,null,null,null,null,null,null,null,null,null,null,null,null,null,null,null,null,null,null,null,null,null,null,null,null,null,null,null,null,null,null,null,null,null,null,null,null,null,null,null,null,null,null,null,null,null,null,null,null,null,null,null,null,{"$f":"B266","v":"Project commits to public disclosure of citizen-led monitoring results?"}]
[null,null,null,"","",null,null,null,null,null,null,null,null,null,null,null,null,null,null,null,null,null,null,null,null,null,null,null,null,null,null,null,null,null,null,null,null,null,null,null,null,null,null,null,null,null,null,null,null,null,null,null,null,null,null,null,null,null,null,null,null,null,null,null,null,null,null,null,null,null,null,null,null,null,null,null,null,null,null,null,null,null,null,null,null,null,null,null,null,null,null,null,null,null,null,null,null,null,null,null,null,null,null,{"$f":"B266","v":"Project commits to public disclosure of citizen-led monitoring results?"}]
[null,null,null,"","",null,null,null,null,null,null,null,null,null,null,null,null,null,null,null,null,null,null,null,null,null,null,null,null,null,null,null,null,null,null,null,null,null,null,null,null,null,null,null,null,null,null,null,null,null,null,null,null,null,null,null,null,null,null,null,null,null,null,null,null,null,null,null,null,null,null,null,null,null,null,null,null,null,null,null,null,null,null,null,null,null,null,null,null,null,null,null,null,null,null,null,null,null,null,null,null,null,null,{"$f":"B266","v":"Project commits to public disclosure of citizen-led monitoring results?"}]
["See  PAD Annex 1:  Results Framework and Monitoring","Will citizen-led monitoring results be tracked as part of the project's Results Framework? (If so, please specify which RF indicators.) ",null,"","",null,null,null,null,null,null,null,null,null,null,null,null,null,null,null,null,null,null,null,null,null,null,null,null,null,null,null,null,null,null,null,null,null,null,null,null,null,null,null,null,null,null,null,null,null,null,null,null,null,null,null,null,null,null,null,null,null,null,null,null,null,null,null,null,null,null,null,null,null,null,null,null,null,null,null,null,null,null,null,null,null,null,null,null,null,null,null,null,null,null,null,null,null,null,null,null,null,null,{"$f":"B269","v":"Will citizen-led monitoring results be tracked as part of the project's Results Framework? (If so, please specify which RF indicators.) "}]
[null,null,null,"","",null,null,null,null,null,null,null,null,null,null,null,null,null,null,null,null,null,null,null,null,null,null,null,null,null,null,null,null,null,null,null,null,null,null,null,null,null,null,null,null,null,null,null,null,null,null,null,null,null,null,null,null,null,null,null,null,null,null,null,null,null,null,null,null,null,null,null,null,null,null,null,null,null,null,null,null,null,null,null,null,null,null,null,null,null,null,null,null,null,null,null,null,null,null,null,null,null,null,{"$f":"B269","v":"Will citizen-led monitoring results be tracked as part of the project's Results Framework? (If so, please specify which RF indicators.) "}]
[null,null,null,"","",null,null,null,null,null,null,null,null,null,null,null,null,null,null,null,null,null,null,null,null,null,null,null,null,null,null,null,null,null,null,null,null,null,null,null,null,null,null,null,null,null,null,null,null,null,null,null,null,null,null,null,null,null,null,null,null,null,null,null,null,null,null,null,null,null,null,null,null,null,null,null,null,null,null,null,null,null,null,null,null,null,null,null,null,null,null,null,null,null,null,null,null,null,null,null,null,null,null,{"$f":"B269","v":"Will citizen-led monitoring results be tracked as part of the project's Results Framework? (If so, please specify which RF indicators.) "}]
[null,null,null,"",""]
["\"Capacity Building for Citizen Engagement\"(CE Training)"]
[null,null,"Yes/No/Unclear","Project Appraisal Document (PAD) Description/Details","Page No."," Description/Details Description/Details","Page No."," Description/Details","Page No."," Description/Details","Page No. "]
[null,"Project commits to CE capacity building?",null,"","","","","","","","",null,null,null,null,null,null,null,null,null,null,null,null,null,null,null,null,null,null,null,null,null,null,null,null,null,null,null,null,null,null,null,null,null,null,null,null,null,null,null,null,null,null,null,null,null,null,null,null,null,null,null,null,null,null,null,null,null,null,null,null,null,null,null,null,null,null,null,null,null,null,null,null,null,null,null,null,null,null,null,null,null,null,null,null,null,null,null,null,null,null,null,null,{"$f":"B275","v":"Project commits to CE capacity building?"}]
[null,null,null,"","","","","","","","",null,null,null,null,null,null,null,null,null,null,null,null,null,null,null,null,null,null,null,null,null,null,null,null,null,null,null,null,null,null,null,null,null,null,null,null,null,null,null,null,null,null,null,null,null,null,null,null,null,null,null,null,null,null,null,null,null,null,null,null,null,null,null,null,null,null,null,null,null,null,null,null,null,null,null,null,null,null,null,null,null,null,null,null,null,null,null,null,null,null,null,null,{"$f":"B275","v":"Project commits to CE capacity building?"}]
[null,null,null,"","","","","","","","",null,null,null,null,null,null,null,null,null,null,null,null,null,null,null,null,null,null,null,null,null,null,null,null,null,null,null,null,null,null,null,null,null,null,null,null,null,null,null,null,null,null,null,null,null,null,null,null,null,null,null,null,null,null,null,null,null,null,null,null,null,null,null,null,null,null,null,null,null,null,null,null,null,null,null,null,null,null,null,null,null,null,null,null,null,null,null,null,null,null,null,null,{"$f":"B275","v":"Project commits to CE capacity building?"}]
[null,"Project commits to CE capacity building activities for government officials? ",null,"","","","","","","","",null,null,null,null,null,null,null,null,null,null,null,null,null,null,null,null,null,null,null,null,null,null,null,null,null,null,null,null,null,null,null,null,null,null,null,null,null,null,null,null,null,null,null,null,null,null,null,null,null,null,null,null,null,null,null,null,null,null,null,null,null,null,null,null,null,null,null,null,null,null,null,null,null,null,null,null,null,null,null,null,null,null,null,null,null,null,null,null,null,null,null,null,{"$f":"B278","v":"Project commits to CE capacity building activities for government officials? "}]
[null,null,null,"","","","","","","","",null,null,null,null,null,null,null,null,null,null,null,null,null,null,null,null,null,null,null,null,null,null,null,null,null,null,null,null,null,null,null,null,null,null,null,null,null,null,null,null,null,null,null,null,null,null,null,null,null,null,null,null,null,null,null,null,null,null,null,null,null,null,null,null,null,null,null,null,null,null,null,null,null,null,null,null,null,null,null,null,null,null,null,null,null,null,null,null,null,null,null,null,{"$f":"B278","v":"Project commits to CE capacity building activities for government officials? "}]
[null,null,null,"","","","","","","","",null,null,null,null,null,null,null,null,null,null,null,null,null,null,null,null,null,null,null,null,null,null,null,null,null,null,null,null,null,null,null,null,null,null,null,null,null,null,null,null,null,null,null,null,null,null,null,null,null,null,null,null,null,null,null,null,null,null,null,null,null,null,null,null,null,null,null,null,null,null,null,null,null,null,null,null,null,null,null,null,null,null,null,null,null,null,null,null,null,null,null,null,{"$f":"B278","v":"Project commits to CE capacity building activities for government officials? "}]
[null,"Project commits to CE capacity building activities for accountability institutions (e.g., auditors, comptrollers, ombudsmen/women)? ",null,"","","","","","","","",null,null,null,null,null,null,null,null,null,null,null,null,null,null,null,null,null,null,null,null,null,null,null,null,null,null,null,null,null,null,null,null,null,null,null,null,null,null,null,null,null,null,null,null,null,null,null,null,null,null,null,null,null,null,null,null,null,null,null,null,null,null,null,null,null,null,null,null,null,null,null,null,null,null,null,null,null,null,null,null,null,null,null,null,null,null,null,null,null,null,null,null,{"$f":"B281","v":"Project commits to CE capacity building activities for accountability institutions (e.g., auditors, comptrollers, ombudsmen/women)? "}]
[null,null,null,"","","","","","","","",null,null,null,null,null,null,null,null,null,null,null,null,null,null,null,null,null,null,null,null,null,null,null,null,null,null,null,null,null,null,null,null,null,null,null,null,null,null,null,null,null,null,null,null,null,null,null,null,null,null,null,null,null,null,null,null,null,null,null,null,null,null,null,null,null,null,null,null,null,null,null,null,null,null,null,null,null,null,null,null,null,null,null,null,null,null,null,null,null,null,null,null,{"$f":"B281","v":"Project commits to CE capacity building activities for accountability institutions (e.g., auditors, comptrollers, ombudsmen/women)? "}]
[null,null,null,"","","","","","","","",null,null,null,null,null,null,null,null,null,null,null,null,null,null,null,null,null,null,null,null,null,null,null,null,null,null,null,null,null,null,null,null,null,null,null,null,null,null,null,null,null,null,null,null,null,null,null,null,null,null,null,null,null,null,null,null,null,null,null,null,null,null,null,null,null,null,null,null,null,null,null,null,null,null,null,null,null,null,null,null,null,null,null,null,null,null,null,null,null,null,null,null,{"$f":"B281","v":"Project commits to CE capacity building activities for accountability institutions (e.g., auditors, comptrollers, ombudsmen/women)? "}]
[null,"Project commits to CE capacity building activities for community groups/civil society organizations? Please specify which type if named (e.g. budget literacy campaigns)",null,"","","","","","","","",null,null,null,null,null,null,null,null,null,null,null,null,null,null,null,null,null,null,null,null,null,null,null,null,null,null,null,null,null,null,null,null,null,null,null,null,null,null,null,null,null,null,null,null,null,null,null,null,null,null,null,null,null,null,null,null,null,null,null,null,null,null,null,null,null,null,null,null,null,null,null,null,null,null,null,null,null,null,null,null,null,null,null,null,null,null,null,null,null,null,null,null,{"$f":"B284","v":"Project commits to CE capacity building activities for community groups/civil society organizations? Please specify which type if named (e.g. budget literacy campaigns)"}]
[null,null,null,"","","","","","","","",null,null,null,null,null,null,null,null,null,null,null,null,null,null,null,null,null,null,null,null,null,null,null,null,null,null,null,null,null,null,null,null,null,null,null,null,null,null,null,null,null,null,null,null,null,null,null,null,null,null,null,null,null,null,null,null,null,null,null,null,null,null,null,null,null,null,null,null,null,null,null,null,null,null,null,null,null,null,null,null,null,null,null,null,null,null,null,null,null,null,null,null,{"$f":"B284","v":"Project commits to CE capacity building activities for community groups/civil society organizations? Please specify which type if named (e.g. budget literacy campaigns)"}]
[null,null,null,"","","","","","","","",null,null,null,null,null,null,null,null,null,null,null,null,null,null,null,null,null,null,null,null,null,null,null,null,null,null,null,null,null,null,null,null,null,null,null,null,null,null,null,null,null,null,null,null,null,null,null,null,null,null,null,null,null,null,null,null,null,null,null,null,null,null,null,null,null,null,null,null,null,null,null,null,null,null,null,null,null,null,null,null,null,null,null,null,null,null,null,null,null,null,null,null,{"$f":"B284","v":"Project commits to CE capacity building activities for community groups/civil society organizations? Please specify which type if named (e.g. budget literacy campaigns)"}]
[null,null,null,""]
[null,"Project identifies specific government, CSO, Bank, or other entity to run CE capacity building training?",null,"","",null,null,null,null,null,null,null,null,null,null,null,null,null,null,null,null,null,null,null,null,null,null,null,null,null,null,null,null,null,null,null,null,null,null,null,null,null,null,null,null,null,null,null,null,null,null,null,null,null,null,null,null,null,null,null,null,null,null,null,null,null,null,null,null,null,null,null,null,null,null,null,null,null,null,null,null,null,null,null,null,null,null,null,null,null,null,null,null,null,null,null,null,null,null,null,null,null,null,{"$f":"B288","v":"Project identifies specific government, CSO, Bank, or other entity to run CE capacity building training?"}]
[null,null,null,"","",null,null,null,null,null,null,null,null,null,null,null,null,null,null,null,null,null,null,null,null,null,null,null,null,null,null,null,null,null,null,null,null,null,null,null,null,null,null,null,null,null,null,null,null,null,null,null,null,null,null,null,null,null,null,null,null,null,null,null,null,null,null,null,null,null,null,null,null,null,null,null,null,null,null,null,null,null,null,null,null,null,null,null,null,null,null,null,null,null,null,null,null,null,null,null,null,null,null,{"$f":"B288","v":"Project identifies specific government, CSO, Bank, or other entity to run CE capacity building training?"}]
[null,null,null,"","",null,null,null,null,null,null,null,null,null,null,null,null,null,null,null,null,null,null,null,null,null,null,null,null,null,null,null,null,null,null,null,null,null,null,null,null,null,null,null,null,null,null,null,null,null,null,null,null,null,null,null,null,null,null,null,null,null,null,null,null,null,null,null,null,null,null,null,null,null,null,null,null,null,null,null,null,null,null,null,null,null,null,null,null,null,null,null,null,null,null,null,null,null,null,null,null,null,null,{"$f":"B288","v":"Project identifies specific government, CSO, Bank, or other entity to run CE capacity building training?"}]
[null,"Project identifies third party (external to the World Bank or government) that will have a role in overseeing these activities (If yes, please explain)?",null,"","",null,null,null,null,null,null,null,null,null,null,null,null,null,null,null,null,null,null,null,null,null,null,null,null,null,null,null,null,null,null,null,null,null,null,null,null,null,null,null,null,null,null,null,null,null,null,null,null,null,null,null,null,null,null,null,null,null,null,null,null,null,null,null,null,null,null,null,null,null,null,null,null,null,null,null,null,null,null,null,null,null,null,null,null,null,null,null,null,null,null,null,null,null,null,null,null,null,null,{"$f":"B291","v":"Project identifies third party (external to the World Bank or government) that will have a role in overseeing these activities (If yes, please explain)?"}]
[null,null,null,"","",null,null,null,null,null,null,null,null,null,null,null,null,null,null,null,null,null,null,null,null,null,null,null,null,null,null,null,null,null,null,null,null,null,null,null,null,null,null,null,null,null,null,null,null,null,null,null,null,null,null,null,null,null,null,null,null,null,null,null,null,null,null,null,null,null,null,null,null,null,null,null,null,null,null,null,null,null,null,null,null,null,null,null,null,null,null,null,null,null,null,null,null,null,null,null,null,null,null,{"$f":"B291","v":"Project identifies third party (external to the World Bank or government) that will have a role in overseeing these activities (If yes, please explain)?"}]
[null,null,null,"","",null,null,null,null,null,null,null,null,null,null,null,null,null,null,null,null,null,null,null,null,null,null,null,null,null,null,null,null,null,null,null,null,null,null,null,null,null,null,null,null,null,null,null,null,null,null,null,null,null,null,null,null,null,null,null,null,null,null,null,null,null,null,null,null,null,null,null,null,null,null,null,null,null,null,null,null,null,null,null,null,null,null,null,null,null,null,null,null,null,null,null,null,null,null,null,null,null,null,{"$f":"B291","v":"Project identifies third party (external to the World Bank or government) that will have a role in overseeing these activities (If yes, please explain)?"}]
[null,"Were proactive gender, ethnic, disability, youth, migrant and/or other inclusion  measures described? Please specify what and for which populations",null,"","",null,null,null,null,null,null,null,null,null,null,null,null,null,null,null,null,null,null,null,null,null,null,null,null,null,null,null,null,null,null,null,null,null,null,null,null,null,null,null,null,null,null,null,null,null,null,null,null,null,null,null,null,null,null,null,null,null,null,null,null,null,null,null,null,null,null,null,null,null,null,null,null,null,null,null,null,null,null,null,null,null,null,null,null,null,null,null,null,null,null,null,null,null,null,null,null,null,null,{"$f":"B294","v":"Were proactive gender, ethnic, disability, youth, migrant and/or other inclusion  measures described? Please specify what and for which populations"}]
[null,null,null,"","",null,null,null,null,null,null,null,null,null,null,null,null,null,null,null,null,null,null,null,null,null,null,null,null,null,null,null,null,null,null,null,null,null,null,null,null,null,null,null,null,null,null,null,null,null,null,null,null,null,null,null,null,null,null,null,null,null,null,null,null,null,null,null,null,null,null,null,null,null,null,null,null,null,null,null,null,null,null,null,null,null,null,null,null,null,null,null,null,null,null,null,null,null,null,null,null,null,null,{"$f":"B294","v":"Were proactive gender, ethnic, disability, youth, migrant and/or other inclusion  measures described? Please specify what and for which populations"}]
[null,null,null,"","",null,null,null,null,null,null,null,null,null,null,null,null,null,null,null,null,null,null,null,null,null,null,null,null,null,null,null,null,null,null,null,null,null,null,null,null,null,null,null,null,null,null,null,null,null,null,null,null,null,null,null,null,null,null,null,null,null,null,null,null,null,null,null,null,null,null,null,null,null,null,null,null,null,null,null,null,null,null,null,null,null,null,null,null,null,null,null,null,null,null,null,null,null,null,null,null,null,null,{"$f":"B294","v":"Were proactive gender, ethnic, disability, youth, migrant and/or other inclusion  measures described? Please specify what and for which populations"}]
[null,"Does the project specify any awareness-raising activities to generate interest in CE capacity building activities? ",null,"","",null,null,null,null,null,null,null,null,null,null,null,null,null,null,null,null,null,null,null,null,null,null,null,null,null,null,null,null,null,null,null,null,null,null,null,null,null,null,null,null,null,null,null,null,null,null,null,null,null,null,null,null,null,null,null,null,null,null,null,null,null,null,null,null,null,null,null,null,null,null,null,null,null,null,null,null,null,null,null,null,null,null,null,null,null,null,null,null,null,null,null,null,null,null,null,null,null,null,{"$f":"B297","v":"Does the project specify any awareness-raising activities to generate interest in CE capacity building activities? "}]
[null,null,null,"","",null,null,null,null,null,null,null,null,null,null,null,null,null,null,null,null,null,null,null,null,null,null,null,null,null,null,null,null,null,null,null,null,null,null,null,null,null,null,null,null,null,null,null,null,null,null,null,null,null,null,null,null,null,null,null,null,null,null,null,null,null,null,null,null,null,null,null,null,null,null,null,null,null,null,null,null,null,null,null,null,null,null,null,null,null,null,null,null,null,null,null,null,null,null,null,null,null,null,{"$f":"B297","v":"Does the project specify any awareness-raising activities to generate interest in CE capacity building activities? "}]
[null,null,null,"","",null,null,null,null,null,null,null,null,null,null,null,null,null,null,null,null,null,null,null,null,null,null,null,null,null,null,null,null,null,null,null,null,null,null,null,null,null,null,null,null,null,null,null,null,null,null,null,null,null,null,null,null,null,null,null,null,null,null,null,null,null,null,null,null,null,null,null,null,null,null,null,null,null,null,null,null,null,null,null,null,null,null,null,null,null,null,null,null,null,null,null,null,null,null,null,null,null,null,{"$f":"B297","v":"Does the project specify any awareness-raising activities to generate interest in CE capacity building activities? "}]
[null,"Project commits to public disclosure of  CE capacity building attendees and results?",null,"","",null,null,null,null,null,null,null,null,null,null,null,null,null,null,null,null,null,null,null,null,null,null,null,null,null,null,null,null,null,null,null,null,null,null,null,null,null,null,null,null,null,null,null,null,null,null,null,null,null,null,null,null,null,null,null,null,null,null,null,null,null,null,null,null,null,null,null,null,null,null,null,null,null,null,null,null,null,null,null,null,null,null,null,null,null,null,null,null,null,null,null,null,null,null,null,null,null,null,{"$f":"B300","v":"Project commits to public disclosure of  CE capacity building attendees and results?"}]
[null,null,null,"","",null,null,null,null,null,null,null,null,null,null,null,null,null,null,null,null,null,null,null,null,null,null,null,null,null,null,null,null,null,null,null,null,null,null,null,null,null,null,null,null,null,null,null,null,null,null,null,null,null,null,null,null,null,null,null,null,null,null,null,null,null,null,null,null,null,null,null,null,null,null,null,null,null,null,null,null,null,null,null,null,null,null,null,null,null,null,null,null,null,null,null,null,null,null,null,null,null,null,{"$f":"B300","v":"Project commits to public disclosure of  CE capacity building attendees and results?"}]
[null,null,null,"","",null,null,null,null,null,null,null,null,null,null,null,null,null,null,null,null,null,null,null,null,null,null,null,null,null,null,null,null,null,null,null,null,null,null,null,null,null,null,null,null,null,null,null,null,null,null,null,null,null,null,null,null,null,null,null,null,null,null,null,null,null,null,null,null,null,null,null,null,null,null,null,null,null,null,null,null,null,null,null,null,null,null,null,null,null,null,null,null,null,null,null,null,null,null,null,null,null,null,{"$f":"B300","v":"Project commits to public disclosure of  CE capacity building attendees and results?"}]
["See  PAD Annex 1:  Results Framework and Monitoring","Will CE training be tracked as part of the project's Results Framework? (If so, please specify which RF indicators.) ",null,"","",null,null,null,null,null,null,null,null,null,null,null,null,null,null,null,null,null,null,null,null,null,null,null,null,null,null,null,null,null,null,null,null,null,null,null,null,null,null,null,null,null,null,null,null,null,null,null,null,null,null,null,null,null,null,null,null,null,null,null,null,null,null,null,null,null,null,null,null,null,null,null,null,null,null,null,null,null,null,null,null,null,null,null,null,null,null,null,null,null,null,null,null,null,null,null,null,null,null,{"$f":"B303","v":"Will CE training be tracked as part of the project's Results Framework? (If so, please specify which RF indicators.) "}]
[null,null,null,"","",null,null,null,null,null,null,null,null,null,null,null,null,null,null,null,null,null,null,null,null,null,null,null,null,null,null,null,null,null,null,null,null,null,null,null,null,null,null,null,null,null,null,null,null,null,null,null,null,null,null,null,null,null,null,null,null,null,null,null,null,null,null,null,null,null,null,null,null,null,null,null,null,null,null,null,null,null,null,null,null,null,null,null,null,null,null,null,null,null,null,null,null,null,null,null,null,null,null,{"$f":"B303","v":"Will CE training be tracked as part of the project's Results Framework? (If so, please specify which RF indicators.) "}]
[null,null,null,"","",null,null,null,null,null,null,null,null,null,null,null,null,null,null,null,null,null,null,null,null,null,null,null,null,null,null,null,null,null,null,null,null,null,null,null,null,null,null,null,null,null,null,null,null,null,null,null,null,null,null,null,null,null,null,null,null,null,null,null,null,null,null,null,null,null,null,null,null,null,null,null,null,null,null,null,null,null,null,null,null,null,null,null,null,null,null,null,null,null,null,null,null,null,null,null,null,null,null,{"$f":"B303","v":"Will CE training be tracked as part of the project's Results Framework? (If so, please specify which RF indicators.) "}]
[null,null,null,"","","",""]
["II. Monitoring Systems within World Bank Projects"]
[null,null,"Yes/No/Unclear","Project Appraisal Document (PAD) Description/Details",""," Description/Details Description/Details",""," Description/Details","Page No."," Description/Details","Page No."]
[" Individual funding amounts for project components can be found in the Project Financing Data portion of the PAD Data Sheet  (following the Table of Contents).","Does the project specifically earmark specific funds for Monitoring and Evaluation (M&E)? ",null,"","","","","","","","",null,null,null,null,null,null,null,null,null,null,null,null,null,null,null,null,null,null,null,null,null,null,null,null,null,null,null,null,null,null,null,null,null,null,null,null,null,null,null,null,null,null,null,null,null,null,null,null,null,null,null,null,null,null,null,null,null,null,null,null,null,null,null,null,null,null,null,null,null,null,null,null,null,null,null,null,null,null,null,null,null,null,null,null,null,null,null,null,null,null,null,null,{"$f":"B309","v":"Does the project specifically earmark specific funds for Monitoring and Evaluation (M&E)? "}]
[null,null,null,"","","","","","","","",null,null,null,null,null,null,null,null,null,null,null,null,null,null,null,null,null,null,null,null,null,null,null,null,null,null,null,null,null,null,null,null,null,null,null,null,null,null,null,null,null,null,null,null,null,null,null,null,null,null,null,null,null,null,null,null,null,null,null,null,null,null,null,null,null,null,null,null,null,null,null,null,null,null,null,null,null,null,null,null,null,null,null,null,null,null,null,null,null,null,null,null,{"$f":"B309","v":"Does the project specifically earmark specific funds for Monitoring and Evaluation (M&E)? "}]
[null,null,null,"","","","","","","","",null,null,null,null,null,null,null,null,null,null,null,null,null,null,null,null,null,null,null,null,null,null,null,null,null,null,null,null,null,null,null,null,null,null,null,null,null,null,null,null,null,null,null,null,null,null,null,null,null,null,null,null,null,null,null,null,null,null,null,null,null,null,null,null,null,null,null,null,null,null,null,null,null,null,null,null,null,null,null,null,null,null,null,null,null,null,null,null,null,null,null,null,{"$f":"B309","v":"Does the project specifically earmark specific funds for Monitoring and Evaluation (M&E)? "}]
[null,"If so, approximately what percentage of the project's total funding goes towards M&E? ",null,"","","","","","","","",null,null,null,null,null,null,null,null,null,null,null,null,null,null,null,null,null,null,null,null,null,null,null,null,null,null,null,null,null,null,null,null,null,null,null,null,null,null,null,null,null,null,null,null,null,null,null,null,null,null,null,null,null,null,null,null,null,null,null,null,null,null,null,null,null,null,null,null,null,null,null,null,null,null,null,null,null,null,null,null,null,null,null,null,null,null,null,null,null,null,null,null,{"$f":"B312","v":"If so, approximately what percentage of the project's total funding goes towards M&E? "}]
[null,null,null,"","","","","","","","",null,null,null,null,null,null,null,null,null,null,null,null,null,null,null,null,null,null,null,null,null,null,null,null,null,null,null,null,null,null,null,null,null,null,null,null,null,null,null,null,null,null,null,null,null,null,null,null,null,null,null,null,null,null,null,null,null,null,null,null,null,null,null,null,null,null,null,null,null,null,null,null,null,null,null,null,null,null,null,null,null,null,null,null,null,null,null,null,null,null,null,null,{"$f":"B312","v":"If so, approximately what percentage of the project's total funding goes towards M&E? "}]
[null,null,null,"","","","","","","","",null,null,null,null,null,null,null,null,null,null,null,null,null,null,null,null,null,null,null,null,null,null,null,null,null,null,null,null,null,null,null,null,null,null,null,null,null,null,null,null,null,null,null,null,null,null,null,null,null,null,null,null,null,null,null,null,null,null,null,null,null,null,null,null,null,null,null,null,null,null,null,null,null,null,null,null,null,null,null,null,null,null,null,null,null,null,null,null,null,null,null,null,{"$f":"B312","v":"If so, approximately what percentage of the project's total funding goes towards M&E? "}]
[null,"Does the project specify which entity is responsible for M&E ",null,"","","","","","","","",null,null,null,null,null,null,null,null,null,null,null,null,null,null,null,null,null,null,null,null,null,null,null,null,null,null,null,null,null,null,null,null,null,null,null,null,null,null,null,null,null,null,null,null,null,null,null,null,null,null,null,null,null,null,null,null,null,null,null,null,null,null,null,null,null,null,null,null,null,null,null,null,null,null,null,null,null,null,null,null,null,null,null,null,null,null,null,null,null,null,null,null,{"$f":"B315","v":"Does the project specify which entity is responsible for M&E "}]
[null,null,null,"","","","","","","","",null,null,null,null,null,null,null,null,null,null,null,null,null,null,null,null,null,null,null,null,null,null,null,null,null,null,null,null,null,null,null,null,null,null,null,null,null,null,null,null,null,null,null,null,null,null,null,null,null,null,null,null,null,null,null,null,null,null,null,null,null,null,null,null,null,null,null,null,null,null,null,null,null,null,null,null,null,null,null,null,null,null,null,null,null,null,null,null,null,null,null,null,{"$f":"B315","v":"Does the project specify which entity is responsible for M&E "}]
[null,null,null,"","","","","","","","",null,null,null,null,null,null,null,null,null,null,null,null,null,null,null,null,null,null,null,null,null,null,null,null,null,null,null,null,null,null,null,null,null,null,null,null,null,null,null,null,null,null,null,null,null,null,null,null,null,null,null,null,null,null,null,null,null,null,null,null,null,null,null,null,null,null,null,null,null,null,null,null,null,null,null,null,null,null,null,null,null,null,null,null,null,null,null,null,null,null,null,null,{"$f":"B315","v":"Does the project specify which entity is responsible for M&E "}]
[null," If so, is that entity external to the unit implementing the project (i.e. a third party, a citizen organization etc.)?",null,"","","","","","","","",null,null,null,null,null,null,null,null,null,null,null,null,null,null,null,null,null,null,null,null,null,null,null,null,null,null,null,null,null,null,null,null,null,null,null,null,null,null,null,null,null,null,null,null,null,null,null,null,null,null,null,null,null,null,null,null,null,null,null,null,null,null,null,null,null,null,null,null,null,null,null,null,null,null,null,null,null,null,null,null,null,null,null,null,null,null,null,null,null,null,null,null,{"$f":"B318","v":" If so, is that entity external to the unit implementing the project (i.e. a third party, a citizen organization etc.)?"}]
[null,null,null,"","","","","","","","",null,null,null,null,null,null,null,null,null,null,null,null,null,null,null,null,null,null,null,null,null,null,null,null,null,null,null,null,null,null,null,null,null,null,null,null,null,null,null,null,null,null,null,null,null,null,null,null,null,null,null,null,null,null,null,null,null,null,null,null,null,null,null,null,null,null,null,null,null,null,null,null,null,null,null,null,null,null,null,null,null,null,null,null,null,null,null,null,null,null,null,null,{"$f":"B318","v":" If so, is that entity external to the unit implementing the project (i.e. a third party, a citizen organization etc.)?"}]
[null,null,null,"","","","","","","","",null,null,null,null,null,null,null,null,null,null,null,null,null,null,null,null,null,null,null,null,null,null,null,null,null,null,null,null,null,null,null,null,null,null,null,null,null,null,null,null,null,null,null,null,null,null,null,null,null,null,null,null,null,null,null,null,null,null,null,null,null,null,null,null,null,null,null,null,null,null,null,null,null,null,null,null,null,null,null,null,null,null,null,null,null,null,null,null,null,null,null,null,{"$f":"B318","v":" If so, is that entity external to the unit implementing the project (i.e. a third party, a citizen organization etc.)?"}]
[null,"Is there a commitment to pro-active disclosure for M&E findings (beyond  mandatory reporting  on results framework indicators)",null,"","","","","","","","",null,null,null,null,null,null,null,null,null,null,null,null,null,null,null,null,null,null,null,null,null,null,null,null,null,null,null,null,null,null,null,null,null,null,null,null,null,null,null,null,null,null,null,null,null,null,null,null,null,null,null,null,null,null,null,null,null,null,null,null,null,null,null,null,null,null,null,null,null,null,null,null,null,null,null,null,null,null,null,null,null,null,null,null,null,null,null,null,null,null,null,null,{"$f":"B321","v":"Is there a commitment to pro-active disclosure for M&E findings (beyond  mandatory reporting  on results framework indicators)"}]
[null,null,null,"","","","","","","","",null,null,null,null,null,null,null,null,null,null,null,null,null,null,null,null,null,null,null,null,null,null,null,null,null,null,null,null,null,null,null,null,null,null,null,null,null,null,null,null,null,null,null,null,null,null,null,null,null,null,null,null,null,null,null,null,null,null,null,null,null,null,null,null,null,null,null,null,null,null,null,null,null,null,null,null,null,null,null,null,null,null,null,null,null,null,null,null,null,null,null,null,{"$f":"B321","v":"Is there a commitment to pro-active disclosure for M&E findings (beyond  mandatory reporting  on results framework indicators)"}]
[null,null,null,"","","","","","","","",null,null,null,null,null,null,null,null,null,null,null,null,null,null,null,null,null,null,null,null,null,null,null,null,null,null,null,null,null,null,null,null,null,null,null,null,null,null,null,null,null,null,null,null,null,null,null,null,null,null,null,null,null,null,null,null,null,null,null,null,null,null,null,null,null,null,null,null,null,null,null,null,null,null,null,null,null,null,null,null,null,null,null,null,null,null,null,null,null,null,null,null,{"$f":"B321","v":"Is there a commitment to pro-active disclosure for M&E findings (beyond  mandatory reporting  on results framework indicators)"}]
["if more than one agency is asked with monitoring CE activity, specify which agency tracks which type of CE","Does the project specify which government agency/office will be responsible for tracking Results Framework indicators?",null,"","","","","","","","",null,null,null,null,null,null,null,null,null,null,null,null,null,null,null,null,null,null,null,null,null,null,null,null,null,null,null,null,null,null,null,null,null,null,null,null,null,null,null,null,null,null,null,null,null,null,null,null,null,null,null,null,null,null,null,null,null,null,null,null,null,null,null,null,null,null,null,null,null,null,null,null,null,null,null,null,null,null,null,null,null,null,null,null,null,null,null,null,null,null,null,null,{"$f":"B324","v":"Does the project specify which government agency/office will be responsible for tracking Results Framework indicators?"}]
[null,null,null,"","","","","","","","",null,null,null,null,null,null,null,null,null,null,null,null,null,null,null,null,null,null,null,null,null,null,null,null,null,null,null,null,null,null,null,null,null,null,null,null,null,null,null,null,null,null,null,null,null,null,null,null,null,null,null,null,null,null,null,null,null,null,null,null,null,null,null,null,null,null,null,null,null,null,null,null,null,null,null,null,null,null,null,null,null,null,null,null,null,null,null,null,null,null,null,null,{"$f":"B324","v":"Does the project specify which government agency/office will be responsible for tracking Results Framework indicators?"}]
[null,null,null,"","","","","","","","",null,null,null,null,null,null,null,null,null,null,null,null,null,null,null,null,null,null,null,null,null,null,null,null,null,null,null,null,null,null,null,null,null,null,null,null,null,null,null,null,null,null,null,null,null,null,null,null,null,null,null,null,null,null,null,null,null,null,null,null,null,null,null,null,null,null,null,null,null,null,null,null,null,null,null,null,null,null,null,null,null,null,null,null,null,null,null,null,null,null,null,null,{"$f":"B324","v":"Does the project specify which government agency/office will be responsible for tracking Results Framework indicators?"}]
[null,"If so, is the government office responsible for tracking Results Framework indicators different from the office(s) tasked with project implementation/an external actor?",null,"","","","","","","","",null,null,null,null,null,null,null,null,null,null,null,null,null,null,null,null,null,null,null,null,null,null,null,null,null,null,null,null,null,null,null,null,null,null,null,null,null,null,null,null,null,null,null,null,null,null,null,null,null,null,null,null,null,null,null,null,null,null,null,null,null,null,null,null,null,null,null,null,null,null,null,null,null,null,null,null,null,null,null,null,null,null,null,null,null,null,null,null,null,null,null,null,{"$f":"B327","v":"If so, is the government office responsible for tracking Results Framework indicators different from the office(s) tasked with project implementation/an external actor?"}]
[null,null,null,"","","","","","","","",null,null,null,null,null,null,null,null,null,null,null,null,null,null,null,null,null,null,null,null,null,null,null,null,null,null,null,null,null,null,null,null,null,null,null,null,null,null,null,null,null,null,null,null,null,null,null,null,null,null,null,null,null,null,null,null,null,null,null,null,null,null,null,null,null,null,null,null,null,null,null,null,null,null,null,null,null,null,null,null,null,null,null,null,null,null,null,null,null,null,null,null,{"$f":"B327","v":"If so, is the government office responsible for tracking Results Framework indicators different from the office(s) tasked with project implementation/an external actor?"}]
[null,null,null,"","","","","","","","",null,null,null,null,null,null,null,null,null,null,null,null,null,null,null,null,null,null,null,null,null,null,null,null,null,null,null,null,null,null,null,null,null,null,null,null,null,null,null,null,null,null,null,null,null,null,null,null,null,null,null,null,null,null,null,null,null,null,null,null,null,null,null,null,null,null,null,null,null,null,null,null,null,null,null,null,null,null,null,null,null,null,null,null,null,null,null,null,null,null,null,null,{"$f":"B327","v":"If so, is the government office responsible for tracking Results Framework indicators different from the office(s) tasked with project implementation/an external actor?"}]
[null,"Does the project commit to disclosing Results Framework indicators in any national languages besides English?",null,"","","","","","","","",null,null,null,null,null,null,null,null,null,null,null,null,null,null,null,null,null,null,null,null,null,null,null,null,null,null,null,null,null,null,null,null,null,null,null,null,null,null,null,null,null,null,null,null,null,null,null,null,null,null,null,null,null,null,null,null,null,null,null,null,null,null,null,null,null,null,null,null,null,null,null,null,null,null,null,null,null,null,null,null,null,null,null,null,null,null,null,null,null,null,null,null,{"$f":"B330","v":"Does the project commit to disclosing Results Framework indicators in any national languages besides English?"}]
[null,null,null,"","","","","","","","",null,null,null,null,null,null,null,null,null,null,null,null,null,null,null,null,null,null,null,null,null,null,null,null,null,null,null,null,null,null,null,null,null,null,null,null,null,null,null,null,null,null,null,null,null,null,null,null,null,null,null,null,null,null,null,null,null,null,null,null,null,null,null,null,null,null,null,null,null,null,null,null,null,null,null,null,null,null,null,null,null,null,null,null,null,null,null,null,null,null,null,null,{"$f":"B330","v":"Does the project commit to disclosing Results Framework indicators in any national languages besides English?"}]
[null,null,null,"","","","","","","","",null,null,null,null,null,null,null,null,null,null,null,null,null,null,null,null,null,null,null,null,null,null,null,null,null,null,null,null,null,null,null,null,null,null,null,null,null,null,null,null,null,null,null,null,null,null,null,null,null,null,null,null,null,null,null,null,null,null,null,null,null,null,null,null,null,null,null,null,null,null,null,null,null,null,null,null,null,null,null,null,null,null,null,null,null,null,null,null,null,null,null,null,{"$f":"B330","v":"Does the project commit to disclosing Results Framework indicators in any national languages besides English?"}]
["RBF and DBI links the disbursement of funds to achievement of (independently verified) results.","Does the project include any \"Results-Based Financing\" (RBF) indicators or \"Disbursement Linked Indicators\" (DBI)?",null,"","","","","","","","",null,null,null,null,null,null,null,null,null,null,null,null,null,null,null,null,null,null,null,null,null,null,null,null,null,null,null,null,null,null,null,null,null,null,null,null,null,null,null,null,null,null,null,null,null,null,null,null,null,null,null,null,null,null,null,null,null,null,null,null,null,null,null,null,null,null,null,null,null,null,null,null,null,null,null,null,null,null,null,null,null,null,null,null,null,null,null,null,null,null,null,null,{"$f":"B333","v":"Does the project include any \"Results-Based Financing\" (RBF) indicators or \"Disbursement Linked Indicators\" (DBI)?"}]
[null,null,null,"","","","","","","","",null,null,null,null,null,null,null,null,null,null,null,null,null,null,null,null,null,null,null,null,null,null,null,null,null,null,null,null,null,null,null,null,null,null,null,null,null,null,null,null,null,null,null,null,null,null,null,null,null,null,null,null,null,null,null,null,null,null,null,null,null,null,null,null,null,null,null,null,null,null,null,null,null,null,null,null,null,null,null,null,null,null,null,null,null,null,null,null,null,null,null,null,{"$f":"B333","v":"Does the project include any \"Results-Based Financing\" (RBF) indicators or \"Disbursement Linked Indicators\" (DBI)?"}]
[null,null,null,"","","","","","","","",null,null,null,null,null,null,null,null,null,null,null,null,null,null,null,null,null,null,null,null,null,null,null,null,null,null,null,null,null,null,null,null,null,null,null,null,null,null,null,null,null,null,null,null,null,null,null,null,null,null,null,null,null,null,null,null,null,null,null,null,null,null,null,null,null,null,null,null,null,null,null,null,null,null,null,null,null,null,null,null,null,null,null,null,null,null,null,null,null,null,null,null,{"$f":"B333","v":"Does the project include any \"Results-Based Financing\" (RBF) indicators or \"Disbursement Linked Indicators\" (DBI)?"}]
[null,"If so, is a third party evaluation using these indicators currently available on the \"Documents\" tab of the World Bank's project page?",null,"","","","","","","","",null,null,null,null,null,null,null,null,null,null,null,null,null,null,null,null,null,null,null,null,null,null,null,null,null,null,null,null,null,null,null,null,null,null,null,null,null,null,null,null,null,null,null,null,null,null,null,null,null,null,null,null,null,null,null,null,null,null,null,null,null,null,null,null,null,null,null,null,null,null,null,null,null,null,null,null,null,null,null,null,null,null,null,null,null,null,null,null,null,null,null,null,{"$f":"B336","v":"If so, is a third party evaluation using these indicators currently available on the \"Documents\" tab of the World Bank's project page?"}]
[null,null,null,"","","","","","","","",null,null,null,null,null,null,null,null,null,null,null,null,null,null,null,null,null,null,null,null,null,null,null,null,null,null,null,null,null,null,null,null,null,null,null,null,null,null,null,null,null,null,null,null,null,null,null,null,null,null,null,null,null,null,null,null,null,null,null,null,null,null,null,null,null,null,null,null,null,null,null,null,null,null,null,null,null,null,null,null,null,null,null,null,null,null,null,null,null,null,null,null,{"$f":"B336","v":"If so, is a third party evaluation using these indicators currently available on the \"Documents\" tab of the World Bank's project page?"}]
[null,null,null,"","","","","","","","",null,null,null,null,null,null,null,null,null,null,null,null,null,null,null,null,null,null,null,null,null,null,null,null,null,null,null,null,null,null,null,null,null,null,null,null,null,null,null,null,null,null,null,null,null,null,null,null,null,null,null,null,null,null,null,null,null,null,null,null,null,null,null,null,null,null,null,null,null,null,null,null,null,null,null,null,null,null,null,null,null,null,null,null,null,null,null,null,null,null,null,null,{"$f":"B336","v":"If so, is a third party evaluation using these indicators currently available on the \"Documents\" tab of the World Bank's project page?"}]
[null,null,null,null,null,"",""]
["III. Implementation Status Results Reports (ISRs)"]
["Reviewing the Implementation Status Results Reports (ISRs): ISRs provide periodic updates on project implementation. On the project webpage, scroll through the list of documents to find ALL Implementation and Status Reports (there may be several of them). Download each ISRRto Dropbox (see 'Instructions' sheet). Open and review each one. For the earliest ISR found, re-label the \"ISR 1 Description/Details\" column to reflect the document date  (found in the footer, as well as at the top of the first page (i.e., ARCHIVED ON). For each additional ISR, re-label additional \"ISR\" columns to the right, to reflect the document date (i.e., the columns should read \"ISR 1/23 Description/Details\"; \"ISRR 6/23 Description/Details\", etc. (Note: If there are more than 4 ISRRs, you can create more columns further to the right.) In particular, make sure to review the following sections of each ISR:\n\nImplementation Status and Key Decisions\nResults"]
[null,null,"Yes/No/Unclear","ISR 1 Description/Details","Page No. "," Description/Details Description/Details","Page No."," Description/Details","Page No."," Description/Details","Page No."]
[null,"ISR or Aide Memoire provides new data or other updates on collaboration efforts (i.e., citizen membership in decision-making bodies, participatory planning and budgeting, citizen juries, etc.)?",null,"","","","","","","","",null,null,null,null,null,null,null,null,null,null,null,null,null,null,null,null,null,null,null,null,null,null,null,null,null,null,null,null,null,null,null,null,null,null,null,null,null,null,null,null,null,null,null,null,null,null,null,null,null,null,null,null,null,null,null,null,null,null,null,null,null,null,null,null,null,null,null,null,null,null,null,null,null,null,null,null,null,null,null,null,null,null,null,null,null,null,null,null,null,null,null,null,{"$f":"B343","v":"ISR or Aide Memoire provides new data or other updates on collaboration efforts (i.e., citizen membership in decision-making bodies, participatory planning and budgeting, citizen juries, etc.)?"}]
[null,null,null,"","","","","","","","",null,null,null,null,null,null,null,null,null,null,null,null,null,null,null,null,null,null,null,null,null,null,null,null,null,null,null,null,null,null,null,null,null,null,null,null,null,null,null,null,null,null,null,null,null,null,null,null,null,null,null,null,null,null,null,null,null,null,null,null,null,null,null,null,null,null,null,null,null,null,null,null,null,null,null,null,null,null,null,null,null,null,null,null,null,null,null,null,null,null,null,null,{"$f":"B343","v":"ISR or Aide Memoire provides new data or other updates on collaboration efforts (i.e., citizen membership in decision-making bodies, participatory planning and budgeting, citizen juries, etc.)?"}]
[null,null,null,"","","","","","","","",null,null,null,null,null,null,null,null,null,null,null,null,null,null,null,null,null,null,null,null,null,null,null,null,null,null,null,null,null,null,null,null,null,null,null,null,null,null,null,null,null,null,null,null,null,null,null,null,null,null,null,null,null,null,null,null,null,null,null,null,null,null,null,null,null,null,null,null,null,null,null,null,null,null,null,null,null,null,null,null,null,null,null,null,null,null,null,null,null,null,null,null,{"$f":"B343","v":"ISR or Aide Memoire provides new data or other updates on collaboration efforts (i.e., citizen membership in decision-making bodies, participatory planning and budgeting, citizen juries, etc.)?"}]
[null,"ISR or Aide Memoire provides new data or other updates on ongoing citizen feedback mechanisms (e.g., hotline, SMS, or online feedback)?",null,"","","","","","","","",null,null,null,null,null,null,null,null,null,null,null,null,null,null,null,null,null,null,null,null,null,null,null,null,null,null,null,null,null,null,null,null,null,null,null,null,null,null,null,null,null,null,null,null,null,null,null,null,null,null,null,null,null,null,null,null,null,null,null,null,null,null,null,null,null,null,null,null,null,null,null,null,null,null,null,null,null,null,null,null,null,null,null,null,null,null,null,null,null,null,null,null,{"$f":"B346","v":"ISR or Aide Memoire provides new data or other updates on ongoing citizen feedback mechanisms (e.g., hotline, SMS, or online feedback)?"}]
[null,null,null,"","","","","","","","",null,null,null,null,null,null,null,null,null,null,null,null,null,null,null,null,null,null,null,null,null,null,null,null,null,null,null,null,null,null,null,null,null,null,null,null,null,null,null,null,null,null,null,null,null,null,null,null,null,null,null,null,null,null,null,null,null,null,null,null,null,null,null,null,null,null,null,null,null,null,null,null,null,null,null,null,null,null,null,null,null,null,null,null,null,null,null,null,null,null,null,null,{"$f":"B346","v":"ISR or Aide Memoire provides new data or other updates on ongoing citizen feedback mechanisms (e.g., hotline, SMS, or online feedback)?"}]
[null,null,null,"","","","","","","","",null,null,null,null,null,null,null,null,null,null,null,null,null,null,null,null,null,null,null,null,null,null,null,null,null,null,null,null,null,null,null,null,null,null,null,null,null,null,null,null,null,null,null,null,null,null,null,null,null,null,null,null,null,null,null,null,null,null,null,null,null,null,null,null,null,null,null,null,null,null,null,null,null,null,null,null,null,null,null,null,null,null,null,null,null,null,null,null,null,null,null,null,{"$f":"B346","v":"ISR or Aide Memoire provides new data or other updates on ongoing citizen feedback mechanisms (e.g., hotline, SMS, or online feedback)?"}]
[null,"ISR or Aide memoire provides new data or other updates on other periodic collection of citizen feedback (e.g., community scorecard, citizen report cards)?",null,"","","","","","","","",null,null,null,null,null,null,null,null,null,null,null,null,null,null,null,null,null,null,null,null,null,null,null,null,null,null,null,null,null,null,null,null,null,null,null,null,null,null,null,null,null,null,null,null,null,null,null,null,null,null,null,null,null,null,null,null,null,null,null,null,null,null,null,null,null,null,null,null,null,null,null,null,null,null,null,null,null,null,null,null,null,null,null,null,null,null,null,null,null,null,null,null,{"$f":"B349","v":"ISR or Aide memoire provides new data or other updates on other periodic collection of citizen feedback (e.g., community scorecard, citizen report cards)?"}]
[null,null,null,"","","","","","","","",null,null,null,null,null,null,null,null,null,null,null,null,null,null,null,null,null,null,null,null,null,null,null,null,null,null,null,null,null,null,null,null,null,null,null,null,null,null,null,null,null,null,null,null,null,null,null,null,null,null,null,null,null,null,null,null,null,null,null,null,null,null,null,null,null,null,null,null,null,null,null,null,null,null,null,null,null,null,null,null,null,null,null,null,null,null,null,null,null,null,null,null,{"$f":"B349","v":"ISR or Aide memoire provides new data or other updates on other periodic collection of citizen feedback (e.g., community scorecard, citizen report cards)?"}]
[null,null,null,"","","","","","","","",null,null,null,null,null,null,null,null,null,null,null,null,null,null,null,null,null,null,null,null,null,null,null,null,null,null,null,null,null,null,null,null,null,null,null,null,null,null,null,null,null,null,null,null,null,null,null,null,null,null,null,null,null,null,null,null,null,null,null,null,null,null,null,null,null,null,null,null,null,null,null,null,null,null,null,null,null,null,null,null,null,null,null,null,null,null,null,null,null,null,null,null,{"$f":"B349","v":"ISR or Aide memoire provides new data or other updates on other periodic collection of citizen feedback (e.g., community scorecard, citizen report cards)?"}]
[null,"ISR or Aide Memoire provides new data or other updates on the Grievance Redress Mechanism (GRM)?",null,"","","","","","","","",null,null,null,null,null,null,null,null,null,null,null,null,null,null,null,null,null,null,null,null,null,null,null,null,null,null,null,null,null,null,null,null,null,null,null,null,null,null,null,null,null,null,null,null,null,null,null,null,null,null,null,null,null,null,null,null,null,null,null,null,null,null,null,null,null,null,null,null,null,null,null,null,null,null,null,null,null,null,null,null,null,null,null,null,null,null,null,null,null,null,null,null,{"$f":"B352","v":"ISR or Aide Memoire provides new data or other updates on the Grievance Redress Mechanism (GRM)?"}]
[null,null,null,"","","","","","","","",null,null,null,null,null,null,null,null,null,null,null,null,null,null,null,null,null,null,null,null,null,null,null,null,null,null,null,null,null,null,null,null,null,null,null,null,null,null,null,null,null,null,null,null,null,null,null,null,null,null,null,null,null,null,null,null,null,null,null,null,null,null,null,null,null,null,null,null,null,null,null,null,null,null,null,null,null,null,null,null,null,null,null,null,null,null,null,null,null,null,null,null,{"$f":"B352","v":"ISR or Aide Memoire provides new data or other updates on the Grievance Redress Mechanism (GRM)?"}]
[null,null,null,"","","","","","","","",null,null,null,null,null,null,null,null,null,null,null,null,null,null,null,null,null,null,null,null,null,null,null,null,null,null,null,null,null,null,null,null,null,null,null,null,null,null,null,null,null,null,null,null,null,null,null,null,null,null,null,null,null,null,null,null,null,null,null,null,null,null,null,null,null,null,null,null,null,null,null,null,null,null,null,null,null,null,null,null,null,null,null,null,null,null,null,null,null,null,null,null,{"$f":"B352","v":"ISR or Aide Memoire provides new data or other updates on the Grievance Redress Mechanism (GRM)?"}]
[null,"ISR or Aide Memoire provides new data or other updates on citizen-led monitoring efforts (e.g., public expenditure tracking surveys, social audits)?",null,"","","","","","","","",null,null,null,null,null,null,null,null,null,null,null,null,null,null,null,null,null,null,null,null,null,null,null,null,null,null,null,null,null,null,null,null,null,null,null,null,null,null,null,null,null,null,null,null,null,null,null,null,null,null,null,null,null,null,null,null,null,null,null,null,null,null,null,null,null,null,null,null,null,null,null,null,null,null,null,null,null,null,null,null,null,null,null,null,null,null,null,null,null,null,null,null,{"$f":"B355","v":"ISR or Aide Memoire provides new data or other updates on citizen-led monitoring efforts (e.g., public expenditure tracking surveys, social audits)?"}]
[null,null,null,"","","","","","","","",null,null,null,null,null,null,null,null,null,null,null,null,null,null,null,null,null,null,null,null,null,null,null,null,null,null,null,null,null,null,null,null,null,null,null,null,null,null,null,null,null,null,null,null,null,null,null,null,null,null,null,null,null,null,null,null,null,null,null,null,null,null,null,null,null,null,null,null,null,null,null,null,null,null,null,null,null,null,null,null,null,null,null,null,null,null,null,null,null,null,null,null,{"$f":"B355","v":"ISR or Aide Memoire provides new data or other updates on citizen-led monitoring efforts (e.g., public expenditure tracking surveys, social audits)?"}]
[null,null,null,"","","","","","","","",null,null,null,null,null,null,null,null,null,null,null,null,null,null,null,null,null,null,null,null,null,null,null,null,null,null,null,null,null,null,null,null,null,null,null,null,null,null,null,null,null,null,null,null,null,null,null,null,null,null,null,null,null,null,null,null,null,null,null,null,null,null,null,null,null,null,null,null,null,null,null,null,null,null,null,null,null,null,null,null,null,null,null,null,null,null,null,null,null,null,null,null,{"$f":"B355","v":"ISR or Aide Memoire provides new data or other updates on citizen-led monitoring efforts (e.g., public expenditure tracking surveys, social audits)?"}]
[null,"ISR or Aide Memoire provides new data or other updates on CE capacity-building training?",null,"","","","","","","","",null,null,null,null,null,null,null,null,null,null,null,null,null,null,null,null,null,null,null,null,null,null,null,null,null,null,null,null,null,null,null,null,null,null,null,null,null,null,null,null,null,null,null,null,null,null,null,null,null,null,null,null,null,null,null,null,null,null,null,null,null,null,null,null,null,null,null,null,null,null,null,null,null,null,null,null,null,null,null,null,null,null,null,null,null,null,null,null,null,null,null,null,{"$f":"B358","v":"ISR or Aide Memoire provides new data or other updates on CE capacity-building training?"}]
[null,null,null,"","","","","","","","",null,null,null,null,null,null,null,null,null,null,null,null,null,null,null,null,null,null,null,null,null,null,null,null,null,null,null,null,null,null,null,null,null,null,null,null,null,null,null,null,null,null,null,null,null,null,null,null,null,null,null,null,null,null,null,null,null,null,null,null,null,null,null,null,null,null,null,null,null,null,null,null,null,null,null,null,null,null,null,null,null,null,null,null,null,null,null,null,null,null,null,null,{"$f":"B358","v":"ISR or Aide Memoire provides new data or other updates on CE capacity-building training?"}]
[null,null,null,"","","","","","","","",null,null,null,null,null,null,null,null,null,null,null,null,null,null,null,null,null,null,null,null,null,null,null,null,null,null,null,null,null,null,null,null,null,null,null,null,null,null,null,null,null,null,null,null,null,null,null,null,null,null,null,null,null,null,null,null,null,null,null,null,null,null,null,null,null,null,null,null,null,null,null,null,null,null,null,null,null,null,null,null,null,null,null,null,null,null,null,null,null,null,null,null,{"$f":"B358","v":"ISR or Aide Memoire provides new data or other updates on CE capacity-building training?"}]
[null,"ISR or Aide Memoire provide any information and/or updates on proactive social inclusion",null,"","","","","","","","",null,null,null,null,null,null,null,null,null,null,null,null,null,null,null,null,null,null,null,null,null,null,null,null,null,null,null,null,null,null,null,null,null,null,null,null,null,null,null,null,null,null,null,null,null,null,null,null,null,null,null,null,null,null,null,null,null,null,null,null,null,null,null,null,null,null,null,null,null,null,null,null,null,null,null,null,null,null,null,null,null,null,null,null,null,null,null,null,null,null,null,null,{"$f":"B361","v":"ISR or Aide Memoire provide any information and/or updates on proactive social inclusion"}]
[null,null,null,"","","","","","","","",null,null,null,null,null,null,null,null,null,null,null,null,null,null,null,null,null,null,null,null,null,null,null,null,null,null,null,null,null,null,null,null,null,null,null,null,null,null,null,null,null,null,null,null,null,null,null,null,null,null,null,null,null,null,null,null,null,null,null,null,null,null,null,null,null,null,null,null,null,null,null,null,null,null,null,null,null,null,null,null,null,null,null,null,null,null,null,null,null,null,null,null,{"$f":"B361","v":"ISR or Aide Memoire provide any information and/or updates on proactive social inclusion"}]
[null,null,null,"","","","","","","","",null,null,null,null,null,null,null,null,null,null,null,null,null,null,null,null,null,null,null,null,null,null,null,null,null,null,null,null,null,null,null,null,null,null,null,null,null,null,null,null,null,null,null,null,null,null,null,null,null,null,null,null,null,null,null,null,null,null,null,null,null,null,null,null,null,null,null,null,null,null,null,null,null,null,null,null,null,null,null,null,null,null,null,null,null,null,null,null,null,null,null,null,{"$f":"B361","v":"ISR or Aide Memoire provide any information and/or updates on proactive social inclusion"}]
[null,"ISR or Aide Memoire provide any other information about third party monitoring (i.e. products, results, about the external monitor, etc.)",null,"","","","","","","","",null,null,null,null,null,null,null,null,null,null,null,null,null,null,null,null,null,null,null,null,null,null,null,null,null,null,null,null,null,null,null,null,null,null,null,null,null,null,null,null,null,null,null,null,null,null,null,null,null,null,null,null,null,null,null,null,null,null,null,null,null,null,null,null,null,null,null,null,null,null,null,null,null,null,null,null,null,null,null,null,null,null,null,null,null,null,null,null,null,null,null,null,{"$f":"B364","v":"ISR or Aide Memoire provide any other information about third party monitoring (i.e. products, results, about the external monitor, etc.)"}]
[null,null,null,"","","","","","","","",null,null,null,null,null,null,null,null,null,null,null,null,null,null,null,null,null,null,null,null,null,null,null,null,null,null,null,null,null,null,null,null,null,null,null,null,null,null,null,null,null,null,null,null,null,null,null,null,null,null,null,null,null,null,null,null,null,null,null,null,null,null,null,null,null,null,null,null,null,null,null,null,null,null,null,null,null,null,null,null,null,null,null,null,null,null,null,null,null,null,null,null,{"$f":"B364","v":"ISR or Aide Memoire provide any other information about third party monitoring (i.e. products, results, about the external monitor, etc.)"}]
[null,null,null,"","","","","","","","",null,null,null,null,null,null,null,null,null,null,null,null,null,null,null,null,null,null,null,null,null,null,null,null,null,null,null,null,null,null,null,null,null,null,null,null,null,null,null,null,null,null,null,null,null,null,null,null,null,null,null,null,null,null,null,null,null,null,null,null,null,null,null,null,null,null,null,null,null,null,null,null,null,null,null,null,null,null,null,null,null,null,null,null,null,null,null,null,null,null,null,null,{"$f":"B364","v":"ISR or Aide Memoire provide any other information about third party monitoring (i.e. products, results, about the external monitor, etc.)"}]
[null,"ISR or Aide Memoire provide any other information and/or updates about public disclosure?",null,"","","","","","","","",null,null,null,null,null,null,null,null,null,null,null,null,null,null,null,null,null,null,null,null,null,null,null,null,null,null,null,null,null,null,null,null,null,null,null,null,null,null,null,null,null,null,null,null,null,null,null,null,null,null,null,null,null,null,null,null,null,null,null,null,null,null,null,null,null,null,null,null,null,null,null,null,null,null,null,null,null,null,null,null,null,null,null,null,null,null,null,null,null,null,null,null,{"$f":"B367","v":"ISR or Aide Memoire provide any other information and/or updates about public disclosure?"}]
[null,null,null,"","","","","","","","",null,null,null,null,null,null,null,null,null,null,null,null,null,null,null,null,null,null,null,null,null,null,null,null,null,null,null,null,null,null,null,null,null,null,null,null,null,null,null,null,null,null,null,null,null,null,null,null,null,null,null,null,null,null,null,null,null,null,null,null,null,null,null,null,null,null,null,null,null,null,null,null,null,null,null,null,null,null,null,null,null,null,null,null,null,null,null,null,null,null,null,null,{"$f":"B367","v":"ISR or Aide Memoire provide any other information and/or updates about public disclosure?"}]
[null,null,null,"","","","","","","","",null,null,null,null,null,null,null,null,null,null,null,null,null,null,null,null,null,null,null,null,null,null,null,null,null,null,null,null,null,null,null,null,null,null,null,null,null,null,null,null,null,null,null,null,null,null,null,null,null,null,null,null,null,null,null,null,null,null,null,null,null,null,null,null,null,null,null,null,null,null,null,null,null,null,null,null,null,null,null,null,null,null,null,null,null,null,null,null,null,null,null,null,{"$f":"B367","v":"ISR or Aide Memoire provide any other information and/or updates about public disclosure?"}]

{"sheet":"Simplified Data Sheet","index":3,"n_rows":324,"n_cols":11,"rows_kept":324,"cut":false,"hidden":false,"merged":[[321,0,323,0],[321,1,323,1],[321,2,323,2],[315,0,317,0],[315,1,317,1],[315,2,317,2],[318,0,320,0],[318,1,320,1],[318,2,320,2],[309,0,311,0],[309,1,311,1],[309,2,311,2],[312,0,314,0],[312,1,314,1],[312,2,314,2],[300,0,300,9],[301,0,301,9],[303,0,305,0],[303,1,305,1],[303,2,305,2],[306,0,308,0],[306,1,308,1],[306,2,308,2],[293,0,295,0],[293,1,295,1],[293,2,295,2],[296,0,298,0],[296,1,298,1],[296,2,298,2],[287,0,289,0],[287,1,289,1],[287,2,289,2],[290,0,292,0],[290,1,292,1],[290,2,292,2],[281,0,283,0],[281,1,283,1],[281,2,283,2],[284,0,286,0],[284,1,286,1],[284,2,286,2],[275,0,277,0],[275,1,277,1],[275,2,277,2],[278,0,280,0],[278,1,280,1],[278,2,280,2],[266,0,268,0],[266,1,268,1],[266,2,268,2],[270,0,270,9],[272,0,274,0],[272,1,274,1],[272,2,274,2],[260,0,262,0],[260,1,262,1],[260,2,262,2],[263,0,265,0],[263,1,265,1],[263,2,265,2],[253,0,255,0],[253,1,255,1],[253,2,255,2],[256,1,256,2],[256,3,256,9],[257,0,259,0],[257,1,259,1],[257,2,259,2],[245,2,245,3],[247,0,249,0],[247,1,249,1],[247,2,249,2],[250,0,252,0],[250,1,252,1],[250,2,252,2],[238,0,240,0],[238,1,240,1],[238,2,240,2],[241,0,243,0],[241,1,243,1],[241,2,243,2],[232,0,234,0],[232,1,234,1],[232,2,234,2],[235,0,237,0],[235,1,237,1],[235,2,237,2],[226,0,226,3],[228,0,230,0],[228,1,230,1],[228,2,230,2],[231,1,231,2],[231,3,231,9],[217,0,219,0],[217,1,219,1],[217,2,219,2],[221,0,223,0],[221,1,223,1],[221,2,223,2],[211,0,213,0],[211,1,213,1],[211,2,213,2],[214,0,216,0],[214,1,216,1],[214,2,216,2],[205,0,207,0],[205,1,207,1],[205,2,207,2],[208,0,210,0],[208,1,210,1],[208,2,210,2],[199,0,201,0],[199,1,201,1],[199,2,201,2],[202,0,204,0],[202,1,204,1],[202,2,204,2],[193,0,195,0],[193,1,195,1],[193,2,195,2],[196,0,198,0],[196,1,198,1],[196,2,198,2],[187,0,189,0],[187,1,189,1],[187,2,189,2],[190,0,192,0],[190,1,192,1],[190,2,192,2],[181,0,183,0],[181,1,183,1],[181,2,183,2],[184,0,186,0],[184,1,186,1],[184,2,186,2],[175,0,177,0],[175,1,177,1],[175,2,177,2],[178,0,180,0],[178,1,180,1],[178,2,180,2],[168,1,168,2],[168,3,168,9],[169,0,171,0],[169,1,171,1],[169,2,171,2],[172,0,174,0],[172,1,174,1],[172,2,174,2],[160,0,162,0],[160,1,162,1],[160,2,162,2],[165,0,167,0],[165,1,167,1],[165,2,167,2],[154,0,156,0],[154,1,156,1],[154,2,156,2],[157,0,159,0],[157,1,159,1],[157,2,159,2],[145,1,147,1],[145,2,147,2],[148,0,150,0],[148,1,150,1],[148,2,150,2],[151,0,153,0],[151,1,153,1],[151,2,153,2],[131,0,131,3],[133,0,147,0],[133,1,135,1],[133,2,135,2],[136,1,138,1],[136,2,138,2],[139,1,141,1],[139,2,141,2],[142,1,144,1],[142,2,144,2],[123,0,125,0],[123,1,125,1],[123,2,125,2],[126,0,128,0],[126,1,128,1],[126,2,128,2],[114,1,116,1],[114,2,116,2],[117,0,119,0],[117,1,119,1],[117,2,119,2],[120,0,122,0],[120,1,122,1],[120,2,122,2],[105,1,107,1],[105,2,107,2],[108,0,110,0],[108,1,110,1],[108,2,110,2],[111,0,113,0],[111,1,113,1],[111,2,113,2],[98,1,100,1],[98,2,100,2],[101,1,101,2],[101,3,101,9],[102,0,104,0],[102,1,104,1],[102,2,104,2],[86,2,88,2],[89,1,91,1],[89,2,91,2],[92,1,94,1],[92,2,94,2],[95,1,97,1],[95,2,97,2],[70,1,72,1],[70,2,72,2],[73,0,75,0],[73,1,75,1],[73,2,75,2],[76,0,78,0],[76,1,78,1],[76,2,78,2],[61,1,63,1],[61,2,63,2],[64,0,66,0],[64,1,66,1],[64,2,66,2],[67,0,69,0],[67,1,69,1],[67,2,69,2],[54,1,54,2],[54,3,54,9],[55,0,57,0],[55,1,57,1],[55,2,57,2],[58,0,60,0],[58,1,60,1],[58,2,60,2],[45,1,47,1],[45,2,47,2],[48,0,50,0],[48,1,50,1],[48,2,50,2],[51,0,53,0],[51,1,53,1],[51,2,53,2],[36,2,38,2],[39,1,41,1],[39,2,41,2],[42,1,44,1],[42,2,44,2],[25,2,27,2],[28,0,30,0],[28,1,30,1],[28,2,30,2],[32,0,32,7],[33,0,33,5],[0,0,0,10],[1,0,1,10],[15,0,15,10],[17,0,17,9],[19,0,24,0],[19,1,21,1],[105,0,107,0],[114,0,116,0],[83,0,100,0],[83,1,85,1],[83,2,85,2],[86,1,88,1],[70,0,72,0],[61,0,63,0],[81,0,81,3],[45,0,47,0],[22,1,24,1],[22,2,24,2],[25,0,27,0],[25,1,27,1],[19,2,21,2],[34,0,34,1],[36,0,44,0],[36,1,38,1]]}
["World Bank Citizen Engagement Assessment Tool (WB-CEAT) Version 4.0"]
["Project Assessment"]
[]
[null,"Country:",null,""]
[null,"Project Name:",null,""]
[null,"PID: ",null,""]
[null,"Approval Date:",null,""]
[null,"Fiscal Year:"]
[null,"Commitment Amount:",null,""]
[null,"Status:"]
[null,"Team Leader:",null,""]
[null,"Project Link:",null,""]
[null,"Are any projects documents posted in national languages besides English?"]
[null,"If Yes, which documents and in what languages?",null,""]
[]
["Completing the Simplified Data Sheet                                                                                                                                                                                                                                                                       If requested please synthesize the information collected for the project assessment in the \"Simplifed Data Sheet\".  For this, you will primarily be synthesizing the main information from the different excerpts you have gathered from program documents. In some cases, a direct quote might summarize the answer to a question succinctly and clear. If you use a quote, make sure you reference it.  While the simplified data sheet may still look \"complex\" its purpose is for an informed reader to look quickly at a question and find a concrete answer instead of having to sort through different quotes, per what is available in the project assessment.  We need both of these sources to inform the different work that will be based on this folllowing the information gathering stage."]
[]
["Project Beneficiaries and Project Management"]
[null,null,"Yes/No/Unclear","Project Appraisal Document (PAD) Description/Details (please include page numbers)","Page No.","Additional Document 1 Description/Details [FILL IN NAME]please include page numbers)","Page No.","Additional Document 2 Description/Details [FILL IN NAME] (please include page numbers)","Page No.","Additional Document 3 Description/Details [FILL IN NAME](please include page numbers)","Page No."]
["See PAD Section II. \"Project Development Objectives\"; Section B: \"Project Beneficiaries\"","Are direct project beneficiaries identified? Please specify",null,"",""]
[null,null,null,"",""]
[null,null,null,"",""]
[null,"Are indirect beneficiaries identified? Please specify",null,"",""]
[null,null,null,"",""]
[null,null,null,"",""]
["See PAD Section IV: \"Implementation\": Section A.  Institutional and Implementation Arrangements","What is the government entity tasked with managing the project identfied? Please specify",null,"",""]
[null,null,null,"",""]
[null,null,null,"",""]
["See PAD Section VI. \"Appraisal Summary \" Section E. Social","Does the project trigger social safeguards? If yes, Please specify which.",null,"",""]
[null,null,null,"",""]
[null,null,null,"",""]
[]
["I. Citizen Engagement Activities"]
["\"Consultation\" "]
["The following questions relate to project preparation only"]
[null,null,"Yes/No/Unclear","Project Appraisal Document (PAD) Description/Details (please include page numbers)","Page No.","Additional Document 1 Description/Details (please include page numbers)","Page No.","Additional Document 2 Description/Details (please include page numbers)","Page No.","Additional Document 3 Description/Details (please include page numbers)","Page No."]
["\"Consultation, as distinct from dialogue, is a more structured exchange in which the convener commits to “active listening” and to carefully consider the comments, ideas, and recommendations received. Good practice consultations provide feedback on what was heard, and what was or was not incorporated and why to ensure that consultations contribute to improved policies and programs\"."," Were public hearings or meetings held during project preparation?",null,"",""]
[null,null,null,"",""]
[null,null,null,"",""]
[null,"Were focus group discussions or key informant interviews held during project preparation?",null,"",""]
[null,null,null,"",""]
[null,null,null,"",""]
[null,"Were surveys/questionaires conducted during project preparation?",null,"",""]
[null,null,null,"",""]
[null,null,null,"",""]
[null,"Were online consultations conducted during project preparation?",null,"",""]
[null,null,null,"",""]
[null,null,null,"",""]
["This could include informal structures at the local level, such as village councils and women's groups","Were advisory/expert groups consulted during project preparation?",null,"",""]
[null,null,null,"",""]
[null,null,null,"",""]
[null,"Were any other types of consultations conducted during project preparation?",null,"",""]
[null,null,null,"",""]
[null,null,null,"",""]
[null,"Answer the following if any of the above  are 'Yes' or 'Unclear'"]
["If safeguards were triggered, additional Consultation details may appear in the safeguard documents","Are consultations required because WB safeguards were triggered?"]
[]
[]
["Specific groups (i.e. not simply \"partners\" or \"stakeholders\" ) identified as primary/ultimate beneficiaries and/or affected non-beneficiaries. ","Were specific consultation partners identified? Please specify"]
[]
[]
[null,"Were proactive gender, ethnic, disability, youth, migrant and/or other inclusion  measures described related to the make up of the consultations? Please specify what and for which populations"]
[]
[]
[null,"Does the project document specific issues covered in consultations? Please specify"]
[]
[]
["See  PAD Annex 1:  Results Framework and Monitoring","Project tracks # of participants/sites engaged?"]
[]
[]
[null,"Were the results of these consultations made public?"]
[]
[]
[null,"Does the project commit to the publication of the Operations Manual on a national project website?"]
[]
[]
["If a national project website is not specified in the project documents, or listed on the Bank's project webpage, try using a Google search. If no website can be found, mark as \"Unclear\" ","Is the Operational Manual actually available on a national project website? If so, in what languages?"]
[]
[]
[]
["\"Collaboration in decisionmaking\" "]
["The following questions relate only to yommunity participation in decision-making for implementation (rather than feedback on services provided that will be the next category) "]
[null,null,"Yes/No/Unclear","Project Appraisal Document (PAD) Description/Details (please include page numbers)","Page No.","Additional Document 1 Description/Details [Add name of document here and please include page numbers] ","Page No.","Additional Document 2 Description/Details (please include page numbers)","Page No.","Additional Document 3 Description/Details (please include page numbers)/ Integrated Safeguards Datasheet","Page No."]
["\"Collaboration with citizens in decision-making processes and events can make decisions more responsive to citizens’ needs and improve the sustainability of program and project outcomes through increased ownership by citizens. Mechanisms for collaboration include citizen/user membership in decision-making bodies, integrity pacts, participatory planning and budgeting, and citizens’ juries.\"","Project commits to citizen/user membership in decision making bodies?",null,"",""]
[null,null,null,"",""]
[null,null,null,"",""]
[null,"Project commits to forming an integrity pact?",null,"",""]
[null,null,null,"",""]
[null,null,null,"",""]
[null,"Project commits to participatory planning and/or budgeting? Please specify which/both",null,"",""]
[null,null,null,"",""]
[null,null,null,"",""]
[null,"Project commits to forming citizen juries?",null,"",""]
[null,null,null,"",""]
[null,null,null,"",""]
[null,"Project commits to community management/community contracting?",null,"",""]
[null,null,null,"",""]
[null,null,null,"",""]
[null,"Project commits to another form of collaboration during project implementation? Please specify",null,"",""]
[null,null,null,"",""]
[null,null,null,"",""]
[null,"Answer the following if any of the above  are 'Yes' or 'Unclear'"]
["If safeguards were triggered, additional Consultation details may appear in the safeguard documents","Are collaborations required because WB safeguards were triggered?"]
[]
[]
["Specific groups (i.e. not simply \"partners\" or \"stakeholders\" ) identified as primary/ultimate beneficiaries and/or affected non-beneficiaries ","Are specific potential collaboration partners identified? If so, which groups?"]
[]
[]
[null,"Were proactive gender, ethnic, disability, youth, migrant and/or other inclusion  measures described? Please specify what and for which populations"]
[]
[]
[null,"Project specifies how often collaboration meetings will occur?"]
[]
[]
[null," Project specifies where collaboration meetings will be held?"]
[]
[]
[null,"Project identifies specific government agencies/offices that will coordinate/oversee collaborations?"]
[]
[]
[null,"Is this different from the project implementing organization (If yes, please explain)?"]
[]
[]
[null,"Project commits to public disclosure of collaboration meeting minutes and decisions? "]
[]
[]
["See  PAD Annex 1:  Results Framework and Monitoring","Will collaboration activities be tracked as part of the project's Results Framework? (If so, please specify which RF indicators.) "]
[]
[]
[]
["\"Collecting, Recording, and Reporting on Inputs from Citizens\""]
["These questions relate to  project implementation and post implementation (as specified in the question)"]
[null,null,"Yes/No/Unclear","Project Appraisal Document (PAD) Description/Details (please include page numbers)","Page No.","Additional Document 1 Description/Details (please include page numbers)","Page No.","Additional Document 2 Description/Details (please include page numbers)","Page No.","Additional Document 3 Description/Details (please include page numbers)","Page No."]
["\"Citizen feedback can be collected periodically on various dimensions of public services provided, such as effectiveness, inclusiveness, quality, delivery time, transaction costs, and targeting, as well as on resource utilization or engagement processes\".","Project commits to periodic collection of citizen feedback (e.g., focus groups, public hearings, satisfaction surveys (SS), community scorecards, citizen report cards, other)? Specify which type",null,"",""]
[null,null,null,"",""]
[null,null,null,"",""]
[null,"Project commits to an ongoing citizen feedback mechanism (e.g., hotline, SMS, or online feedback)? Specify which type",null,"",""]
[null,null,null,"",""]
[null,null,null,"",""]
[null,"Project commits to collecting citizen feedback during project implementation? How?",null,"",""]
[null,null,null,"",""]
[null,null,null,"",""]
[null,"Project commits to collecting citizen feedback  following project implementation? How?",null,"",""]
[null,null,null,"",""]
[null,null,null,"",""]
[null,"How often does the project commit to soliciting and collecting feedback?",null,"",""]
[null,null,null,"",""]
[null,null,null,"",""]
["Specific groups (i.e. not simply \"partners\" or \"stakeholders\" )for example,  identified as primary/ultimate beneficiaries and/or affected non-beneficiaries were targeted…","Project identifies specific target groups for the citizen feedback?",null,"",""]
[null,null,null,"",""]
[null,null,null,"",""]
[null,"Were proactive gender, ethnic, disability, youth, migrant and/or other inclusion  measures described? Please specify what and for which populations",null,"",""]
[null,null,null,"",""]
[null,null,null,"",""]
[null,"Project identifies specific government agencies/offices that will oversee citizen feedback mechanisms?",null,"",""]
[null,null,null,"",""]
[null,null,null,"",""]
[null,"Project commits to public disclosure of citizen feedback results?",null,"",""]
[null,null,null,"",""]
[null,null,null,"",""]
["See  PAD Annex 1:  Results Framework and Monitoring","Will feedback solicited from citizens be tracked as part of the project's Results Framework? (If so, please specify which RF indicators.) ",null,"",""]
[null,null,null,"",""]
[null,null,null,"",""]
["\"Grievance Redress Mechanism\""]
[null,null,"Yes/No/Unclear","Project Appraisal Document (PAD) Description/Details (please include page numbers)","Page No.","Additional Document 1 Description/Details (please include page numbers)","Page No.","Additional Document 2 Description/Details (please include page numbers)","Page No.","Additional Document 3 Description/Details (please include page numbers)","Page No."]
[null,"Project commits to establishing a  Grievance Redress Mechanism (GRM)?",null,"",""]
[null,null,null,"",""]
[null,null,null,"",""]
[null,"Answer the following if the above is 'Yes' or 'Unclear'"]
["If safeguards were triggered, additional GRM details may appear in the safeguard documents","Is a GRM required because WB safeguards were triggered?"]
[]
[]
[null,"Project identifies specific government agencies/offices that will oversee GRM?"]
[]
[]
[null,"Is this different from the project implementing organization (If yes, please explain)?"]
[]
[]
[null,"Does the project commit to multiple channels for submitting grievances (e.g., verbal and written options)? Please specify"]
[]
[]
[null,"Does the project commit to allowing grievances to be filed anonymously?"]
[]
[]
[null,"Does the project commit to acknowledging complaints in writing, when not filed anonymously?"]
[]
[]
[null,"Does the project specify a mechanism for tracking submitted grievances (i.e., categorizing, assigning priority, and routing to the appropriate entity) to ensure timely response?"]
[]
[]
[null,"Does the project commit to taking action on every grievance?"]
[]
[]
[null,"Does the project grant citizens the right to appeal a GRM decision?"]
[]
[]
[null,"Does the project specify any awareness-raising activities to alert the public about existence of the GRM? "]
[]
[]
[null,"Does the project commit to monitoring the effectiveness of the GRM?"]
[]
[]
[null,"Does the project commit to an approximate timetable for processing grievances?"]
[]
[]
[null,"Does the project commit to procedures to manage possible outcomes following the submission of a grievance (including the right to appeal a decision, if this right is granted)?"]
[]
[]
[null,"Does the project commit to informing the public about the above (i.e. the timetable, procedures following different outcomes)"]
[]
[]
[null,"Project commits to tracking # or % of grievances received?"]
[]
[]
[null,"Project commits to tracking # or % of grievances addressed?"]
[]
[]
[null,"Project commits to public disclosure of GRM data?"]
[]
[]
[null,"GRM web link"]
["See  PAD Annex 1:  Results Framework and Monitoring","Will GRM data be tracked as part of the project's Results Framework? (If so, please specify which RF indicators.) "]
[]
[]
[]
["\"Citizen-led monitoring,  evaluation and oversight\""]
["These questions relate to  project implementation and post implementation (as specified in the question)"]
[null,null,"Yes/No/Unclear","Project Appraisal Document (PAD) Description/Details (please include page numbers)","Page No.","Additional Document 1 Description/Details (please include page numbers)","Page No.","Additional Document 2 Description/Details (please include page numbers)","Page No.","Additional Document 3 Description/Details (please include page numbers)","Page No."]
["Citizen-led Monitoring: \"Involving citizens in monitoring service delivery, revenues, budget execution, procurement, contract awards, and reform policies can increase transparency, improve efficiency of service delivery or budget execution, and reduce opportunities for corruption. Some mechanisms for citizen-led monitoring include public expenditure tracking surveys, social audits, or citizen report cards.\"","Project commits to supporting public expenditure tracking surveys, social audits, participatory monitoring or other efforts by citizens to monitor service delivery, revenues, budget execution, contract awards, or reform policies?",null,"",""]
[null,null,null,"",""]
[null,null,null,"",""]
[null,"Answer the following if the above is 'Yes' or 'Unclear'"]
["Specific groups (i.e. not simply \"partners\" or \"stakeholders\" ) identified as primary/ultimate beneficiaries and/or affected non-beneficiaries ","Are specific organizations identified? If so, which groups?"]
[]
[]
[null,"Project identifies specific government agencies/offices that will coordinate with citizen-led monitoring efforts?"]
[]
[]
[null,"Project commits to public disclosure of citizen-led monitoring results?"]
[]
[]
["See  PAD Annex 1:  Results Framework and Monitoring","Will citizen-led monitoring results be tracked as part of the project's Results Framework? (If so, please specify which RF indicators.) "]
[]
[]
[]
["\"Capacity Building for Citizen Engagement\"(CE Training)"]
[null,null,"Yes/No/Unclear","Project Appraisal Document (PAD) Description/Details (please include page numbers)","Page No.","Additional Document 1 Description/Details (please include page numbers)","Page No.","Additional Document 2 Description/Details (please include page numbers)","Page No.","Additional Document 3 Description/Details (please include page numbers)","Page No. "]
[null,"Project commits to CE capacity building activities for government officials? ",null,"",""]
[null,null,null,"",""]
[null,null,null,"",""]
[null,"Project commits to CE capacity building activities for accountability institutions (e.g., auditors, comptrollers, ombudsmen/women)? ",null,"",""]
[null,null,null,"",""]
[null,null,null,"",""]
[null,"Project commits to CE capacity building activities for community groups/civil society organizations? Please specify which type if named (e.g. budget literacy campaigns)",null,"",""]
[null,null,null,"",""]
[null,null,null,"",""]
[null,"Answer the following if the above is 'Yes' or 'Unclear'"]
[null,"Project identifies specific government, CSO, Bank, or other entity to run CE capacity building training?"]
[]
[]
[null,"Does the project specify any awareness-raising activities to generate interest in CE capacity building activities? "]
[]
[]
[null,"Project commits to public disclosure of  CE capacity building attendees and results?"]
[]
[]
["See  PAD Annex 1:  Results Framework and Monitoring","Will CE training be tracked as part of the project's Results Framework? (If so, please specify which RF indicators.) "]
[]
[]
[]
["II. Monitoring Systems within World Bank Projects"]
[null,null,"Yes/No/Unclear","Project Appraisal Document (PAD) Description/Details (please include page numbers)","Page No.","Additional Document 1 Description/Details (please include page numbers)","Page No.","Additional Document 2 Description/Details (please include page numbers)","Page No.","Additional Document 3 Description/Details (please include page numbers)","Page No."]
[" Individual funding amounts for project components can be found in the Project Financing Data portion of the PAD Data Sheet  (following the Table of Contents).","Does the project specifically earmark specific funds for Monitoring and Evaluation (M&E)? ",null,"",""]
[null,null,null,"",""]
[null,null,null,"",""]
[null,"If so, approximately what percentage of the project's total funding goes towards M&E? ",null,"",""]
[null,null,null,"",""]
[null,null,null,"",""]
[null,"Does the project specify which entity is responible for M&E ",null,"",""]
[null,null,null,"",""]
[null,null,null,"",""]
[null,"Is there a commitment to pro-active disclosure for M&E findings",null,"",""]
[null,null,null,"",""]
[null,null,null,"",""]
["if more than one agency is asked with monitoring CE activity, specify which agency tracks which type of CE","Does the project specify which government agency/office will be responsible for tracking Results Framework indicators?",null,"",""]
[null,null,null,"",""]
[null,null,null,"",""]
[null,"If so, is the government office responsible for tracking Results Framework indicators different from the office(s) tasked with project implementation?",null,"",""]
[null,null,null,"",""]
[null,null,null,"",""]
[null,"Does the project commit to disclosing Results Framework indicators in any national languages besides English?",null,"",""]
[null,null,null,"",""]
[null,null,null,"",""]
["RBF and DBI links the disbursement of funds to achievement of (independently verified) results.","Does the project include any \"Results-Based Financing\" (RBF) indicators or \"Disbursement Linked Indicators\" (DBI)?",null,"",""]
[null,null,null,"",""]
[null,null,null,"",""]
[null,"If so, is a third party evaluation using these indicators currently available on the \"Documents\" tab of the World Bank's project page?",null,"",""]
[null,null,null,"",""]
[null,null,null,"",""]
[]
["III. Implementation Status Results Reports (ISRs)"]
["Reviewing the Implementation Status Results Reports (ISRs): ISRs provide periodic updates on project implementation. On the project webpage, scroll through the list of documents to find ALL Implementation and Status Reports (there may be several of them). Download each ISRRto Dropbox (see 'Instructions' sheet). Open and review each one. For the earliest ISR found, re-label the \"ISR 1 Description/Details\" column to reflect the document date  (found in the footer, as well as at the top of the first page (i.e., ARCHIVED ON). For each additional ISR, re-label additional \"ISR\" columns to the right, to reflect the document date (i.e., the columns should read \"ISR 1/23 Description/Details\"; \"ISRR 6/23 Description/Details\", etc. (Note: If there are more than 4 ISRRs, you can create more columns further to the right.) In particular, make sure to review the following sections of each ISR:\n\nImplementation Status and Key Decisions\nResults"]
[null,null,"Yes/No/Unclear","ISR 1 Description/Details (please include page numbers)","Page No. ","ISR 2 Description/Details (please include page numbers)","Page No.","ISR 3 Description/Details (please include page numbers)","Page No.","ISR 4 Description/Details (please include page numbers)","Page No."]
[null,"ISR or Aide Memoire provides new data or other updates on collaboration efforts (i.e., citizen membership in decision-making bodies, participatory planning and budgeting, citizen juries, etc.)?",null,"",""]
[null,null,null,"",""]
[null,null,null,"",""]
[null,"ISR or Aide Memoire provides new data or other updates on ongoing citizen feedback mechanisms (e.g., hotline, SMS, or online feedback)?",null,"",""]
[null,null,null,"",""]
[null,null,null,"",""]
[null,"ISR or Aide memoire provides new data or other updates on other periodic collection of citizen feedback (e.g., community scorecard, citizen report cards)?",null,"",""]
[null,null,null,"",""]
[null,null,null,"",""]
[null,"ISR or Aide Memoire provides new data or other updates on the Grievance Redress Mechanism (GRM)?",null,"",""]
[null,null,null,"",""]
[null,null,null,"",""]
[null,"ISR or Aide Memoire provides new data or other updates on citizen-led monitoring efforts (e.g., public expenditure tracking surveys, social audits)?",null,"",""]
[null,null,null,"",""]
[null,null,null,"",""]
[null,"ISR or Aide Memoire provides new data or other updates on CE capacity-building training?",null,"",""]
[null,null,null,"",""]
[null,null,null,"",""]
[null,"ISR or Aide Memoire provide any other CE related information and/or updates",null,"",""]
[null,null,null,"",""]
[null,null,null,"",""]

{"sheet":"InfoSheet","index":4,"n_rows":6,"n_cols":4,"rows_kept":6,"cut":false,"hidden":true,"merged":[]}
["Please Select","Please Select","Please Select","Please select"]
["FY 15","Active","Yes","Yes"]
["FY16","Closed","No","No"]
["FY17",null,"Unclear","Unclear"]
["FY18"]
["FY19"]